Organisation Name,Organisation Code,Unique Ref No,Effective Date,Directorate where expenditure incurred,Supplier Name,Payment Date,Net Amount,Purpose of Spend,Procurement Classification (Higher Level),Procurement Classification (Lower Level),Capital/Revenue
Walsall Council,http://opendatacommunities.org/id/metropolitan-district-council/walsall,WC111-1,31/12/2019,Childrens,247 CARS (WILLENHALL) LIMITED,09/12/2019,-473.40,52000-WITH DRIVER-HIRE OF VEHICLES,HOME TO SCHOOL TRANSPORT,Transport,Revenue
Walsall Council,http://opendatacommunities.org/id/metropolitan-district-council/walsall,WC111-2,31/12/2019,Childrens,247 CARS (WILLENHALL) LIMITED,09/12/2019,600.00,52000-WITH DRIVER-HIRE OF VEHICLES,HOME TO SCHOOL TRANSPORT,Transport,Revenue
Walsall Council,http://opendatacommunities.org/id/metropolitan-district-council/walsall,WC111-3,31/12/2019,Childrens,247 CARS (WILLENHALL) LIMITED,09/12/2019,633.20,52000-WITH DRIVER-HIRE OF VEHICLES,HOME TO SCHOOL TRANSPORT,Transport,Revenue
Walsall Council,http://opendatacommunities.org/id/metropolitan-district-council/walsall,WC111-4,31/12/2019,Childrens,247 CARS (WILLENHALL) LIMITED,09/12/2019,633.20,52000-WITH DRIVER-HIRE OF VEHICLES,HOME TO SCHOOL TRANSPORT,Transport,Revenue
Walsall Council,http://opendatacommunities.org/id/metropolitan-district-council/walsall,WC111-5,31/12/2019,Childrens,247 CARS (WILLENHALL) LIMITED,09/12/2019,633.20,52000-WITH DRIVER-HIRE OF VEHICLES,HOME TO SCHOOL TRANSPORT,Transport,Revenue
Walsall Council,http://opendatacommunities.org/id/metropolitan-district-council/walsall,WC111-6,31/12/2019,Childrens,247 CARS (WILLENHALL) LIMITED,09/12/2019,876.60,52000-WITH DRIVER-HIRE OF VEHICLES,HOME TO SCHOOL TRANSPORT,Transport,Revenue
Walsall Council,http://opendatacommunities.org/id/metropolitan-district-council/walsall,WC111-7,31/12/2019,Childrens,247 CARS (WILLENHALL) LIMITED,09/12/2019,"2,100.00",52000-WITH DRIVER-HIRE OF VEHICLES,HOME TO SCHOOL TRANSPORT,Transport,Revenue
Walsall Council,http://opendatacommunities.org/id/metropolitan-district-council/walsall,WC111-8,31/12/2019,Resources and Transformation,31ST SUTTON COLDFIELD WEST SCOUT GROUP BUILDING FUND,13/12/2019,425.00,63128-HIRE OF ROOM-SERVICES-FEES,ELECTORAL ADMINISTRATION,Supplies & Services,Revenue
Walsall Council,http://opendatacommunities.org/id/metropolitan-district-council/walsall,WC111-9,31/12/2019,Resources and Transformation,4 SIGHT EYECARE CENTRE 002,17/12/2019,277.17,63000-PROFESSIONAL FEES AND SERVICES,HR DIRECT SERVICES,Supplies & Services,Revenue
Walsall Council,http://opendatacommunities.org/id/metropolitan-district-council/walsall,WC111-10,31/12/2019,Adult Social Care,5 CARE SERVICES LTD,01/12/2019,250.88,73025-PROFESSIONAL SERVICES-PRIV CONTRACTOR & OTHER AGENCIES,INTERMEDIATE CARE SERVICE,Third Party Payments,Revenue
Walsall Council,http://opendatacommunities.org/id/metropolitan-district-council/walsall,WC111-11,31/12/2019,Adult Social Care,5 CARE SERVICES LTD,09/12/2019,295.08,73507-DOMICILIARY CARE,PHYSICAL SUPPORT,Third Party Payments,Revenue
Walsall Council,http://opendatacommunities.org/id/metropolitan-district-council/walsall,WC111-12,31/12/2019,Adult Social Care,5 CARE SERVICES LTD,09/12/2019,301.27,73507-DOMICILIARY CARE,PHYSICAL SUPPORT,Third Party Payments,Revenue
Walsall Council,http://opendatacommunities.org/id/metropolitan-district-council/walsall,WC111-13,31/12/2019,Adult Social Care,5 CARE SERVICES LTD,09/12/2019,330.45,73507-DOMICILIARY CARE,PHYSICAL SUPPORT,Third Party Payments,Revenue
Walsall Council,http://opendatacommunities.org/id/metropolitan-district-council/walsall,WC111-14,31/12/2019,Adult Social Care,5 CARE SERVICES LTD,09/12/2019,335.05,73507-DOMICILIARY CARE,MENTAL HEALTH SUPPORT,Third Party Payments,Revenue
Walsall Council,http://opendatacommunities.org/id/metropolitan-district-council/walsall,WC111-15,31/12/2019,Adult Social Care,5 CARE SERVICES LTD,09/12/2019,340.50,73507-DOMICILIARY CARE,PHYSICAL SUPPORT,Third Party Payments,Revenue
Walsall Council,http://opendatacommunities.org/id/metropolitan-district-council/walsall,WC111-16,31/12/2019,Adult Social Care,5 CARE SERVICES LTD,09/12/2019,365.97,73507-DOMICILIARY CARE,PHYSICAL SUPPORT,Third Party Payments,Revenue
Walsall Council,http://opendatacommunities.org/id/metropolitan-district-council/walsall,WC111-17,31/12/2019,Adult Social Care,5 CARE SERVICES LTD,09/12/2019,376.44,73507-DOMICILIARY CARE,PHYSICAL SUPPORT,Third Party Payments,Revenue
Walsall Council,http://opendatacommunities.org/id/metropolitan-district-council/walsall,WC111-18,31/12/2019,Adult Social Care,5 CARE SERVICES LTD,09/12/2019,377.81,73507-DOMICILIARY CARE,SOCIAL SUPPORT,Third Party Payments,Revenue
Walsall Council,http://opendatacommunities.org/id/metropolitan-district-council/walsall,WC111-19,31/12/2019,Adult Social Care,5 CARE SERVICES LTD,09/12/2019,386.13,73507-DOMICILIARY CARE,PHYSICAL SUPPORT,Third Party Payments,Revenue
Walsall Council,http://opendatacommunities.org/id/metropolitan-district-council/walsall,WC111-20,31/12/2019,Adult Social Care,5 CARE SERVICES LTD,16/12/2019,387.12,73025-PROFESSIONAL SERVICES-PRIV CONTRACTOR & OTHER AGENCIES,INTERMEDIATE CARE SERVICE,Third Party Payments,Revenue
Walsall Council,http://opendatacommunities.org/id/metropolitan-district-council/walsall,WC111-21,31/12/2019,Adult Social Care,5 CARE SERVICES LTD,09/12/2019,395.50,73507-DOMICILIARY CARE,PHYSICAL SUPPORT,Third Party Payments,Revenue
Walsall Council,http://opendatacommunities.org/id/metropolitan-district-council/walsall,WC111-22,31/12/2019,Adult Social Care,5 CARE SERVICES LTD,09/12/2019,426.17,73507-DOMICILIARY CARE,PHYSICAL SUPPORT,Third Party Payments,Revenue
Walsall Council,http://opendatacommunities.org/id/metropolitan-district-council/walsall,WC111-23,31/12/2019,Adult Social Care,5 CARE SERVICES LTD,09/12/2019,432.40,73507-DOMICILIARY CARE,PHYSICAL SUPPORT,Third Party Payments,Revenue
Walsall Council,http://opendatacommunities.org/id/metropolitan-district-council/walsall,WC111-24,31/12/2019,Adult Social Care,5 CARE SERVICES LTD,09/12/2019,469.06,73507-DOMICILIARY CARE,SENSORY SUPPORT,Third Party Payments,Revenue
Walsall Council,http://opendatacommunities.org/id/metropolitan-district-council/walsall,WC111-25,31/12/2019,Adult Social Care,5 CARE SERVICES LTD,09/12/2019,471.68,73507-DOMICILIARY CARE,PHYSICAL SUPPORT,Third Party Payments,Revenue
Walsall Council,http://opendatacommunities.org/id/metropolitan-district-council/walsall,WC111-26,31/12/2019,Adult Social Care,5 CARE SERVICES LTD,09/12/2019,480.17,73507-DOMICILIARY CARE,PHYSICAL SUPPORT,Third Party Payments,Revenue
Walsall Council,http://opendatacommunities.org/id/metropolitan-district-council/walsall,WC111-27,31/12/2019,Adult Social Care,5 CARE SERVICES LTD,09/12/2019,501.55,73507-DOMICILIARY CARE,PHYSICAL SUPPORT,Third Party Payments,Revenue
Walsall Council,http://opendatacommunities.org/id/metropolitan-district-council/walsall,WC111-28,31/12/2019,Adult Social Care,5 CARE SERVICES LTD,09/12/2019,540.65,73507-DOMICILIARY CARE,PHYSICAL SUPPORT,Third Party Payments,Revenue
Walsall Council,http://opendatacommunities.org/id/metropolitan-district-council/walsall,WC111-29,31/12/2019,Adult Social Care,5 CARE SERVICES LTD,09/12/2019,572.93,73507-DOMICILIARY CARE,PHYSICAL SUPPORT,Third Party Payments,Revenue
Walsall Council,http://opendatacommunities.org/id/metropolitan-district-council/walsall,WC111-30,31/12/2019,Adult Social Care,5 CARE SERVICES LTD,09/12/2019,582.67,73507-DOMICILIARY CARE,PHYSICAL SUPPORT,Third Party Payments,Revenue
Walsall Council,http://opendatacommunities.org/id/metropolitan-district-council/walsall,WC111-31,31/12/2019,Adult Social Care,5 CARE SERVICES LTD,09/12/2019,582.78,73507-DOMICILIARY CARE,PHYSICAL SUPPORT,Third Party Payments,Revenue
Walsall Council,http://opendatacommunities.org/id/metropolitan-district-council/walsall,WC111-32,31/12/2019,Adult Social Care,5 CARE SERVICES LTD,01/12/2019,602.28,73025-PROFESSIONAL SERVICES-PRIV CONTRACTOR & OTHER AGENCIES,INTERMEDIATE CARE SERVICE,Third Party Payments,Revenue
Walsall Council,http://opendatacommunities.org/id/metropolitan-district-council/walsall,WC111-33,31/12/2019,Adult Social Care,5 CARE SERVICES LTD,09/12/2019,607.23,73507-DOMICILIARY CARE,PHYSICAL SUPPORT,Third Party Payments,Revenue
Walsall Council,http://opendatacommunities.org/id/metropolitan-district-council/walsall,WC111-34,31/12/2019,Adult Social Care,5 CARE SERVICES LTD,09/12/2019,614.59,73507-DOMICILIARY CARE,PHYSICAL SUPPORT,Third Party Payments,Revenue
Walsall Council,http://opendatacommunities.org/id/metropolitan-district-council/walsall,WC111-35,31/12/2019,Adult Social Care,5 CARE SERVICES LTD,09/12/2019,624.09,73507-DOMICILIARY CARE,PHYSICAL SUPPORT,Third Party Payments,Revenue
Walsall Council,http://opendatacommunities.org/id/metropolitan-district-council/walsall,WC111-36,31/12/2019,Adult Social Care,5 CARE SERVICES LTD,09/12/2019,700.87,73507-DOMICILIARY CARE,PHYSICAL SUPPORT,Third Party Payments,Revenue
Walsall Council,http://opendatacommunities.org/id/metropolitan-district-council/walsall,WC111-37,31/12/2019,Adult Social Care,5 CARE SERVICES LTD,09/12/2019,772.60,73507-DOMICILIARY CARE,LEARNING DISABILITY SUPPORT,Third Party Payments,Revenue
Walsall Council,http://opendatacommunities.org/id/metropolitan-district-council/walsall,WC111-38,31/12/2019,Adult Social Care,5 CARE SERVICES LTD,09/12/2019,783.90,73507-DOMICILIARY CARE,PHYSICAL SUPPORT,Third Party Payments,Revenue
Walsall Council,http://opendatacommunities.org/id/metropolitan-district-council/walsall,WC111-39,31/12/2019,Adult Social Care,5 CARE SERVICES LTD,09/12/2019,797.98,73507-DOMICILIARY CARE,PHYSICAL SUPPORT,Third Party Payments,Revenue
Walsall Council,http://opendatacommunities.org/id/metropolitan-district-council/walsall,WC111-40,31/12/2019,Adult Social Care,5 CARE SERVICES LTD,09/12/2019,806.17,73507-DOMICILIARY CARE,PHYSICAL SUPPORT,Third Party Payments,Revenue
Walsall Council,http://opendatacommunities.org/id/metropolitan-district-council/walsall,WC111-41,31/12/2019,Adult Social Care,5 CARE SERVICES LTD,09/12/2019,806.98,73507-DOMICILIARY CARE,PHYSICAL SUPPORT,Third Party Payments,Revenue
Walsall Council,http://opendatacommunities.org/id/metropolitan-district-council/walsall,WC111-42,31/12/2019,Adult Social Care,5 CARE SERVICES LTD,09/12/2019,812.29,73507-DOMICILIARY CARE,PHYSICAL SUPPORT,Third Party Payments,Revenue
Walsall Council,http://opendatacommunities.org/id/metropolitan-district-council/walsall,WC111-43,31/12/2019,Adult Social Care,5 CARE SERVICES LTD,09/12/2019,846.57,73507-DOMICILIARY CARE,PHYSICAL SUPPORT,Third Party Payments,Revenue
Walsall Council,http://opendatacommunities.org/id/metropolitan-district-council/walsall,WC111-44,31/12/2019,Adult Social Care,5 CARE SERVICES LTD,09/12/2019,876.48,73507-DOMICILIARY CARE,PHYSICAL SUPPORT,Third Party Payments,Revenue
Walsall Council,http://opendatacommunities.org/id/metropolitan-district-council/walsall,WC111-45,31/12/2019,Adult Social Care,5 CARE SERVICES LTD,01/12/2019,903.28,73025-PROFESSIONAL SERVICES-PRIV CONTRACTOR & OTHER AGENCIES,INTERMEDIATE CARE SERVICE,Third Party Payments,Revenue
Walsall Council,http://opendatacommunities.org/id/metropolitan-district-council/walsall,WC111-46,31/12/2019,Adult Social Care,5 CARE SERVICES LTD,16/12/2019,903.28,73025-PROFESSIONAL SERVICES-PRIV CONTRACTOR & OTHER AGENCIES,INTERMEDIATE CARE SERVICE,Third Party Payments,Revenue
Walsall Council,http://opendatacommunities.org/id/metropolitan-district-council/walsall,WC111-47,31/12/2019,Adult Social Care,5 CARE SERVICES LTD,09/12/2019,906.08,73507-DOMICILIARY CARE,PHYSICAL SUPPORT,Third Party Payments,Revenue
Walsall Council,http://opendatacommunities.org/id/metropolitan-district-council/walsall,WC111-48,31/12/2019,Adult Social Care,5 CARE SERVICES LTD,09/12/2019,914.22,73507-DOMICILIARY CARE,PHYSICAL SUPPORT,Third Party Payments,Revenue
Walsall Council,http://opendatacommunities.org/id/metropolitan-district-council/walsall,WC111-49,31/12/2019,Adult Social Care,5 CARE SERVICES LTD,09/12/2019,938.99,73507-DOMICILIARY CARE,PHYSICAL SUPPORT,Third Party Payments,Revenue
Walsall Council,http://opendatacommunities.org/id/metropolitan-district-council/walsall,WC111-50,31/12/2019,Adult Social Care,5 CARE SERVICES LTD,09/12/2019,"1,071.17",73507-DOMICILIARY CARE,MENTAL HEALTH SUPPORT,Third Party Payments,Revenue
Walsall Council,http://opendatacommunities.org/id/metropolitan-district-council/walsall,WC111-51,31/12/2019,Adult Social Care,5 CARE SERVICES LTD,09/12/2019,"1,141.60",73507-DOMICILIARY CARE,LEARNING DISABILITY SUPPORT,Third Party Payments,Revenue
Walsall Council,http://opendatacommunities.org/id/metropolitan-district-council/walsall,WC111-52,31/12/2019,Adult Social Care,5 CARE SERVICES LTD,09/12/2019,"1,206.39",73507-DOMICILIARY CARE,PHYSICAL SUPPORT,Third Party Payments,Revenue
Walsall Council,http://opendatacommunities.org/id/metropolitan-district-council/walsall,WC111-53,31/12/2019,Adult Social Care,5 CARE SERVICES LTD,09/12/2019,"1,272.36",73507-DOMICILIARY CARE,PHYSICAL SUPPORT,Third Party Payments,Revenue
Walsall Council,http://opendatacommunities.org/id/metropolitan-district-council/walsall,WC111-54,31/12/2019,Adult Social Care,5 CARE SERVICES LTD,09/12/2019,"1,322.50",73507-DOMICILIARY CARE,PHYSICAL SUPPORT,Third Party Payments,Revenue
Walsall Council,http://opendatacommunities.org/id/metropolitan-district-council/walsall,WC111-55,31/12/2019,Adult Social Care,5 CARE SERVICES LTD,09/12/2019,"1,523.81",73507-DOMICILIARY CARE,PHYSICAL SUPPORT,Third Party Payments,Revenue
Walsall Council,http://opendatacommunities.org/id/metropolitan-district-council/walsall,WC111-56,31/12/2019,Adult Social Care,5 CARE SERVICES LTD,09/12/2019,"1,657.85",73507-DOMICILIARY CARE,PHYSICAL SUPPORT,Third Party Payments,Revenue
Walsall Council,http://opendatacommunities.org/id/metropolitan-district-council/walsall,WC111-57,31/12/2019,Adult Social Care,5 CARE SERVICES LTD,09/12/2019,"1,756.37",73507-DOMICILIARY CARE,PHYSICAL SUPPORT,Third Party Payments,Revenue
Walsall Council,http://opendatacommunities.org/id/metropolitan-district-council/walsall,WC111-58,31/12/2019,Adult Social Care,5 CARE SERVICES LTD,09/12/2019,"1,827.35",73507-DOMICILIARY CARE,MENTAL HEALTH SUPPORT,Third Party Payments,Revenue
Walsall Council,http://opendatacommunities.org/id/metropolitan-district-council/walsall,WC111-59,31/12/2019,Adult Social Care,5 CARE SERVICES LTD,09/12/2019,"1,868.38",73507-DOMICILIARY CARE,PHYSICAL SUPPORT,Third Party Payments,Revenue
Walsall Council,http://opendatacommunities.org/id/metropolitan-district-council/walsall,WC111-60,31/12/2019,Adult Social Care,5 CARE SERVICES LTD,09/12/2019,"1,871.89",73507-DOMICILIARY CARE,PHYSICAL SUPPORT,Third Party Payments,Revenue
Walsall Council,http://opendatacommunities.org/id/metropolitan-district-council/walsall,WC111-61,31/12/2019,Adult Social Care,5 CARE SERVICES LTD,09/12/2019,"2,031.20",73507-DOMICILIARY CARE,PHYSICAL SUPPORT,Third Party Payments,Revenue
Walsall Council,http://opendatacommunities.org/id/metropolitan-district-council/walsall,WC111-62,31/12/2019,Adult Social Care,5 CARE SERVICES LTD,09/12/2019,"2,050.34",73507-DOMICILIARY CARE,PHYSICAL SUPPORT,Third Party Payments,Revenue
Walsall Council,http://opendatacommunities.org/id/metropolitan-district-council/walsall,WC111-63,31/12/2019,Adult Social Care,5 CARE SERVICES LTD,09/12/2019,"2,083.52",73507-DOMICILIARY CARE,PHYSICAL SUPPORT,Third Party Payments,Revenue
Walsall Council,http://opendatacommunities.org/id/metropolitan-district-council/walsall,WC111-64,31/12/2019,Adult Social Care,5 CARE SERVICES LTD,09/12/2019,"2,382.38",73507-DOMICILIARY CARE,PHYSICAL SUPPORT,Third Party Payments,Revenue
Walsall Council,http://opendatacommunities.org/id/metropolitan-district-council/walsall,WC111-65,31/12/2019,Adult Social Care,5 CARE SERVICES LTD,16/12/2019,"2,912.15",73025-PROFESSIONAL SERVICES-PRIV CONTRACTOR & OTHER AGENCIES,INTERMEDIATE CARE SERVICE,Third Party Payments,Revenue
Walsall Council,http://opendatacommunities.org/id/metropolitan-district-council/walsall,WC111-66,31/12/2019,Resources and Transformation,A & M ELLIS,13/12/2019,260.00,62008-OUTWORK PRINT & DESIGN,PRINTING SERVICES,Supplies & Services,Revenue
Walsall Council,http://opendatacommunities.org/id/metropolitan-district-council/walsall,WC111-67,31/12/2019,Economy & Environment,A D T FIRE AND SECURITY PLC,11/12/2019,"1,373.52",60500-GENERAL MATERIALS,ARBORETUM,Supplies & Services,Revenue
Walsall Council,http://opendatacommunities.org/id/metropolitan-district-council/walsall,WC111-68,31/12/2019,Economy & Environment,A F BLAKEMORE & SON LTD,18/12/2019,241.37,61000-FOOD & DRINK SUPPLIES,OAK PARK,Supplies & Services,Revenue
Walsall Council,http://opendatacommunities.org/id/metropolitan-district-council/walsall,WC111-69,31/12/2019,Economy & Environment,A F BLAKEMORE & SON LTD,04/12/2019,263.78,61002-DRY FOODS-PROVISIONS,WALSALL GALA CENTRE,Supplies & Services,Revenue
Walsall Council,http://opendatacommunities.org/id/metropolitan-district-council/walsall,WC111-70,31/12/2019,Economy & Environment,A F BLAKEMORE & SON LTD,19/12/2019,468.47,61000-FOOD & DRINK SUPPLIES,OAK PARK,Supplies & Services,Revenue
Walsall Council,http://opendatacommunities.org/id/metropolitan-district-council/walsall,WC111-71,31/12/2019,Economy & Environment,A F BLAKEMORE & SON LTD,18/12/2019,585.42,61000-FOOD & DRINK SUPPLIES,OAK PARK,Supplies & Services,Revenue
Walsall Council,http://opendatacommunities.org/id/metropolitan-district-council/walsall,WC111-72,31/12/2019,Adult Social Care,A F BLAKEMORE & SON LTD,04/12/2019,619.90,61016-FOOD AND BEVERAGES-PROVISIONS,GOSCOTE,Supplies & Services,Revenue
Walsall Council,http://opendatacommunities.org/id/metropolitan-district-council/walsall,WC111-73,31/12/2019,Economy & Environment,A F BLAKEMORE & SON LTD,18/12/2019,773.55,61000-FOOD & DRINK SUPPLIES,OAK PARK,Supplies & Services,Revenue
Walsall Council,http://opendatacommunities.org/id/metropolitan-district-council/walsall,WC111-74,31/12/2019,Resources and Transformation,AAINA COMMUNITY HUB,16/12/2019,300.00,63128-HIRE OF ROOM-SERVICES-FEES,ELECTORAL ADMINISTRATION,Supplies & Services,Revenue
Walsall Council,http://opendatacommunities.org/id/metropolitan-district-council/walsall,WC111-75,31/12/2019,Childrens,REDACTED,10/12/2019,890.15,73506-DIRECT PAYMENT,FAMILY SUPPORT - DIRECT PAYMENTS,Third Party Payments,Revenue
Walsall Council,http://opendatacommunities.org/id/metropolitan-district-council/walsall,WC111-76,31/12/2019,Adult Social Care,AAT (GB) LTD,10/12/2019,"4,474.00",60500-GENERAL MATERIALS,GOSCOTE,Supplies & Services,Revenue
Walsall Council,http://opendatacommunities.org/id/metropolitan-district-council/walsall,WC111-77,31/12/2019,Adult Social Care,ABBEY COURT NURSING & RESIDEN,05/12/2019,"1,814.96",73500-RESIDENTIAL,PHYSICAL SUPPORT,Third Party Payments,Revenue
Walsall Council,http://opendatacommunities.org/id/metropolitan-district-council/walsall,WC111-78,31/12/2019,Adult Social Care,ABBEY COURT NURSING & RESIDEN,05/12/2019,"1,972.24",73501-RESIDENTIAL EMI,SUPPORT WITH MEMORY & COGNITION,Third Party Payments,Revenue
Walsall Council,http://opendatacommunities.org/id/metropolitan-district-council/walsall,WC111-79,31/12/2019,Adult Social Care,ABBEY COURT NURSING & RESIDEN,05/12/2019,"1,972.24",73501-RESIDENTIAL EMI,PHYSICAL SUPPORT,Third Party Payments,Revenue
Walsall Council,http://opendatacommunities.org/id/metropolitan-district-council/walsall,WC111-80,31/12/2019,Adult Social Care,ABBEY COURT NURSING & RESIDEN,05/12/2019,"1,972.24",73501-RESIDENTIAL EMI,PHYSICAL SUPPORT,Third Party Payments,Revenue
Walsall Council,http://opendatacommunities.org/id/metropolitan-district-council/walsall,WC111-81,31/12/2019,Adult Social Care,ABBEY COURT NURSING & RESIDEN,05/12/2019,"2,143.72",73502-NURSING,PHYSICAL SUPPORT,Third Party Payments,Revenue
Walsall Council,http://opendatacommunities.org/id/metropolitan-district-council/walsall,WC111-82,31/12/2019,Adult Social Care,ABBEY COURT NURSING & RESIDEN,05/12/2019,"2,358.08",73503-NURSING EMI,MENTAL HEALTH SUPPORT,Third Party Payments,Revenue
Walsall Council,http://opendatacommunities.org/id/metropolitan-district-council/walsall,WC111-83,31/12/2019,Adult Social Care,ABBEY COURT NURSING & RESIDEN,05/12/2019,"2,383.72",73502-NURSING,SUPPORT WITH MEMORY & COGNITION,Third Party Payments,Revenue
Walsall Council,http://opendatacommunities.org/id/metropolitan-district-council/walsall,WC111-84,31/12/2019,Adult Social Care,ABBEY HEALTHCARE HOMES LTD,05/12/2019,"2,317.04",73500-RESIDENTIAL,PHYSICAL SUPPORT,Third Party Payments,Revenue
Walsall Council,http://opendatacommunities.org/id/metropolitan-district-council/walsall,WC111-85,31/12/2019,Adult Social Care,ABBEY HEALTHCARE HOMES LTD,05/12/2019,"3,030.00",73500-RESIDENTIAL,LEARNING DISABILITY SUPPORT,Third Party Payments,Revenue
Walsall Council,http://opendatacommunities.org/id/metropolitan-district-council/walsall,WC111-86,31/12/2019,Adult Social Care,ABBEY HEALTHCARE HOMES LTD,05/12/2019,"3,030.00",73500-RESIDENTIAL,PHYSICAL SUPPORT,Third Party Payments,Revenue
Walsall Council,http://opendatacommunities.org/id/metropolitan-district-council/walsall,WC111-87,31/12/2019,Adult Social Care,ABBEY HEALTHCARE HOMES LTD,05/12/2019,"3,434.00",73500-RESIDENTIAL,LEARNING DISABILITY SUPPORT,Third Party Payments,Revenue
Walsall Council,http://opendatacommunities.org/id/metropolitan-district-council/walsall,WC111-88,31/12/2019,Adult Social Care,ABBEY HEALTHCARE HOMES LTD,05/12/2019,"3,514.44",73503-NURSING EMI,PHYSICAL SUPPORT,Third Party Payments,Revenue
Walsall Council,http://opendatacommunities.org/id/metropolitan-district-council/walsall,WC111-89,31/12/2019,Childrens,ABC DOES LTD,12/12/2019,"3,143.94",30030-EXTERNAL TRAINING,SCHOOL READINESS,Employees,Revenue
Walsall Council,http://opendatacommunities.org/id/metropolitan-district-council/walsall,WC111-90,31/12/2019,Resources and Transformation,ABEL ALARM CO LTD,16/12/2019,855.00,73002-SECURITY-PRIV CONTRACTOR FEES,CENTRALISED MAINTENANCE,Third Party Payments,Revenue
Walsall Council,http://opendatacommunities.org/id/metropolitan-district-council/walsall,WC111-91,31/12/2019,Economy & Environment,ABEL ALARM CO LTD,03/12/2019,"1,021.00",40015-ALARM CALL OUTS-OP MTCE,CEMETERIES CENTRAL ADMINISTRATION,Premises,Revenue
Walsall Council,http://opendatacommunities.org/id/metropolitan-district-council/walsall,WC111-92,31/12/2019,Economy & Environment,ABEL ALARM CO LTD,03/12/2019,"1,091.00",40015-ALARM CALL OUTS-OP MTCE,STREETLY CREMATORIUM,Premises,Revenue
Walsall Council,http://opendatacommunities.org/id/metropolitan-district-council/walsall,WC111-93,31/12/2019,Adult Social Care,REDACTED,11/12/2019,"2,499.00",73506-DIRECT PAYMENT,LEARNING DISABILITY SUPPORT,Third Party Payments,Revenue
Walsall Council,http://opendatacommunities.org/id/metropolitan-district-council/walsall,WC111-94,31/12/2019,Childrens,ABLEWELL CARS,09/12/2019,-316.75,52000-WITH DRIVER-HIRE OF VEHICLES,HOME TO SCHOOL TRANSPORT,Transport,Revenue
Walsall Council,http://opendatacommunities.org/id/metropolitan-district-council/walsall,WC111-95,31/12/2019,Childrens,ABLEWELL CARS,09/12/2019,-250.00,52000-WITH DRIVER-HIRE OF VEHICLES,HOME TO SCHOOL TRANSPORT,Transport,Revenue
Walsall Council,http://opendatacommunities.org/id/metropolitan-district-council/walsall,WC111-96,31/12/2019,Childrens,ABLEWELL CARS,09/12/2019,328.00,52000-WITH DRIVER-HIRE OF VEHICLES,HOME TO SCHOOL TRANSPORT,Transport,Revenue
Walsall Council,http://opendatacommunities.org/id/metropolitan-district-council/walsall,WC111-97,31/12/2019,Childrens,ABLEWELL CARS,09/12/2019,343.20,52000-WITH DRIVER-HIRE OF VEHICLES,HOME TO SCHOOL TRANSPORT,Transport,Revenue
Walsall Council,http://opendatacommunities.org/id/metropolitan-district-council/walsall,WC111-98,31/12/2019,Childrens,ABLEWELL CARS,09/12/2019,343.20,52000-WITH DRIVER-HIRE OF VEHICLES,HOME TO SCHOOL TRANSPORT,Transport,Revenue
Walsall Council,http://opendatacommunities.org/id/metropolitan-district-council/walsall,WC111-99,31/12/2019,Childrens,ABLEWELL CARS,09/12/2019,410.00,52000-WITH DRIVER-HIRE OF VEHICLES,HOME TO SCHOOL TRANSPORT,Transport,Revenue
Walsall Council,http://opendatacommunities.org/id/metropolitan-district-council/walsall,WC111-100,31/12/2019,Childrens,ABLEWELL CARS,09/12/2019,"1,266.40",52000-WITH DRIVER-HIRE OF VEHICLES,HOME TO SCHOOL TRANSPORT,Transport,Revenue
Walsall Council,http://opendatacommunities.org/id/metropolitan-district-council/walsall,WC111-101,31/12/2019,Childrens,ABS TAXIS (ALDRIDGE),09/12/2019,283.50,52000-WITH DRIVER-HIRE OF VEHICLES,HOME TO SCHOOL TRANSPORT,Transport,Revenue
Walsall Council,http://opendatacommunities.org/id/metropolitan-district-council/walsall,WC111-102,31/12/2019,Childrens,ABS TAXIS (ALDRIDGE),09/12/2019,283.50,52000-WITH DRIVER-HIRE OF VEHICLES,HOME TO SCHOOL TRANSPORT,Transport,Revenue
Walsall Council,http://opendatacommunities.org/id/metropolitan-district-council/walsall,WC111-103,31/12/2019,Childrens,ABS TAXIS (ALDRIDGE),09/12/2019,283.50,52000-WITH DRIVER-HIRE OF VEHICLES,HOME TO SCHOOL TRANSPORT,Transport,Revenue
Walsall Council,http://opendatacommunities.org/id/metropolitan-district-council/walsall,WC111-104,31/12/2019,Childrens,ABS TAXIS (ALDRIDGE),09/12/2019,283.50,52000-WITH DRIVER-HIRE OF VEHICLES,HOME TO SCHOOL TRANSPORT,Transport,Revenue
Walsall Council,http://opendatacommunities.org/id/metropolitan-district-council/walsall,WC111-105,31/12/2019,Childrens,ABS TAXIS (ALDRIDGE),09/12/2019,302.10,52000-WITH DRIVER-HIRE OF VEHICLES,HOME TO SCHOOL TRANSPORT,Transport,Revenue
Walsall Council,http://opendatacommunities.org/id/metropolitan-district-council/walsall,WC111-106,31/12/2019,Childrens,ABS TAXIS (ALDRIDGE),09/12/2019,302.70,52000-WITH DRIVER-HIRE OF VEHICLES,HOME TO SCHOOL TRANSPORT,Transport,Revenue
Walsall Council,http://opendatacommunities.org/id/metropolitan-district-council/walsall,WC111-107,31/12/2019,Childrens,ABS TAXIS (ALDRIDGE),09/12/2019,302.70,52000-WITH DRIVER-HIRE OF VEHICLES,HOME TO SCHOOL TRANSPORT,Transport,Revenue
Walsall Council,http://opendatacommunities.org/id/metropolitan-district-council/walsall,WC111-108,31/12/2019,Childrens,ABS TAXIS (ALDRIDGE),09/12/2019,367.50,52000-WITH DRIVER-HIRE OF VEHICLES,HOME TO SCHOOL TRANSPORT,Transport,Revenue
Walsall Council,http://opendatacommunities.org/id/metropolitan-district-council/walsall,WC111-109,31/12/2019,Childrens,ABS TAXIS (ALDRIDGE),09/12/2019,367.50,52000-WITH DRIVER-HIRE OF VEHICLES,HOME TO SCHOOL TRANSPORT,Transport,Revenue
Walsall Council,http://opendatacommunities.org/id/metropolitan-district-council/walsall,WC111-110,31/12/2019,Adult Social Care,ACCORD - AGE MATTERS,06/12/2019,226.71,76423-DIRECT PAYMENTS SUPPORT,DIRECT PAYMENT SUPPORT ORGANISATIONS,Transfer Payments,Revenue
Walsall Council,http://opendatacommunities.org/id/metropolitan-district-council/walsall,WC111-111,31/12/2019,Adult Social Care,ACCORD HOUSING ASSOCIATION LIMITED - HOBS MEADOW,05/12/2019,"4,550.44",73500-RESIDENTIAL,LEARNING DISABILITY SUPPORT,Third Party Payments,Revenue
Walsall Council,http://opendatacommunities.org/id/metropolitan-district-council/walsall,WC111-112,31/12/2019,Adult Social Care,ACCORD HOUSING ASSOCIATION LIMITED - HOBS MEADOW,05/12/2019,"4,550.44",73500-RESIDENTIAL,LEARNING DISABILITY SUPPORT,Third Party Payments,Revenue
Walsall Council,http://opendatacommunities.org/id/metropolitan-district-council/walsall,WC111-113,31/12/2019,Adult Social Care,ACCORD HOUSING ASSOCIATION LIMITED - HOBS MEADOW,05/12/2019,"4,550.44",73500-RESIDENTIAL,LEARNING DISABILITY SUPPORT,Third Party Payments,Revenue
Walsall Council,http://opendatacommunities.org/id/metropolitan-district-council/walsall,WC111-114,31/12/2019,Adult Social Care,ACCORD HOUSING ASSOCIATION LIMITED - HOBS MEADOW,05/12/2019,"4,550.44",73500-RESIDENTIAL,LEARNING DISABILITY SUPPORT,Third Party Payments,Revenue
Walsall Council,http://opendatacommunities.org/id/metropolitan-district-council/walsall,WC111-115,31/12/2019,Adult Social Care,ACCORD HOUSING ASSOCIATION LTD#135,06/12/2019,295.74,73507-DOMICILIARY CARE,PHYSICAL SUPPORT,Third Party Payments,Revenue
Walsall Council,http://opendatacommunities.org/id/metropolitan-district-council/walsall,WC111-116,31/12/2019,Adult Social Care,ACCORD HOUSING ASSOCIATION LTD#135,06/12/2019,312.84,73507-DOMICILIARY CARE,PHYSICAL SUPPORT,Third Party Payments,Revenue
Walsall Council,http://opendatacommunities.org/id/metropolitan-district-council/walsall,WC111-117,31/12/2019,Adult Social Care,ACCORD HOUSING ASSOCIATION LTD#135,06/12/2019,331.71,73507-DOMICILIARY CARE,SOCIAL SUPPORT,Third Party Payments,Revenue
Walsall Council,http://opendatacommunities.org/id/metropolitan-district-council/walsall,WC111-118,31/12/2019,Adult Social Care,ACCORD HOUSING ASSOCIATION LTD#135,06/12/2019,334.32,73507-DOMICILIARY CARE,PHYSICAL SUPPORT,Third Party Payments,Revenue
Walsall Council,http://opendatacommunities.org/id/metropolitan-district-council/walsall,WC111-119,31/12/2019,Adult Social Care,ACCORD HOUSING ASSOCIATION LTD#135,06/12/2019,350.70,73507-DOMICILIARY CARE,MENTAL HEALTH SUPPORT,Third Party Payments,Revenue
Walsall Council,http://opendatacommunities.org/id/metropolitan-district-council/walsall,WC111-120,31/12/2019,Adult Social Care,ACCORD HOUSING ASSOCIATION LTD#135,06/12/2019,353.47,73507-DOMICILIARY CARE,PHYSICAL SUPPORT,Third Party Payments,Revenue
Walsall Council,http://opendatacommunities.org/id/metropolitan-district-council/walsall,WC111-121,31/12/2019,Childrens,ACCORD HOUSING ASSOCIATION LTD#135,17/12/2019,375.92,43000-RENTS,SAFEGUARDING & FAMILY SUPPORT,Premises,Revenue
Walsall Council,http://opendatacommunities.org/id/metropolitan-district-council/walsall,WC111-122,31/12/2019,Adult Social Care,ACCORD HOUSING ASSOCIATION LTD#135,06/12/2019,389.12,73508-COMMUNITY SUPPORTED LIVING/SUPPORTED ACCOMMODATION,LEARNING DISABILITY SUPPORT,Third Party Payments,Revenue
Walsall Council,http://opendatacommunities.org/id/metropolitan-district-council/walsall,WC111-123,31/12/2019,Adult Social Care,ACCORD HOUSING ASSOCIATION LTD#135,06/12/2019,400.68,73507-DOMICILIARY CARE,MENTAL HEALTH SUPPORT,Third Party Payments,Revenue
Walsall Council,http://opendatacommunities.org/id/metropolitan-district-council/walsall,WC111-124,31/12/2019,Adult Social Care,ACCORD HOUSING ASSOCIATION LTD#135,06/12/2019,400.68,73507-DOMICILIARY CARE,PHYSICAL SUPPORT,Third Party Payments,Revenue
Walsall Council,http://opendatacommunities.org/id/metropolitan-district-council/walsall,WC111-125,31/12/2019,Adult Social Care,ACCORD HOUSING ASSOCIATION LTD#135,06/12/2019,400.68,73507-DOMICILIARY CARE,MENTAL HEALTH SUPPORT,Third Party Payments,Revenue
Walsall Council,http://opendatacommunities.org/id/metropolitan-district-council/walsall,WC111-126,31/12/2019,Adult Social Care,ACCORD HOUSING ASSOCIATION LTD#135,06/12/2019,451.64,73507-DOMICILIARY CARE,MENTAL HEALTH SUPPORT,Third Party Payments,Revenue
Walsall Council,http://opendatacommunities.org/id/metropolitan-district-council/walsall,WC111-127,31/12/2019,Adult Social Care,ACCORD HOUSING ASSOCIATION LTD#135,06/12/2019,456.31,73507-DOMICILIARY CARE,MENTAL HEALTH SUPPORT,Third Party Payments,Revenue
Walsall Council,http://opendatacommunities.org/id/metropolitan-district-council/walsall,WC111-128,31/12/2019,Adult Social Care,ACCORD HOUSING ASSOCIATION LTD#135,06/12/2019,460.71,73507-DOMICILIARY CARE,PHYSICAL SUPPORT,Third Party Payments,Revenue
Walsall Council,http://opendatacommunities.org/id/metropolitan-district-council/walsall,WC111-129,31/12/2019,Adult Social Care,ACCORD HOUSING ASSOCIATION LTD#135,06/12/2019,463.11,73507-DOMICILIARY CARE,PHYSICAL SUPPORT,Third Party Payments,Revenue
Walsall Council,http://opendatacommunities.org/id/metropolitan-district-council/walsall,WC111-130,31/12/2019,Adult Social Care,ACCORD HOUSING ASSOCIATION LTD#135,06/12/2019,482.29,73507-DOMICILIARY CARE,PHYSICAL SUPPORT,Third Party Payments,Revenue
Walsall Council,http://opendatacommunities.org/id/metropolitan-district-council/walsall,WC111-131,31/12/2019,Adult Social Care,ACCORD HOUSING ASSOCIATION LTD#135,06/12/2019,500.99,73507-DOMICILIARY CARE,MENTAL HEALTH SUPPORT,Third Party Payments,Revenue
Walsall Council,http://opendatacommunities.org/id/metropolitan-district-council/walsall,WC111-132,31/12/2019,Adult Social Care,ACCORD HOUSING ASSOCIATION LTD#135,06/12/2019,501.76,73507-DOMICILIARY CARE,MENTAL HEALTH SUPPORT,Third Party Payments,Revenue
Walsall Council,http://opendatacommunities.org/id/metropolitan-district-council/walsall,WC111-133,31/12/2019,Adult Social Care,ACCORD HOUSING ASSOCIATION LTD#135,06/12/2019,515.58,73507-DOMICILIARY CARE,PHYSICAL SUPPORT,Third Party Payments,Revenue
Walsall Council,http://opendatacommunities.org/id/metropolitan-district-council/walsall,WC111-134,31/12/2019,Adult Social Care,ACCORD HOUSING ASSOCIATION LTD#135,06/12/2019,519.93,73507-DOMICILIARY CARE,PHYSICAL SUPPORT,Third Party Payments,Revenue
Walsall Council,http://opendatacommunities.org/id/metropolitan-district-council/walsall,WC111-135,31/12/2019,Adult Social Care,ACCORD HOUSING ASSOCIATION LTD#135,06/12/2019,534.24,73507-DOMICILIARY CARE,PHYSICAL SUPPORT,Third Party Payments,Revenue
Walsall Council,http://opendatacommunities.org/id/metropolitan-district-council/walsall,WC111-136,31/12/2019,Adult Social Care,ACCORD HOUSING ASSOCIATION LTD#135,06/12/2019,539.43,73507-DOMICILIARY CARE,PHYSICAL SUPPORT,Third Party Payments,Revenue
Walsall Council,http://opendatacommunities.org/id/metropolitan-district-council/walsall,WC111-137,31/12/2019,Adult Social Care,ACCORD HOUSING ASSOCIATION LTD#135,06/12/2019,563.35,73507-DOMICILIARY CARE,PHYSICAL SUPPORT,Third Party Payments,Revenue
Walsall Council,http://opendatacommunities.org/id/metropolitan-district-council/walsall,WC111-138,31/12/2019,Adult Social Care,ACCORD HOUSING ASSOCIATION LTD#135,06/12/2019,568.12,73507-DOMICILIARY CARE,PHYSICAL SUPPORT,Third Party Payments,Revenue
Walsall Council,http://opendatacommunities.org/id/metropolitan-district-council/walsall,WC111-139,31/12/2019,Adult Social Care,ACCORD HOUSING ASSOCIATION LTD#135,06/12/2019,601.44,73507-DOMICILIARY CARE,PHYSICAL SUPPORT,Third Party Payments,Revenue
Walsall Council,http://opendatacommunities.org/id/metropolitan-district-council/walsall,WC111-140,31/12/2019,Adult Social Care,ACCORD HOUSING ASSOCIATION LTD#135,06/12/2019,602.28,73507-DOMICILIARY CARE,SENSORY SUPPORT,Third Party Payments,Revenue
Walsall Council,http://opendatacommunities.org/id/metropolitan-district-council/walsall,WC111-141,31/12/2019,Adult Social Care,ACCORD HOUSING ASSOCIATION LTD#135,06/12/2019,668.64,73507-DOMICILIARY CARE,PHYSICAL SUPPORT,Third Party Payments,Revenue
Walsall Council,http://opendatacommunities.org/id/metropolitan-district-council/walsall,WC111-142,31/12/2019,Adult Social Care,ACCORD HOUSING ASSOCIATION LTD#135,06/12/2019,668.64,73507-DOMICILIARY CARE,PHYSICAL SUPPORT,Third Party Payments,Revenue
Walsall Council,http://opendatacommunities.org/id/metropolitan-district-council/walsall,WC111-143,31/12/2019,Adult Social Care,ACCORD HOUSING ASSOCIATION LTD#135,06/12/2019,720.02,73507-DOMICILIARY CARE,SENSORY SUPPORT,Third Party Payments,Revenue
Walsall Council,http://opendatacommunities.org/id/metropolitan-district-council/walsall,WC111-144,31/12/2019,Adult Social Care,ACCORD HOUSING ASSOCIATION LTD#135,06/12/2019,725.88,73507-DOMICILIARY CARE,PHYSICAL SUPPORT,Third Party Payments,Revenue
Walsall Council,http://opendatacommunities.org/id/metropolitan-district-council/walsall,WC111-145,31/12/2019,Adult Social Care,ACCORD HOUSING ASSOCIATION LTD#135,06/12/2019,743.05,73507-DOMICILIARY CARE,SENSORY SUPPORT,Third Party Payments,Revenue
Walsall Council,http://opendatacommunities.org/id/metropolitan-district-council/walsall,WC111-146,31/12/2019,Adult Social Care,ACCORD HOUSING ASSOCIATION LTD#135,06/12/2019,745.59,73508-COMMUNITY SUPPORTED LIVING/SUPPORTED ACCOMMODATION,LEARNING DISABILITY SUPPORT,Third Party Payments,Revenue
Walsall Council,http://opendatacommunities.org/id/metropolitan-district-council/walsall,WC111-147,31/12/2019,Adult Social Care,ACCORD HOUSING ASSOCIATION LTD#135,06/12/2019,768.88,73507-DOMICILIARY CARE,PHYSICAL SUPPORT,Third Party Payments,Revenue
Walsall Council,http://opendatacommunities.org/id/metropolitan-district-council/walsall,WC111-148,31/12/2019,Adult Social Care,ACCORD HOUSING ASSOCIATION LTD#135,06/12/2019,910.24,73507-DOMICILIARY CARE,PHYSICAL SUPPORT,Third Party Payments,Revenue
Walsall Council,http://opendatacommunities.org/id/metropolitan-district-council/walsall,WC111-149,31/12/2019,Adult Social Care,ACCORD HOUSING ASSOCIATION LTD#135,06/12/2019,924.28,73507-DOMICILIARY CARE,PHYSICAL SUPPORT,Third Party Payments,Revenue
Walsall Council,http://opendatacommunities.org/id/metropolitan-district-council/walsall,WC111-150,31/12/2019,Adult Social Care,ACCORD HOUSING ASSOCIATION LTD#135,06/12/2019,935.61,73507-DOMICILIARY CARE,PHYSICAL SUPPORT,Third Party Payments,Revenue
Walsall Council,http://opendatacommunities.org/id/metropolitan-district-council/walsall,WC111-151,31/12/2019,Adult Social Care,ACCORD HOUSING ASSOCIATION LTD#135,06/12/2019,957.02,73507-DOMICILIARY CARE,PHYSICAL SUPPORT,Third Party Payments,Revenue
Walsall Council,http://opendatacommunities.org/id/metropolitan-district-council/walsall,WC111-152,31/12/2019,Adult Social Care,ACCORD HOUSING ASSOCIATION LTD#135,06/12/2019,"1,174.26",73507-DOMICILIARY CARE,PHYSICAL SUPPORT,Third Party Payments,Revenue
Walsall Council,http://opendatacommunities.org/id/metropolitan-district-council/walsall,WC111-153,31/12/2019,Economy & Environment,ACCORD HOUSING ASSOCIATION LTD#135,12/12/2019,"1,235.00",63253-PAYMENT TO CONTRACTOR,FALLS PREVENTION AGE UK,Third Party Payments,Revenue
Walsall Council,http://opendatacommunities.org/id/metropolitan-district-council/walsall,WC111-154,31/12/2019,Adult Social Care,ACCORD HOUSING ASSOCIATION LTD#135,06/12/2019,"1,280.12",73507-DOMICILIARY CARE,PHYSICAL SUPPORT,Third Party Payments,Revenue
Walsall Council,http://opendatacommunities.org/id/metropolitan-district-council/walsall,WC111-155,31/12/2019,Adult Social Care,ACCORD HOUSING ASSOCIATION LTD#135,06/12/2019,"1,306.23",73507-DOMICILIARY CARE,PHYSICAL SUPPORT,Third Party Payments,Revenue
Walsall Council,http://opendatacommunities.org/id/metropolitan-district-council/walsall,WC111-156,31/12/2019,Adult Social Care,ACCORD HOUSING ASSOCIATION LTD#135,06/12/2019,"1,379.85",73507-DOMICILIARY CARE,PHYSICAL SUPPORT,Third Party Payments,Revenue
Walsall Council,http://opendatacommunities.org/id/metropolitan-district-council/walsall,WC111-157,31/12/2019,Adult Social Care,ACCORD HOUSING ASSOCIATION LTD#135,06/12/2019,"1,461.58",73507-DOMICILIARY CARE,PHYSICAL SUPPORT,Third Party Payments,Revenue
Walsall Council,http://opendatacommunities.org/id/metropolitan-district-council/walsall,WC111-158,31/12/2019,Adult Social Care,ACCORD HOUSING ASSOCIATION LTD#135,06/12/2019,"1,471.12",73507-DOMICILIARY CARE,PHYSICAL SUPPORT,Third Party Payments,Revenue
Walsall Council,http://opendatacommunities.org/id/metropolitan-district-council/walsall,WC111-159,31/12/2019,Adult Social Care,ACCORD HOUSING ASSOCIATION LTD#135,06/12/2019,"1,603.98",73507-DOMICILIARY CARE,PHYSICAL SUPPORT,Third Party Payments,Revenue
Walsall Council,http://opendatacommunities.org/id/metropolitan-district-council/walsall,WC111-160,31/12/2019,Adult Social Care,ACCORD HOUSING ASSOCIATION LTD#135,06/12/2019,"1,634.70",73507-DOMICILIARY CARE,SOCIAL SUPPORT,Third Party Payments,Revenue
Walsall Council,http://opendatacommunities.org/id/metropolitan-district-council/walsall,WC111-161,31/12/2019,Adult Social Care,ACCORD HOUSING ASSOCIATION LTD#135,06/12/2019,"1,643.48",73507-DOMICILIARY CARE,PHYSICAL SUPPORT,Third Party Payments,Revenue
Walsall Council,http://opendatacommunities.org/id/metropolitan-district-council/walsall,WC111-162,31/12/2019,Adult Social Care,ACCORD HOUSING ASSOCIATION LTD#135,06/12/2019,"1,672.16",73507-DOMICILIARY CARE,PHYSICAL SUPPORT,Third Party Payments,Revenue
Walsall Council,http://opendatacommunities.org/id/metropolitan-district-council/walsall,WC111-163,31/12/2019,Adult Social Care,ACCORD HOUSING ASSOCIATION LTD#135,06/12/2019,"1,692.06",73507-DOMICILIARY CARE,SOCIAL SUPPORT,Third Party Payments,Revenue
Walsall Council,http://opendatacommunities.org/id/metropolitan-district-council/walsall,WC111-164,31/12/2019,Adult Social Care,ACCORD HOUSING ASSOCIATION LTD#135,06/12/2019,"1,717.76",73507-DOMICILIARY CARE,PHYSICAL SUPPORT,Third Party Payments,Revenue
Walsall Council,http://opendatacommunities.org/id/metropolitan-district-council/walsall,WC111-165,31/12/2019,Resources and Transformation,ACCORD HOUSING ASSOCIATION LTD#135,05/12/2019,"2,500.00",63000-PROFESSIONAL FEES AND SERVICES,INTEGRATED COMMUNITIES PROGRAMME,Supplies & Services,Revenue
Walsall Council,http://opendatacommunities.org/id/metropolitan-district-council/walsall,WC111-166,31/12/2019,Adult Social Care,ACCORD HOUSING ASSOCIATION LTD#135,05/12/2019,"5,671.44",73500-RESIDENTIAL,LEARNING DISABILITY SUPPORT,Third Party Payments,Revenue
Walsall Council,http://opendatacommunities.org/id/metropolitan-district-council/walsall,WC111-167,31/12/2019,Adult Social Care,ACCORD HOUSING ASSOCIATION LTD#135,05/12/2019,"6,350.96",73500-RESIDENTIAL,LEARNING DISABILITY SUPPORT,Third Party Payments,Revenue
Walsall Council,http://opendatacommunities.org/id/metropolitan-district-council/walsall,WC111-168,31/12/2019,Adult Social Care,ACCORD HOUSING ASSOCIATION LTD#135,05/12/2019,"6,350.96",73500-RESIDENTIAL,LEARNING DISABILITY SUPPORT,Third Party Payments,Revenue
Walsall Council,http://opendatacommunities.org/id/metropolitan-district-council/walsall,WC111-169,31/12/2019,Resources and Transformation,ACCORD HOUSING ASSOCIATION LTD#135,20/12/2019,"21,144.92",63000-PROFESSIONAL FEES AND SERVICES,HOMELESSNESS PREVENTION STRATEGY,Supplies & Services,Revenue
Walsall Council,http://opendatacommunities.org/id/metropolitan-district-council/walsall,WC111-170,31/12/2019,Resources and Transformation,ACCORD HOUSING ASSOCIATION LTD#135,19/12/2019,"22,500.00",73365-BLOCK GROSS-SUPPORTING PEOPLE,HOMELESS PREVENTION GRANT,Third Party Payments,Revenue
Walsall Council,http://opendatacommunities.org/id/metropolitan-district-council/walsall,WC111-171,31/12/2019,Resources and Transformation,ACCORD HOUSING ASSOCIATION LTD#135,05/12/2019,"43,400.00",01046-OTHER GRANTS,CFR 1108 OFF GAS SCHEME-DECC,Capital,Capital
Walsall Council,http://opendatacommunities.org/id/metropolitan-district-council/walsall,WC111-172,31/12/2019,Childrens,ACE CARS & MINIBUSES LTD,09/12/2019,-972.70,52000-WITH DRIVER-HIRE OF VEHICLES,HOME TO SCHOOL TRANSPORT,Transport,Revenue
Walsall Council,http://opendatacommunities.org/id/metropolitan-district-council/walsall,WC111-173,31/12/2019,Childrens,ACE CARS & MINIBUSES LTD,09/12/2019,-937.50,52000-WITH DRIVER-HIRE OF VEHICLES,HOME TO SCHOOL TRANSPORT,Transport,Revenue
Walsall Council,http://opendatacommunities.org/id/metropolitan-district-council/walsall,WC111-174,31/12/2019,Childrens,ACE CARS & MINIBUSES LTD,09/12/2019,-772.90,52000-WITH DRIVER-HIRE OF VEHICLES,HOME TO SCHOOL TRANSPORT,Transport,Revenue
Walsall Council,http://opendatacommunities.org/id/metropolitan-district-council/walsall,WC111-175,31/12/2019,Childrens,ACE CARS & MINIBUSES LTD,09/12/2019,-772.50,52000-WITH DRIVER-HIRE OF VEHICLES,HOME TO SCHOOL TRANSPORT,Transport,Revenue
Walsall Council,http://opendatacommunities.org/id/metropolitan-district-council/walsall,WC111-176,31/12/2019,Childrens,ACE CARS & MINIBUSES LTD,09/12/2019,-772.50,52000-WITH DRIVER-HIRE OF VEHICLES,HOME TO SCHOOL TRANSPORT,Transport,Revenue
Walsall Council,http://opendatacommunities.org/id/metropolitan-district-council/walsall,WC111-177,31/12/2019,Childrens,ACE CARS & MINIBUSES LTD,09/12/2019,-747.50,52000-WITH DRIVER-HIRE OF VEHICLES,HOME TO SCHOOL TRANSPORT,Transport,Revenue
Walsall Council,http://opendatacommunities.org/id/metropolitan-district-council/walsall,WC111-178,31/12/2019,Childrens,ACE CARS & MINIBUSES LTD,09/12/2019,-710.00,52000-WITH DRIVER-HIRE OF VEHICLES,HOME TO SCHOOL TRANSPORT,Transport,Revenue
Walsall Council,http://opendatacommunities.org/id/metropolitan-district-council/walsall,WC111-179,31/12/2019,Childrens,ACE CARS & MINIBUSES LTD,09/12/2019,-690.00,52000-WITH DRIVER-HIRE OF VEHICLES,HOME TO SCHOOL TRANSPORT,Transport,Revenue
Walsall Council,http://opendatacommunities.org/id/metropolitan-district-council/walsall,WC111-180,31/12/2019,Childrens,ACE CARS & MINIBUSES LTD,09/12/2019,-687.90,52000-WITH DRIVER-HIRE OF VEHICLES,HOME TO SCHOOL TRANSPORT,Transport,Revenue
Walsall Council,http://opendatacommunities.org/id/metropolitan-district-council/walsall,WC111-181,31/12/2019,Childrens,ACE CARS & MINIBUSES LTD,09/12/2019,-641.25,52000-WITH DRIVER-HIRE OF VEHICLES,HOME TO SCHOOL TRANSPORT,Transport,Revenue
Walsall Council,http://opendatacommunities.org/id/metropolitan-district-council/walsall,WC111-182,31/12/2019,Childrens,ACE CARS & MINIBUSES LTD,09/12/2019,-632.90,52000-WITH DRIVER-HIRE OF VEHICLES,HOME TO SCHOOL TRANSPORT,Transport,Revenue
Walsall Council,http://opendatacommunities.org/id/metropolitan-district-council/walsall,WC111-183,31/12/2019,Childrens,ACE CARS & MINIBUSES LTD,09/12/2019,-581.40,52000-WITH DRIVER-HIRE OF VEHICLES,HOME TO SCHOOL TRANSPORT,Transport,Revenue
Walsall Council,http://opendatacommunities.org/id/metropolitan-district-council/walsall,WC111-184,31/12/2019,Childrens,ACE CARS & MINIBUSES LTD,09/12/2019,-550.00,52000-WITH DRIVER-HIRE OF VEHICLES,HOME TO SCHOOL TRANSPORT,Transport,Revenue
Walsall Council,http://opendatacommunities.org/id/metropolitan-district-council/walsall,WC111-185,31/12/2019,Childrens,ACE CARS & MINIBUSES LTD,09/12/2019,-546.25,52000-WITH DRIVER-HIRE OF VEHICLES,HOME TO SCHOOL TRANSPORT,Transport,Revenue
Walsall Council,http://opendatacommunities.org/id/metropolitan-district-council/walsall,WC111-186,31/12/2019,Childrens,ACE CARS & MINIBUSES LTD,09/12/2019,-517.50,52000-WITH DRIVER-HIRE OF VEHICLES,HOME TO SCHOOL TRANSPORT,Transport,Revenue
Walsall Council,http://opendatacommunities.org/id/metropolitan-district-council/walsall,WC111-187,31/12/2019,Childrens,ACE CARS & MINIBUSES LTD,09/12/2019,-517.50,52000-WITH DRIVER-HIRE OF VEHICLES,HOME TO SCHOOL TRANSPORT,Transport,Revenue
Walsall Council,http://opendatacommunities.org/id/metropolitan-district-council/walsall,WC111-188,31/12/2019,Childrens,ACE CARS & MINIBUSES LTD,09/12/2019,-460.00,52000-WITH DRIVER-HIRE OF VEHICLES,HOME TO SCHOOL TRANSPORT,Transport,Revenue
Walsall Council,http://opendatacommunities.org/id/metropolitan-district-council/walsall,WC111-189,31/12/2019,Childrens,ACE CARS & MINIBUSES LTD,09/12/2019,-395.00,52000-WITH DRIVER-HIRE OF VEHICLES,HOME TO SCHOOL TRANSPORT,Transport,Revenue
Walsall Council,http://opendatacommunities.org/id/metropolitan-district-council/walsall,WC111-190,31/12/2019,Childrens,ACE CARS & MINIBUSES LTD,09/12/2019,-390.00,52000-WITH DRIVER-HIRE OF VEHICLES,HOME TO SCHOOL TRANSPORT,Transport,Revenue
Walsall Council,http://opendatacommunities.org/id/metropolitan-district-council/walsall,WC111-191,31/12/2019,Childrens,ACE CARS & MINIBUSES LTD,09/12/2019,-390.00,52000-WITH DRIVER-HIRE OF VEHICLES,HOME TO SCHOOL TRANSPORT,Transport,Revenue
Walsall Council,http://opendatacommunities.org/id/metropolitan-district-council/walsall,WC111-192,31/12/2019,Childrens,ACE CARS & MINIBUSES LTD,09/12/2019,-385.00,52000-WITH DRIVER-HIRE OF VEHICLES,HOME TO SCHOOL TRANSPORT,Transport,Revenue
Walsall Council,http://opendatacommunities.org/id/metropolitan-district-council/walsall,WC111-193,31/12/2019,Childrens,ACE CARS & MINIBUSES LTD,09/12/2019,-375.00,52000-WITH DRIVER-HIRE OF VEHICLES,HOME TO SCHOOL TRANSPORT,Transport,Revenue
Walsall Council,http://opendatacommunities.org/id/metropolitan-district-council/walsall,WC111-194,31/12/2019,Childrens,ACE CARS & MINIBUSES LTD,09/12/2019,-350.00,52000-WITH DRIVER-HIRE OF VEHICLES,HOME TO SCHOOL TRANSPORT,Transport,Revenue
Walsall Council,http://opendatacommunities.org/id/metropolitan-district-council/walsall,WC111-195,31/12/2019,Childrens,ACE CARS & MINIBUSES LTD,09/12/2019,-325.00,52000-WITH DRIVER-HIRE OF VEHICLES,HOME TO SCHOOL TRANSPORT,Transport,Revenue
Walsall Council,http://opendatacommunities.org/id/metropolitan-district-council/walsall,WC111-196,31/12/2019,Childrens,ACE CARS & MINIBUSES LTD,09/12/2019,-250.00,52000-WITH DRIVER-HIRE OF VEHICLES,HOME TO SCHOOL TRANSPORT,Transport,Revenue
Walsall Council,http://opendatacommunities.org/id/metropolitan-district-council/walsall,WC111-197,31/12/2019,Childrens,ACE CARS & MINIBUSES LTD,09/12/2019,-250.00,52000-WITH DRIVER-HIRE OF VEHICLES,HOME TO SCHOOL TRANSPORT,Transport,Revenue
Walsall Council,http://opendatacommunities.org/id/metropolitan-district-council/walsall,WC111-198,31/12/2019,Childrens,ACE CARS & MINIBUSES LTD,09/12/2019,-250.00,52000-WITH DRIVER-HIRE OF VEHICLES,HOME TO SCHOOL TRANSPORT,Transport,Revenue
Walsall Council,http://opendatacommunities.org/id/metropolitan-district-council/walsall,WC111-199,31/12/2019,Childrens,ACE CARS & MINIBUSES LTD,09/12/2019,225.00,52000-WITH DRIVER-HIRE OF VEHICLES,HOME TO SCHOOL TRANSPORT,Transport,Revenue
Walsall Council,http://opendatacommunities.org/id/metropolitan-district-council/walsall,WC111-200,31/12/2019,Childrens,ACE CARS & MINIBUSES LTD,09/12/2019,368.00,52000-WITH DRIVER-HIRE OF VEHICLES,HOME TO SCHOOL TRANSPORT,Transport,Revenue
Walsall Council,http://opendatacommunities.org/id/metropolitan-district-council/walsall,WC111-201,31/12/2019,Childrens,ACE CARS & MINIBUSES LTD,09/12/2019,368.00,52000-WITH DRIVER-HIRE OF VEHICLES,HOME TO SCHOOL TRANSPORT,Transport,Revenue
Walsall Council,http://opendatacommunities.org/id/metropolitan-district-council/walsall,WC111-202,31/12/2019,Childrens,ACE CARS & MINIBUSES LTD,09/12/2019,368.00,52000-WITH DRIVER-HIRE OF VEHICLES,HOME TO SCHOOL TRANSPORT,Transport,Revenue
Walsall Council,http://opendatacommunities.org/id/metropolitan-district-council/walsall,WC111-203,31/12/2019,Childrens,ACE CARS & MINIBUSES LTD,09/12/2019,368.00,52000-WITH DRIVER-HIRE OF VEHICLES,HOME TO SCHOOL TRANSPORT,Transport,Revenue
Walsall Council,http://opendatacommunities.org/id/metropolitan-district-council/walsall,WC111-204,31/12/2019,Childrens,ACE CARS & MINIBUSES LTD,09/12/2019,368.00,52000-WITH DRIVER-HIRE OF VEHICLES,HOME TO SCHOOL TRANSPORT,Transport,Revenue
Walsall Council,http://opendatacommunities.org/id/metropolitan-district-council/walsall,WC111-205,31/12/2019,Childrens,ACE CARS & MINIBUSES LTD,09/12/2019,383.60,52000-WITH DRIVER-HIRE OF VEHICLES,HOME TO SCHOOL TRANSPORT,Transport,Revenue
Walsall Council,http://opendatacommunities.org/id/metropolitan-district-council/walsall,WC111-206,31/12/2019,Childrens,ACE CARS & MINIBUSES LTD,09/12/2019,383.60,52000-WITH DRIVER-HIRE OF VEHICLES,HOME TO SCHOOL TRANSPORT,Transport,Revenue
Walsall Council,http://opendatacommunities.org/id/metropolitan-district-council/walsall,WC111-207,31/12/2019,Childrens,ACE CARS & MINIBUSES LTD,09/12/2019,383.60,52000-WITH DRIVER-HIRE OF VEHICLES,HOME TO SCHOOL TRANSPORT,Transport,Revenue
Walsall Council,http://opendatacommunities.org/id/metropolitan-district-council/walsall,WC111-208,31/12/2019,Childrens,ACE CARS & MINIBUSES LTD,09/12/2019,383.60,52000-WITH DRIVER-HIRE OF VEHICLES,HOME TO SCHOOL TRANSPORT,Transport,Revenue
Walsall Council,http://opendatacommunities.org/id/metropolitan-district-council/walsall,WC111-209,31/12/2019,Childrens,ACE CARS & MINIBUSES LTD,09/12/2019,383.60,52000-WITH DRIVER-HIRE OF VEHICLES,HOME TO SCHOOL TRANSPORT,Transport,Revenue
Walsall Council,http://opendatacommunities.org/id/metropolitan-district-council/walsall,WC111-210,31/12/2019,Childrens,ACE CARS & MINIBUSES LTD,09/12/2019,383.60,52000-WITH DRIVER-HIRE OF VEHICLES,HOME TO SCHOOL TRANSPORT,Transport,Revenue
Walsall Council,http://opendatacommunities.org/id/metropolitan-district-council/walsall,WC111-211,31/12/2019,Childrens,ACE CARS & MINIBUSES LTD,09/12/2019,414.00,52000-WITH DRIVER-HIRE OF VEHICLES,HOME TO SCHOOL TRANSPORT,Transport,Revenue
Walsall Council,http://opendatacommunities.org/id/metropolitan-district-council/walsall,WC111-212,31/12/2019,Childrens,ACE CARS & MINIBUSES LTD,09/12/2019,414.00,52000-WITH DRIVER-HIRE OF VEHICLES,HOME TO SCHOOL TRANSPORT,Transport,Revenue
Walsall Council,http://opendatacommunities.org/id/metropolitan-district-council/walsall,WC111-213,31/12/2019,Childrens,ACE CARS & MINIBUSES LTD,09/12/2019,414.00,52000-WITH DRIVER-HIRE OF VEHICLES,HOME TO SCHOOL TRANSPORT,Transport,Revenue
Walsall Council,http://opendatacommunities.org/id/metropolitan-district-council/walsall,WC111-214,31/12/2019,Childrens,ACE CARS & MINIBUSES LTD,09/12/2019,414.00,52000-WITH DRIVER-HIRE OF VEHICLES,HOME TO SCHOOL TRANSPORT,Transport,Revenue
Walsall Council,http://opendatacommunities.org/id/metropolitan-district-council/walsall,WC111-215,31/12/2019,Childrens,ACE CARS & MINIBUSES LTD,09/12/2019,414.00,52000-WITH DRIVER-HIRE OF VEHICLES,HOME TO SCHOOL TRANSPORT,Transport,Revenue
Walsall Council,http://opendatacommunities.org/id/metropolitan-district-council/walsall,WC111-216,31/12/2019,Childrens,ACE CARS & MINIBUSES LTD,09/12/2019,414.00,52000-WITH DRIVER-HIRE OF VEHICLES,HOME TO SCHOOL TRANSPORT,Transport,Revenue
Walsall Council,http://opendatacommunities.org/id/metropolitan-district-council/walsall,WC111-217,31/12/2019,Childrens,ACE CARS & MINIBUSES LTD,09/12/2019,414.00,52000-WITH DRIVER-HIRE OF VEHICLES,HOME TO SCHOOL TRANSPORT,Transport,Revenue
Walsall Council,http://opendatacommunities.org/id/metropolitan-district-council/walsall,WC111-218,31/12/2019,Childrens,ACE CARS & MINIBUSES LTD,09/12/2019,414.00,52000-WITH DRIVER-HIRE OF VEHICLES,HOME TO SCHOOL TRANSPORT,Transport,Revenue
Walsall Council,http://opendatacommunities.org/id/metropolitan-district-council/walsall,WC111-219,31/12/2019,Childrens,ACE CARS & MINIBUSES LTD,09/12/2019,414.00,52000-WITH DRIVER-HIRE OF VEHICLES,HOME TO SCHOOL TRANSPORT,Transport,Revenue
Walsall Council,http://opendatacommunities.org/id/metropolitan-district-council/walsall,WC111-220,31/12/2019,Childrens,ACE CARS & MINIBUSES LTD,09/12/2019,414.00,52000-WITH DRIVER-HIRE OF VEHICLES,HOME TO SCHOOL TRANSPORT,Transport,Revenue
Walsall Council,http://opendatacommunities.org/id/metropolitan-district-council/walsall,WC111-221,31/12/2019,Childrens,ACE CARS & MINIBUSES LTD,09/12/2019,437.20,52000-WITH DRIVER-HIRE OF VEHICLES,HOME TO SCHOOL TRANSPORT,Transport,Revenue
Walsall Council,http://opendatacommunities.org/id/metropolitan-district-council/walsall,WC111-222,31/12/2019,Childrens,ACE CARS & MINIBUSES LTD,09/12/2019,437.20,52000-WITH DRIVER-HIRE OF VEHICLES,HOME TO SCHOOL TRANSPORT,Transport,Revenue
Walsall Council,http://opendatacommunities.org/id/metropolitan-district-council/walsall,WC111-223,31/12/2019,Childrens,ACE CARS & MINIBUSES LTD,09/12/2019,437.20,52000-WITH DRIVER-HIRE OF VEHICLES,HOME TO SCHOOL TRANSPORT,Transport,Revenue
Walsall Council,http://opendatacommunities.org/id/metropolitan-district-council/walsall,WC111-224,31/12/2019,Childrens,ACE CARS & MINIBUSES LTD,09/12/2019,437.20,52000-WITH DRIVER-HIRE OF VEHICLES,HOME TO SCHOOL TRANSPORT,Transport,Revenue
Walsall Council,http://opendatacommunities.org/id/metropolitan-district-council/walsall,WC111-225,31/12/2019,Childrens,ACE CARS & MINIBUSES LTD,09/12/2019,437.20,52000-WITH DRIVER-HIRE OF VEHICLES,HOME TO SCHOOL TRANSPORT,Transport,Revenue
Walsall Council,http://opendatacommunities.org/id/metropolitan-district-council/walsall,WC111-226,31/12/2019,Childrens,ACE CARS & MINIBUSES LTD,09/12/2019,437.20,52000-WITH DRIVER-HIRE OF VEHICLES,HOME TO SCHOOL TRANSPORT,Transport,Revenue
Walsall Council,http://opendatacommunities.org/id/metropolitan-district-council/walsall,WC111-227,31/12/2019,Childrens,ACE CARS & MINIBUSES LTD,09/12/2019,437.20,52000-WITH DRIVER-HIRE OF VEHICLES,HOME TO SCHOOL TRANSPORT,Transport,Revenue
Walsall Council,http://opendatacommunities.org/id/metropolitan-district-council/walsall,WC111-228,31/12/2019,Childrens,ACE CARS & MINIBUSES LTD,09/12/2019,437.20,52000-WITH DRIVER-HIRE OF VEHICLES,HOME TO SCHOOL TRANSPORT,Transport,Revenue
Walsall Council,http://opendatacommunities.org/id/metropolitan-district-council/walsall,WC111-229,31/12/2019,Childrens,ACE CARS & MINIBUSES LTD,09/12/2019,437.20,52000-WITH DRIVER-HIRE OF VEHICLES,HOME TO SCHOOL TRANSPORT,Transport,Revenue
Walsall Council,http://opendatacommunities.org/id/metropolitan-district-council/walsall,WC111-230,31/12/2019,Childrens,ACE CARS & MINIBUSES LTD,09/12/2019,450.00,52000-WITH DRIVER-HIRE OF VEHICLES,HOME TO SCHOOL TRANSPORT,Transport,Revenue
Walsall Council,http://opendatacommunities.org/id/metropolitan-district-council/walsall,WC111-231,31/12/2019,Childrens,ACE CARS & MINIBUSES LTD,09/12/2019,506.00,52000-WITH DRIVER-HIRE OF VEHICLES,HOME TO SCHOOL TRANSPORT,Transport,Revenue
Walsall Council,http://opendatacommunities.org/id/metropolitan-district-council/walsall,WC111-232,31/12/2019,Childrens,ACE CARS & MINIBUSES LTD,09/12/2019,506.00,52000-WITH DRIVER-HIRE OF VEHICLES,HOME TO SCHOOL TRANSPORT,Transport,Revenue
Walsall Council,http://opendatacommunities.org/id/metropolitan-district-council/walsall,WC111-233,31/12/2019,Childrens,ACE CARS & MINIBUSES LTD,09/12/2019,506.00,52000-WITH DRIVER-HIRE OF VEHICLES,HOME TO SCHOOL TRANSPORT,Transport,Revenue
Walsall Council,http://opendatacommunities.org/id/metropolitan-district-council/walsall,WC111-234,31/12/2019,Childrens,ACE CARS & MINIBUSES LTD,09/12/2019,506.00,52000-WITH DRIVER-HIRE OF VEHICLES,HOME TO SCHOOL TRANSPORT,Transport,Revenue
Walsall Council,http://opendatacommunities.org/id/metropolitan-district-council/walsall,WC111-235,31/12/2019,Childrens,ACE CARS & MINIBUSES LTD,09/12/2019,513.20,52000-WITH DRIVER-HIRE OF VEHICLES,HOME TO SCHOOL TRANSPORT,Transport,Revenue
Walsall Council,http://opendatacommunities.org/id/metropolitan-district-council/walsall,WC111-236,31/12/2019,Childrens,ACE CARS & MINIBUSES LTD,09/12/2019,513.20,52000-WITH DRIVER-HIRE OF VEHICLES,HOME TO SCHOOL TRANSPORT,Transport,Revenue
Walsall Council,http://opendatacommunities.org/id/metropolitan-district-council/walsall,WC111-237,31/12/2019,Childrens,ACE CARS & MINIBUSES LTD,09/12/2019,513.20,52000-WITH DRIVER-HIRE OF VEHICLES,HOME TO SCHOOL TRANSPORT,Transport,Revenue
Walsall Council,http://opendatacommunities.org/id/metropolitan-district-council/walsall,WC111-238,31/12/2019,Childrens,ACE CARS & MINIBUSES LTD,09/12/2019,513.20,52000-WITH DRIVER-HIRE OF VEHICLES,HOME TO SCHOOL TRANSPORT,Transport,Revenue
Walsall Council,http://opendatacommunities.org/id/metropolitan-district-council/walsall,WC111-239,31/12/2019,Childrens,ACE CARS & MINIBUSES LTD,09/12/2019,513.20,52000-WITH DRIVER-HIRE OF VEHICLES,HOME TO SCHOOL TRANSPORT,Transport,Revenue
Walsall Council,http://opendatacommunities.org/id/metropolitan-district-council/walsall,WC111-240,31/12/2019,Childrens,ACE CARS & MINIBUSES LTD,09/12/2019,513.20,52000-WITH DRIVER-HIRE OF VEHICLES,HOME TO SCHOOL TRANSPORT,Transport,Revenue
Walsall Council,http://opendatacommunities.org/id/metropolitan-district-council/walsall,WC111-241,31/12/2019,Childrens,ACE CARS & MINIBUSES LTD,09/12/2019,550.00,52000-WITH DRIVER-HIRE OF VEHICLES,HOME TO SCHOOL TRANSPORT,Transport,Revenue
Walsall Council,http://opendatacommunities.org/id/metropolitan-district-council/walsall,WC111-242,31/12/2019,Childrens,ACE CARS & MINIBUSES LTD,09/12/2019,550.00,52000-WITH DRIVER-HIRE OF VEHICLES,HOME TO SCHOOL TRANSPORT,Transport,Revenue
Walsall Council,http://opendatacommunities.org/id/metropolitan-district-council/walsall,WC111-243,31/12/2019,Childrens,ACE CARS & MINIBUSES LTD,09/12/2019,550.00,52000-WITH DRIVER-HIRE OF VEHICLES,HOME TO SCHOOL TRANSPORT,Transport,Revenue
Walsall Council,http://opendatacommunities.org/id/metropolitan-district-council/walsall,WC111-244,31/12/2019,Childrens,ACE CARS & MINIBUSES LTD,09/12/2019,550.00,52000-WITH DRIVER-HIRE OF VEHICLES,HOME TO SCHOOL TRANSPORT,Transport,Revenue
Walsall Council,http://opendatacommunities.org/id/metropolitan-district-council/walsall,WC111-245,31/12/2019,Childrens,ACE CARS & MINIBUSES LTD,09/12/2019,598.00,52000-WITH DRIVER-HIRE OF VEHICLES,HOME TO SCHOOL TRANSPORT,Transport,Revenue
Walsall Council,http://opendatacommunities.org/id/metropolitan-district-council/walsall,WC111-246,31/12/2019,Childrens,ACE CARS & MINIBUSES LTD,09/12/2019,598.00,52000-WITH DRIVER-HIRE OF VEHICLES,HOME TO SCHOOL TRANSPORT,Transport,Revenue
Walsall Council,http://opendatacommunities.org/id/metropolitan-district-council/walsall,WC111-247,31/12/2019,Childrens,ACE CARS & MINIBUSES LTD,09/12/2019,598.00,52000-WITH DRIVER-HIRE OF VEHICLES,HOME TO SCHOOL TRANSPORT,Transport,Revenue
Walsall Council,http://opendatacommunities.org/id/metropolitan-district-council/walsall,WC111-248,31/12/2019,Childrens,ACE CARS & MINIBUSES LTD,09/12/2019,598.00,52000-WITH DRIVER-HIRE OF VEHICLES,HOME TO SCHOOL TRANSPORT,Transport,Revenue
Walsall Council,http://opendatacommunities.org/id/metropolitan-district-council/walsall,WC111-249,31/12/2019,Childrens,ACE CARS & MINIBUSES LTD,09/12/2019,598.00,52000-WITH DRIVER-HIRE OF VEHICLES,HOME TO SCHOOL TRANSPORT,Transport,Revenue
Walsall Council,http://opendatacommunities.org/id/metropolitan-district-council/walsall,WC111-250,31/12/2019,Childrens,ACE CARS & MINIBUSES LTD,09/12/2019,618.00,52000-WITH DRIVER-HIRE OF VEHICLES,HOME TO SCHOOL TRANSPORT,Transport,Revenue
Walsall Council,http://opendatacommunities.org/id/metropolitan-district-council/walsall,WC111-251,31/12/2019,Childrens,ACE CARS & MINIBUSES LTD,09/12/2019,618.00,52000-WITH DRIVER-HIRE OF VEHICLES,HOME TO SCHOOL TRANSPORT,Transport,Revenue
Walsall Council,http://opendatacommunities.org/id/metropolitan-district-council/walsall,WC111-252,31/12/2019,Childrens,ACE CARS & MINIBUSES LTD,09/12/2019,618.00,52000-WITH DRIVER-HIRE OF VEHICLES,HOME TO SCHOOL TRANSPORT,Transport,Revenue
Walsall Council,http://opendatacommunities.org/id/metropolitan-district-council/walsall,WC111-253,31/12/2019,Childrens,ACE CARS & MINIBUSES LTD,09/12/2019,618.00,52000-WITH DRIVER-HIRE OF VEHICLES,HOME TO SCHOOL TRANSPORT,Transport,Revenue
Walsall Council,http://opendatacommunities.org/id/metropolitan-district-council/walsall,WC111-254,31/12/2019,Childrens,ACE CARS & MINIBUSES LTD,09/12/2019,618.00,52000-WITH DRIVER-HIRE OF VEHICLES,HOME TO SCHOOL TRANSPORT,Transport,Revenue
Walsall Council,http://opendatacommunities.org/id/metropolitan-district-council/walsall,WC111-255,31/12/2019,Childrens,ACE CARS & MINIBUSES LTD,09/12/2019,618.00,52000-WITH DRIVER-HIRE OF VEHICLES,HOME TO SCHOOL TRANSPORT,Transport,Revenue
Walsall Council,http://opendatacommunities.org/id/metropolitan-district-council/walsall,WC111-256,31/12/2019,Childrens,ACE CARS & MINIBUSES LTD,09/12/2019,618.00,52000-WITH DRIVER-HIRE OF VEHICLES,HOME TO SCHOOL TRANSPORT,Transport,Revenue
Walsall Council,http://opendatacommunities.org/id/metropolitan-district-council/walsall,WC111-257,31/12/2019,Childrens,ACE CARS & MINIBUSES LTD,09/12/2019,618.00,52000-WITH DRIVER-HIRE OF VEHICLES,HOME TO SCHOOL TRANSPORT,Transport,Revenue
Walsall Council,http://opendatacommunities.org/id/metropolitan-district-council/walsall,WC111-258,31/12/2019,Childrens,ACE CARS & MINIBUSES LTD,09/12/2019,618.00,52000-WITH DRIVER-HIRE OF VEHICLES,HOME TO SCHOOL TRANSPORT,Transport,Revenue
Walsall Council,http://opendatacommunities.org/id/metropolitan-district-council/walsall,WC111-259,31/12/2019,Childrens,ACE CARS & MINIBUSES LTD,09/12/2019,618.00,52000-WITH DRIVER-HIRE OF VEHICLES,HOME TO SCHOOL TRANSPORT,Transport,Revenue
Walsall Council,http://opendatacommunities.org/id/metropolitan-district-council/walsall,WC111-260,31/12/2019,Childrens,ACE CARS & MINIBUSES LTD,09/12/2019,632.40,52000-WITH DRIVER-HIRE OF VEHICLES,HOME TO SCHOOL TRANSPORT,Transport,Revenue
Walsall Council,http://opendatacommunities.org/id/metropolitan-district-council/walsall,WC111-261,31/12/2019,Childrens,ACE CARS & MINIBUSES LTD,09/12/2019,632.40,52000-WITH DRIVER-HIRE OF VEHICLES,HOME TO SCHOOL TRANSPORT,Transport,Revenue
Walsall Council,http://opendatacommunities.org/id/metropolitan-district-council/walsall,WC111-262,31/12/2019,Childrens,ACE CARS & MINIBUSES LTD,09/12/2019,632.40,52000-WITH DRIVER-HIRE OF VEHICLES,HOME TO SCHOOL TRANSPORT,Transport,Revenue
Walsall Council,http://opendatacommunities.org/id/metropolitan-district-council/walsall,WC111-263,31/12/2019,Childrens,ACE CARS & MINIBUSES LTD,09/12/2019,632.40,52000-WITH DRIVER-HIRE OF VEHICLES,HOME TO SCHOOL TRANSPORT,Transport,Revenue
Walsall Council,http://opendatacommunities.org/id/metropolitan-district-council/walsall,WC111-264,31/12/2019,Childrens,ACE CARS & MINIBUSES LTD,09/12/2019,687.60,52000-WITH DRIVER-HIRE OF VEHICLES,HOME TO SCHOOL TRANSPORT,Transport,Revenue
Walsall Council,http://opendatacommunities.org/id/metropolitan-district-council/walsall,WC111-265,31/12/2019,Childrens,ACE CARS & MINIBUSES LTD,09/12/2019,687.60,52000-WITH DRIVER-HIRE OF VEHICLES,HOME TO SCHOOL TRANSPORT,Transport,Revenue
Walsall Council,http://opendatacommunities.org/id/metropolitan-district-council/walsall,WC111-266,31/12/2019,Childrens,ACE CARS & MINIBUSES LTD,09/12/2019,687.60,52000-WITH DRIVER-HIRE OF VEHICLES,HOME TO SCHOOL TRANSPORT,Transport,Revenue
Walsall Council,http://opendatacommunities.org/id/metropolitan-district-council/walsall,WC111-267,31/12/2019,Childrens,ACE CARS & MINIBUSES LTD,09/12/2019,687.60,52000-WITH DRIVER-HIRE OF VEHICLES,HOME TO SCHOOL TRANSPORT,Transport,Revenue
Walsall Council,http://opendatacommunities.org/id/metropolitan-district-council/walsall,WC111-268,31/12/2019,Childrens,ACE CARS & MINIBUSES LTD,09/12/2019,690.00,52000-WITH DRIVER-HIRE OF VEHICLES,HOME TO SCHOOL TRANSPORT,Transport,Revenue
Walsall Council,http://opendatacommunities.org/id/metropolitan-district-council/walsall,WC111-269,31/12/2019,Childrens,ACE CARS & MINIBUSES LTD,09/12/2019,690.00,52000-WITH DRIVER-HIRE OF VEHICLES,HOME TO SCHOOL TRANSPORT,Transport,Revenue
Walsall Council,http://opendatacommunities.org/id/metropolitan-district-council/walsall,WC111-270,31/12/2019,Childrens,ACE CARS & MINIBUSES LTD,09/12/2019,690.00,52000-WITH DRIVER-HIRE OF VEHICLES,HOME TO SCHOOL TRANSPORT,Transport,Revenue
Walsall Council,http://opendatacommunities.org/id/metropolitan-district-council/walsall,WC111-271,31/12/2019,Childrens,ACE CARS & MINIBUSES LTD,09/12/2019,690.00,52000-WITH DRIVER-HIRE OF VEHICLES,HOME TO SCHOOL TRANSPORT,Transport,Revenue
Walsall Council,http://opendatacommunities.org/id/metropolitan-district-council/walsall,WC111-272,31/12/2019,Childrens,ACE CARS & MINIBUSES LTD,09/12/2019,710.00,52000-WITH DRIVER-HIRE OF VEHICLES,HOME TO SCHOOL TRANSPORT,Transport,Revenue
Walsall Council,http://opendatacommunities.org/id/metropolitan-district-council/walsall,WC111-273,31/12/2019,Childrens,ACE CARS & MINIBUSES LTD,09/12/2019,772.40,52000-WITH DRIVER-HIRE OF VEHICLES,HOME TO SCHOOL TRANSPORT,Transport,Revenue
Walsall Council,http://opendatacommunities.org/id/metropolitan-district-council/walsall,WC111-274,31/12/2019,Childrens,ACE CARS & MINIBUSES LTD,09/12/2019,772.40,52000-WITH DRIVER-HIRE OF VEHICLES,HOME TO SCHOOL TRANSPORT,Transport,Revenue
Walsall Council,http://opendatacommunities.org/id/metropolitan-district-council/walsall,WC111-275,31/12/2019,Childrens,ACE CARS & MINIBUSES LTD,09/12/2019,772.40,52000-WITH DRIVER-HIRE OF VEHICLES,HOME TO SCHOOL TRANSPORT,Transport,Revenue
Walsall Council,http://opendatacommunities.org/id/metropolitan-district-council/walsall,WC111-276,31/12/2019,Childrens,ACE CARS & MINIBUSES LTD,09/12/2019,772.40,52000-WITH DRIVER-HIRE OF VEHICLES,HOME TO SCHOOL TRANSPORT,Transport,Revenue
Walsall Council,http://opendatacommunities.org/id/metropolitan-district-council/walsall,WC111-277,31/12/2019,Childrens,ACE CARS & MINIBUSES LTD,09/12/2019,800.00,52000-WITH DRIVER-HIRE OF VEHICLES,HOME TO SCHOOL TRANSPORT,Transport,Revenue
Walsall Council,http://opendatacommunities.org/id/metropolitan-district-council/walsall,WC111-278,31/12/2019,Childrens,ACE CARS & MINIBUSES LTD,09/12/2019,972.40,52000-WITH DRIVER-HIRE OF VEHICLES,HOME TO SCHOOL TRANSPORT,Transport,Revenue
Walsall Council,http://opendatacommunities.org/id/metropolitan-district-council/walsall,WC111-279,31/12/2019,Childrens,ACE CARS & MINIBUSES LTD,09/12/2019,972.40,52000-WITH DRIVER-HIRE OF VEHICLES,HOME TO SCHOOL TRANSPORT,Transport,Revenue
Walsall Council,http://opendatacommunities.org/id/metropolitan-district-council/walsall,WC111-280,31/12/2019,Childrens,ACE CARS & MINIBUSES LTD,09/12/2019,972.40,52000-WITH DRIVER-HIRE OF VEHICLES,HOME TO SCHOOL TRANSPORT,Transport,Revenue
Walsall Council,http://opendatacommunities.org/id/metropolitan-district-council/walsall,WC111-281,31/12/2019,Childrens,ACE CARS & MINIBUSES LTD,09/12/2019,972.40,52000-WITH DRIVER-HIRE OF VEHICLES,HOME TO SCHOOL TRANSPORT,Transport,Revenue
Walsall Council,http://opendatacommunities.org/id/metropolitan-district-council/walsall,WC111-282,31/12/2019,Childrens,ACE CARS & MINIBUSES LTD,09/12/2019,"1,000.00",52000-WITH DRIVER-HIRE OF VEHICLES,HOME TO SCHOOL TRANSPORT,Transport,Revenue
Walsall Council,http://opendatacommunities.org/id/metropolitan-district-council/walsall,WC111-283,31/12/2019,Childrens,ACE CARS & MINIBUSES LTD,09/12/2019,"1,000.00",52000-WITH DRIVER-HIRE OF VEHICLES,HOME TO SCHOOL TRANSPORT,Transport,Revenue
Walsall Council,http://opendatacommunities.org/id/metropolitan-district-council/walsall,WC111-284,31/12/2019,Childrens,ACE CARS & MINIBUSES LTD,09/12/2019,"1,000.00",52000-WITH DRIVER-HIRE OF VEHICLES,HOME TO SCHOOL TRANSPORT,Transport,Revenue
Walsall Council,http://opendatacommunities.org/id/metropolitan-district-council/walsall,WC111-285,31/12/2019,Childrens,ACE CARS & MINIBUSES LTD,09/12/2019,"1,250.00",52000-WITH DRIVER-HIRE OF VEHICLES,HOME TO SCHOOL TRANSPORT,Transport,Revenue
Walsall Council,http://opendatacommunities.org/id/metropolitan-district-council/walsall,WC111-286,31/12/2019,Childrens,ACE CARS & MINIBUSES LTD,09/12/2019,"1,250.00",52000-WITH DRIVER-HIRE OF VEHICLES,HOME TO SCHOOL TRANSPORT,Transport,Revenue
Walsall Council,http://opendatacommunities.org/id/metropolitan-district-council/walsall,WC111-287,31/12/2019,Childrens,ACE CARS & MINIBUSES LTD,09/12/2019,"1,250.00",52000-WITH DRIVER-HIRE OF VEHICLES,HOME TO SCHOOL TRANSPORT,Transport,Revenue
Walsall Council,http://opendatacommunities.org/id/metropolitan-district-council/walsall,WC111-288,31/12/2019,Childrens,ACE CARS & MINIBUSES LTD,09/12/2019,"1,300.00",52000-WITH DRIVER-HIRE OF VEHICLES,HOME TO SCHOOL TRANSPORT,Transport,Revenue
Walsall Council,http://opendatacommunities.org/id/metropolitan-district-council/walsall,WC111-289,31/12/2019,Childrens,ACE CARS & MINIBUSES LTD,09/12/2019,"1,400.00",52000-WITH DRIVER-HIRE OF VEHICLES,HOME TO SCHOOL TRANSPORT,Transport,Revenue
Walsall Council,http://opendatacommunities.org/id/metropolitan-district-council/walsall,WC111-290,31/12/2019,Childrens,ACE CARS & MINIBUSES LTD,09/12/2019,"1,500.00",52000-WITH DRIVER-HIRE OF VEHICLES,HOME TO SCHOOL TRANSPORT,Transport,Revenue
Walsall Council,http://opendatacommunities.org/id/metropolitan-district-council/walsall,WC111-291,31/12/2019,Childrens,ACE CARS & MINIBUSES LTD,09/12/2019,"1,540.00",52000-WITH DRIVER-HIRE OF VEHICLES,HOME TO SCHOOL TRANSPORT,Transport,Revenue
Walsall Council,http://opendatacommunities.org/id/metropolitan-district-council/walsall,WC111-292,31/12/2019,Childrens,ACE CARS & MINIBUSES LTD,09/12/2019,"1,560.00",52000-WITH DRIVER-HIRE OF VEHICLES,HOME TO SCHOOL TRANSPORT,Transport,Revenue
Walsall Council,http://opendatacommunities.org/id/metropolitan-district-council/walsall,WC111-293,31/12/2019,Childrens,ACE CARS & MINIBUSES LTD,09/12/2019,"1,560.00",52000-WITH DRIVER-HIRE OF VEHICLES,HOME TO SCHOOL TRANSPORT,Transport,Revenue
Walsall Council,http://opendatacommunities.org/id/metropolitan-district-council/walsall,WC111-294,31/12/2019,Childrens,ACE CARS & MINIBUSES LTD,09/12/2019,"1,580.00",52000-WITH DRIVER-HIRE OF VEHICLES,HOME TO SCHOOL TRANSPORT,Transport,Revenue
Walsall Council,http://opendatacommunities.org/id/metropolitan-district-council/walsall,WC111-295,31/12/2019,Resources and Transformation,ACE PA HIRE,01/12/2019,330.00,64010-CIVIC EVENTS,MAYORS SECRETARIAT,Supplies & Services,Revenue
Walsall Council,http://opendatacommunities.org/id/metropolitan-district-council/walsall,WC111-296,31/12/2019,Resources and Transformation,ACE PA HIRE,01/12/2019,780.00,64010-CIVIC EVENTS,MAYORS SECRETARIAT,Supplies & Services,Revenue
Walsall Council,http://opendatacommunities.org/id/metropolitan-district-council/walsall,WC111-297,31/12/2019,Adult Social Care,ACEPAY LTD (COTTAGE NUR HOME),05/12/2019,"1,774.96",73500-RESIDENTIAL,PHYSICAL SUPPORT,Third Party Payments,Revenue
Walsall Council,http://opendatacommunities.org/id/metropolitan-district-council/walsall,WC111-298,31/12/2019,Adult Social Care,ACEPAY LTD (COTTAGE NUR HOME),05/12/2019,"1,914.04",73502-NURSING,SOCIAL SUPPORT,Third Party Payments,Revenue
Walsall Council,http://opendatacommunities.org/id/metropolitan-district-council/walsall,WC111-299,31/12/2019,Adult Social Care,ACEPAY LTD (COTTAGE NUR HOME),05/12/2019,"1,972.24",73501-RESIDENTIAL EMI,PHYSICAL SUPPORT,Third Party Payments,Revenue
Walsall Council,http://opendatacommunities.org/id/metropolitan-district-council/walsall,WC111-300,31/12/2019,Adult Social Care,ACEPAY LTD (COTTAGE NUR HOME),05/12/2019,"2,143.72",73502-NURSING,PHYSICAL SUPPORT,Third Party Payments,Revenue
Walsall Council,http://opendatacommunities.org/id/metropolitan-district-council/walsall,WC111-301,31/12/2019,Adult Social Care,ACEPAY LTD (COTTAGE NUR HOME),05/12/2019,"2,143.72",73502-NURSING,PHYSICAL SUPPORT,Third Party Payments,Revenue
Walsall Council,http://opendatacommunities.org/id/metropolitan-district-council/walsall,WC111-302,31/12/2019,Adult Social Care,ACEPAY LTD (COTTAGE NUR HOME),05/12/2019,"2,143.72",73502-NURSING,PHYSICAL SUPPORT,Third Party Payments,Revenue
Walsall Council,http://opendatacommunities.org/id/metropolitan-district-council/walsall,WC111-303,31/12/2019,Adult Social Care,ACEPAY LTD (COTTAGE NUR HOME),05/12/2019,"2,143.72",73502-NURSING,PHYSICAL SUPPORT,Third Party Payments,Revenue
Walsall Council,http://opendatacommunities.org/id/metropolitan-district-council/walsall,WC111-304,31/12/2019,Adult Social Care,ACEPAY LTD (COTTAGE NUR HOME),05/12/2019,"2,143.72",73502-NURSING,SOCIAL SUPPORT,Third Party Payments,Revenue
Walsall Council,http://opendatacommunities.org/id/metropolitan-district-council/walsall,WC111-305,31/12/2019,Adult Social Care,ACEPAY LTD (COTTAGE NUR HOME),05/12/2019,"2,143.72",73502-NURSING,SUPPORT WITH MEMORY & COGNITION,Third Party Payments,Revenue
Walsall Council,http://opendatacommunities.org/id/metropolitan-district-council/walsall,WC111-306,31/12/2019,Adult Social Care,ACEPAY LTD (COTTAGE NUR HOME),05/12/2019,"2,143.72",73502-NURSING,PHYSICAL SUPPORT,Third Party Payments,Revenue
Walsall Council,http://opendatacommunities.org/id/metropolitan-district-council/walsall,WC111-307,31/12/2019,Adult Social Care,ACEPAY LTD (COTTAGE NUR HOME),05/12/2019,"2,143.72",73502-NURSING,SUPPORT WITH MEMORY & COGNITION,Third Party Payments,Revenue
Walsall Council,http://opendatacommunities.org/id/metropolitan-district-council/walsall,WC111-308,31/12/2019,Adult Social Care,ACEPAY LTD (COTTAGE NUR HOME),05/12/2019,"2,143.72",73502-NURSING,PHYSICAL SUPPORT,Third Party Payments,Revenue
Walsall Council,http://opendatacommunities.org/id/metropolitan-district-council/walsall,WC111-309,31/12/2019,Adult Social Care,ACEPAY LTD (COTTAGE NUR HOME),05/12/2019,"2,143.72",73502-NURSING,SUPPORT WITH MEMORY & COGNITION,Third Party Payments,Revenue
Walsall Council,http://opendatacommunities.org/id/metropolitan-district-council/walsall,WC111-310,31/12/2019,Adult Social Care,ACEPAY LTD (COTTAGE NUR HOME),05/12/2019,"2,143.72",73502-NURSING,PHYSICAL SUPPORT,Third Party Payments,Revenue
Walsall Council,http://opendatacommunities.org/id/metropolitan-district-council/walsall,WC111-311,31/12/2019,Adult Social Care,ACEPAY LTD (COTTAGE NUR HOME),05/12/2019,"2,143.72",73502-NURSING,PHYSICAL SUPPORT,Third Party Payments,Revenue
Walsall Council,http://opendatacommunities.org/id/metropolitan-district-council/walsall,WC111-312,31/12/2019,Adult Social Care,ACEPAY LTD (COTTAGE NUR HOME),05/12/2019,"2,343.72",73502-NURSING,PHYSICAL SUPPORT,Third Party Payments,Revenue
Walsall Council,http://opendatacommunities.org/id/metropolitan-district-council/walsall,WC111-313,31/12/2019,Childrens,ACORN CARE & EDUCATION LTD (SALES),09/12/2019,"-12,853.33",66502-TOP UP FUNDING -GRANTS TO SCHOOLS,INDEPENDENT PROVIDERS - SPECIAL & AP,Third Party Payments,Revenue
Walsall Council,http://opendatacommunities.org/id/metropolitan-district-council/walsall,WC111-314,31/12/2019,Childrens,ACORN CARE & EDUCATION LTD (SALES),19/12/2019,"6,333.33",66502-TOP UP FUNDING -GRANTS TO SCHOOLS,INDEPENDENT PROVIDERS - SPECIAL & AP,Third Party Payments,Revenue
Walsall Council,http://opendatacommunities.org/id/metropolitan-district-council/walsall,WC111-315,31/12/2019,Childrens,ACORN CARE & EDUCATION LTD (SALES),20/12/2019,"14,053.33",66502-TOP UP FUNDING -GRANTS TO SCHOOLS,INDEPENDENT PROVIDERS - SPECIAL & AP,Third Party Payments,Revenue
Walsall Council,http://opendatacommunities.org/id/metropolitan-district-council/walsall,WC111-316,31/12/2019,Childrens,ACORN CARE & EDUCATION LTD (SALES),20/12/2019,"14,456.67",66502-TOP UP FUNDING -GRANTS TO SCHOOLS,INDEPENDENT PROVIDERS - SPECIAL & AP,Third Party Payments,Revenue
Walsall Council,http://opendatacommunities.org/id/metropolitan-district-council/walsall,WC111-317,31/12/2019,Childrens,ACORN CARE & EDUCATION LTD (SALES),20/12/2019,"14,456.67",66502-TOP UP FUNDING -GRANTS TO SCHOOLS,INDEPENDENT PROVIDERS - SPECIAL & AP,Third Party Payments,Revenue
Walsall Council,http://opendatacommunities.org/id/metropolitan-district-council/walsall,WC111-318,31/12/2019,Childrens,ACORN CARE & EDUCATION LTD (SALES),20/12/2019,"14,456.67",66502-TOP UP FUNDING -GRANTS TO SCHOOLS,INDEPENDENT PROVIDERS - SPECIAL & AP,Third Party Payments,Revenue
Walsall Council,http://opendatacommunities.org/id/metropolitan-district-council/walsall,WC111-319,31/12/2019,Childrens,ACORN CARE & EDUCATION LTD (SALES),19/12/2019,"16,166.67",66502-TOP UP FUNDING -GRANTS TO SCHOOLS,INDEPENDENT PROVIDERS - SPECIAL & AP,Third Party Payments,Revenue
Walsall Council,http://opendatacommunities.org/id/metropolitan-district-council/walsall,WC111-320,31/12/2019,Childrens,ACORN CARE & EDUCATION LTD (SALES),19/12/2019,"16,500.00",66502-TOP UP FUNDING -GRANTS TO SCHOOLS,INDEPENDENT PROVIDERS - SPECIAL & AP,Third Party Payments,Revenue
Walsall Council,http://opendatacommunities.org/id/metropolitan-district-council/walsall,WC111-321,31/12/2019,Childrens,ACORN CARE & EDUCATION LTD (SALES),20/12/2019,"16,500.00",66502-TOP UP FUNDING -GRANTS TO SCHOOLS,INDEPENDENT PROVIDERS - SPECIAL & AP,Third Party Payments,Revenue
Walsall Council,http://opendatacommunities.org/id/metropolitan-district-council/walsall,WC111-322,31/12/2019,Adult Social Care,ACORN REST HOME,05/12/2019,"1,267.83",73500-RESIDENTIAL,PHYSICAL SUPPORT,Third Party Payments,Revenue
Walsall Council,http://opendatacommunities.org/id/metropolitan-district-council/walsall,WC111-323,31/12/2019,Economy & Environment,ACTION DIGITAL MEDIA LTD T/A ACTION GRAPHICS,17/12/2019,749.84,"62521-INTERPRETATION,TRANSLATION & HUMAN AIDS TO TRANSCRIPTION",EXHIBITIONS - SPECIAL PROJECTS/PARTNERSHIPS,Supplies & Services,Revenue
Walsall Council,http://opendatacommunities.org/id/metropolitan-district-council/walsall,WC111-324,31/12/2019,Childrens,ACTIVE CARE SOLUTIONS LTD,01/12/2019,318.83,74037-INDEPENDENT FOSTER CARE-OTH AGENCY PROVISION,EXTERNAL FOSTER CARE PROVISION,Third Party Payments,Revenue
Walsall Council,http://opendatacommunities.org/id/metropolitan-district-council/walsall,WC111-325,31/12/2019,Childrens,ACTIVE CARE SOLUTIONS LTD,01/12/2019,"2,662.80",74037-INDEPENDENT FOSTER CARE-OTH AGENCY PROVISION,EXTERNAL FOSTER CARE PROVISION,Third Party Payments,Revenue
Walsall Council,http://opendatacommunities.org/id/metropolitan-district-council/walsall,WC111-326,31/12/2019,Childrens,ACTIVE CARE SOLUTIONS LTD,19/12/2019,"2,662.80",74037-INDEPENDENT FOSTER CARE-OTH AGENCY PROVISION,EXTERNAL FOSTER CARE PROVISION,Third Party Payments,Revenue
Walsall Council,http://opendatacommunities.org/id/metropolitan-district-council/walsall,WC111-327,31/12/2019,Childrens,ACTIVE CARE SOLUTIONS LTD,01/12/2019,"3,024.00",74037-INDEPENDENT FOSTER CARE-OTH AGENCY PROVISION,EXTERNAL FOSTER CARE PROVISION,Third Party Payments,Revenue
Walsall Council,http://opendatacommunities.org/id/metropolitan-district-council/walsall,WC111-328,31/12/2019,Childrens,ACTIVE CARE SOLUTIONS LTD,19/12/2019,"3,024.00",74037-INDEPENDENT FOSTER CARE-OTH AGENCY PROVISION,EXTERNAL FOSTER CARE PROVISION,Third Party Payments,Revenue
Walsall Council,http://opendatacommunities.org/id/metropolitan-district-council/walsall,WC111-329,31/12/2019,Childrens,ACTIVE CARE SOLUTIONS LTD,01/12/2019,"3,220.00",74037-INDEPENDENT FOSTER CARE-OTH AGENCY PROVISION,EXTERNAL FOSTER CARE PROVISION,Third Party Payments,Revenue
Walsall Council,http://opendatacommunities.org/id/metropolitan-district-council/walsall,WC111-330,31/12/2019,Childrens,ACTIVE CARE SOLUTIONS LTD,19/12/2019,"3,220.00",74037-INDEPENDENT FOSTER CARE-OTH AGENCY PROVISION,EXTERNAL FOSTER CARE PROVISION,Third Party Payments,Revenue
Walsall Council,http://opendatacommunities.org/id/metropolitan-district-council/walsall,WC111-331,31/12/2019,Adult Social Care,REDACTED,11/12/2019,553.15,73506-DIRECT PAYMENT,LEARNING DISABILITY SUPPORT,Third Party Payments,Revenue
Walsall Council,http://opendatacommunities.org/id/metropolitan-district-council/walsall,WC111-332,31/12/2019,Economy & Environment,ADEL ROOTSTEIN LTD,11/12/2019,540.00,62527-VISUAL ARTS,NAG - TEMPORARY EXHIBITIONS,Supplies & Services,Revenue
Walsall Council,http://opendatacommunities.org/id/metropolitan-district-council/walsall,WC111-333,31/12/2019,Adult Social Care,REDACTED,11/12/2019,"1,291.45",73506-DIRECT PAYMENT,PHYSICAL SUPPORT,Third Party Payments,Revenue
Walsall Council,http://opendatacommunities.org/id/metropolitan-district-council/walsall,WC111-334,31/12/2019,Economy & Environment,ADMIRAL SELF STORAGE LTD,02/12/2019,"1,877.14",63000-PROFESSIONAL FEES AND SERVICES,EMERGENCY PLANNING,Supplies & Services,Revenue
Walsall Council,http://opendatacommunities.org/id/metropolitan-district-council/walsall,WC111-335,31/12/2019,Childrens,REDACTED,17/12/2019,333.12,74510-RESIDENTS ORDERS,ADOPTION ALLOWANCES,Third Party Payments,Revenue
Walsall Council,http://opendatacommunities.org/id/metropolitan-district-council/walsall,WC111-336,31/12/2019,Childrens,REDACTED,17/12/2019,361.12,74510-RESIDENTS ORDERS,ADOPTION ALLOWANCES,Third Party Payments,Revenue
Walsall Council,http://opendatacommunities.org/id/metropolitan-district-council/walsall,WC111-337,31/12/2019,Adult Social Care,REDACTED,11/12/2019,"2,604.00",73506-DIRECT PAYMENT,LEARNING DISABILITY SUPPORT,Third Party Payments,Revenue
Walsall Council,http://opendatacommunities.org/id/metropolitan-district-council/walsall,WC111-338,31/12/2019,Adult Social Care,ADVANCE HEALTH CARE (UK) LTD,18/12/2019,-630.71,73507-DOMICILIARY CARE,PHYSICAL SUPPORT,Third Party Payments,Revenue
Walsall Council,http://opendatacommunities.org/id/metropolitan-district-council/walsall,WC111-339,31/12/2019,Adult Social Care,ADVANCE HEALTH CARE (UK) LTD,18/12/2019,-448.06,73507-DOMICILIARY CARE,PHYSICAL SUPPORT,Third Party Payments,Revenue
Walsall Council,http://opendatacommunities.org/id/metropolitan-district-council/walsall,WC111-340,31/12/2019,Adult Social Care,ADVANCE HEALTH CARE (UK) LTD,18/12/2019,-445.66,73507-DOMICILIARY CARE,PHYSICAL SUPPORT,Third Party Payments,Revenue
Walsall Council,http://opendatacommunities.org/id/metropolitan-district-council/walsall,WC111-341,31/12/2019,Adult Social Care,ADVANCE HEALTH CARE (UK) LTD,18/12/2019,-444.47,73507-DOMICILIARY CARE,PHYSICAL SUPPORT,Third Party Payments,Revenue
Walsall Council,http://opendatacommunities.org/id/metropolitan-district-council/walsall,WC111-342,31/12/2019,Adult Social Care,ADVANCE HEALTH CARE (UK) LTD,18/12/2019,-442.58,73507-DOMICILIARY CARE,PHYSICAL SUPPORT,Third Party Payments,Revenue
Walsall Council,http://opendatacommunities.org/id/metropolitan-district-council/walsall,WC111-343,31/12/2019,Adult Social Care,ADVANCE HEALTH CARE (UK) LTD,18/12/2019,-442.58,73507-DOMICILIARY CARE,PHYSICAL SUPPORT,Third Party Payments,Revenue
Walsall Council,http://opendatacommunities.org/id/metropolitan-district-council/walsall,WC111-344,31/12/2019,Adult Social Care,ADVANCE HEALTH CARE (UK) LTD,18/12/2019,-439.30,73507-DOMICILIARY CARE,PHYSICAL SUPPORT,Third Party Payments,Revenue
Walsall Council,http://opendatacommunities.org/id/metropolitan-district-council/walsall,WC111-345,31/12/2019,Adult Social Care,ADVANCE HEALTH CARE (UK) LTD,18/12/2019,-439.07,73507-DOMICILIARY CARE,PHYSICAL SUPPORT,Third Party Payments,Revenue
Walsall Council,http://opendatacommunities.org/id/metropolitan-district-council/walsall,WC111-346,31/12/2019,Adult Social Care,ADVANCE HEALTH CARE (UK) LTD,18/12/2019,-439.07,73507-DOMICILIARY CARE,PHYSICAL SUPPORT,Third Party Payments,Revenue
Walsall Council,http://opendatacommunities.org/id/metropolitan-district-council/walsall,WC111-347,31/12/2019,Adult Social Care,ADVANCE HEALTH CARE (UK) LTD,18/12/2019,-439.07,73507-DOMICILIARY CARE,PHYSICAL SUPPORT,Third Party Payments,Revenue
Walsall Council,http://opendatacommunities.org/id/metropolitan-district-council/walsall,WC111-348,31/12/2019,Adult Social Care,ADVANCE HEALTH CARE (UK) LTD,18/12/2019,-435.79,73507-DOMICILIARY CARE,PHYSICAL SUPPORT,Third Party Payments,Revenue
Walsall Council,http://opendatacommunities.org/id/metropolitan-district-council/walsall,WC111-349,31/12/2019,Adult Social Care,ADVANCE HEALTH CARE (UK) LTD,18/12/2019,-387.12,73507-DOMICILIARY CARE,PHYSICAL SUPPORT,Third Party Payments,Revenue
Walsall Council,http://opendatacommunities.org/id/metropolitan-district-council/walsall,WC111-350,31/12/2019,Adult Social Care,ADVANCE HEALTH CARE (UK) LTD,09/12/2019,257.94,73025-PROFESSIONAL SERVICES-PRIV CONTRACTOR & OTHER AGENCIES,INTERMEDIATE CARE SERVICE,Third Party Payments,Revenue
Walsall Council,http://opendatacommunities.org/id/metropolitan-district-council/walsall,WC111-351,31/12/2019,Adult Social Care,ADVANCE HEALTH CARE (UK) LTD,13/12/2019,279.44,73025-PROFESSIONAL SERVICES-PRIV CONTRACTOR & OTHER AGENCIES,INTERMEDIATE CARE SERVICE,Third Party Payments,Revenue
Walsall Council,http://opendatacommunities.org/id/metropolitan-district-council/walsall,WC111-352,31/12/2019,Adult Social Care,ADVANCE HEALTH CARE (UK) LTD,02/12/2019,283.02,73025-PROFESSIONAL SERVICES-PRIV CONTRACTOR & OTHER AGENCIES,INTERMEDIATE CARE SERVICE,Third Party Payments,Revenue
Walsall Council,http://opendatacommunities.org/id/metropolitan-district-council/walsall,WC111-353,31/12/2019,Adult Social Care,ADVANCE HEALTH CARE (UK) LTD,17/12/2019,293.77,73025-PROFESSIONAL SERVICES-PRIV CONTRACTOR & OTHER AGENCIES,INTERMEDIATE CARE SERVICE,Third Party Payments,Revenue
Walsall Council,http://opendatacommunities.org/id/metropolitan-district-council/walsall,WC111-354,31/12/2019,Adult Social Care,ADVANCE HEALTH CARE (UK) LTD,09/12/2019,321.50,73507-DOMICILIARY CARE,SOCIAL SUPPORT,Third Party Payments,Revenue
Walsall Council,http://opendatacommunities.org/id/metropolitan-district-council/walsall,WC111-355,31/12/2019,Adult Social Care,ADVANCE HEALTH CARE (UK) LTD,17/12/2019,336.76,73025-PROFESSIONAL SERVICES-PRIV CONTRACTOR & OTHER AGENCIES,INTERMEDIATE CARE SERVICE,Third Party Payments,Revenue
Walsall Council,http://opendatacommunities.org/id/metropolitan-district-council/walsall,WC111-356,31/12/2019,Adult Social Care,ADVANCE HEALTH CARE (UK) LTD,09/12/2019,342.95,73507-DOMICILIARY CARE,PHYSICAL SUPPORT,Third Party Payments,Revenue
Walsall Council,http://opendatacommunities.org/id/metropolitan-district-council/walsall,WC111-357,31/12/2019,Adult Social Care,ADVANCE HEALTH CARE (UK) LTD,17/12/2019,351.09,73025-PROFESSIONAL SERVICES-PRIV CONTRACTOR & OTHER AGENCIES,INTERMEDIATE CARE SERVICE,Third Party Payments,Revenue
Walsall Council,http://opendatacommunities.org/id/metropolitan-district-council/walsall,WC111-358,31/12/2019,Adult Social Care,ADVANCE HEALTH CARE (UK) LTD,17/12/2019,358.25,73025-PROFESSIONAL SERVICES-PRIV CONTRACTOR & OTHER AGENCIES,INTERMEDIATE CARE SERVICE,Third Party Payments,Revenue
Walsall Council,http://opendatacommunities.org/id/metropolitan-district-council/walsall,WC111-359,31/12/2019,Adult Social Care,ADVANCE HEALTH CARE (UK) LTD,09/12/2019,385.19,73507-DOMICILIARY CARE,PHYSICAL SUPPORT,Third Party Payments,Revenue
Walsall Council,http://opendatacommunities.org/id/metropolitan-district-council/walsall,WC111-360,31/12/2019,Adult Social Care,ADVANCE HEALTH CARE (UK) LTD,09/12/2019,390.11,73507-DOMICILIARY CARE,PHYSICAL SUPPORT,Third Party Payments,Revenue
Walsall Council,http://opendatacommunities.org/id/metropolitan-district-council/walsall,WC111-361,31/12/2019,Adult Social Care,ADVANCE HEALTH CARE (UK) LTD,12/12/2019,394.08,73025-PROFESSIONAL SERVICES-PRIV CONTRACTOR & OTHER AGENCIES,INTERMEDIATE CARE SERVICE,Third Party Payments,Revenue
Walsall Council,http://opendatacommunities.org/id/metropolitan-district-council/walsall,WC111-362,31/12/2019,Adult Social Care,ADVANCE HEALTH CARE (UK) LTD,02/12/2019,415.57,73025-PROFESSIONAL SERVICES-PRIV CONTRACTOR & OTHER AGENCIES,INTERMEDIATE CARE SERVICE,Third Party Payments,Revenue
Walsall Council,http://opendatacommunities.org/id/metropolitan-district-council/walsall,WC111-363,31/12/2019,Adult Social Care,ADVANCE HEALTH CARE (UK) LTD,01/12/2019,422.74,73025-PROFESSIONAL SERVICES-PRIV CONTRACTOR & OTHER AGENCIES,INTERMEDIATE CARE SERVICE,Third Party Payments,Revenue
Walsall Council,http://opendatacommunities.org/id/metropolitan-district-council/walsall,WC111-364,31/12/2019,Adult Social Care,ADVANCE HEALTH CARE (UK) LTD,09/12/2019,426.87,73507-DOMICILIARY CARE,PHYSICAL SUPPORT,Third Party Payments,Revenue
Walsall Council,http://opendatacommunities.org/id/metropolitan-district-council/walsall,WC111-365,31/12/2019,Adult Social Care,ADVANCE HEALTH CARE (UK) LTD,09/12/2019,450.38,73507-DOMICILIARY CARE,PHYSICAL SUPPORT,Third Party Payments,Revenue
Walsall Council,http://opendatacommunities.org/id/metropolitan-district-council/walsall,WC111-366,31/12/2019,Adult Social Care,ADVANCE HEALTH CARE (UK) LTD,01/12/2019,451.40,73025-PROFESSIONAL SERVICES-PRIV CONTRACTOR & OTHER AGENCIES,INTERMEDIATE CARE SERVICE,Third Party Payments,Revenue
Walsall Council,http://opendatacommunities.org/id/metropolitan-district-council/walsall,WC111-367,31/12/2019,Adult Social Care,ADVANCE HEALTH CARE (UK) LTD,01/12/2019,451.40,73025-PROFESSIONAL SERVICES-PRIV CONTRACTOR & OTHER AGENCIES,INTERMEDIATE CARE SERVICE,Third Party Payments,Revenue
Walsall Council,http://opendatacommunities.org/id/metropolitan-district-council/walsall,WC111-368,31/12/2019,Adult Social Care,ADVANCE HEALTH CARE (UK) LTD,01/12/2019,451.40,73025-PROFESSIONAL SERVICES-PRIV CONTRACTOR & OTHER AGENCIES,INTERMEDIATE CARE SERVICE,Third Party Payments,Revenue
Walsall Council,http://opendatacommunities.org/id/metropolitan-district-council/walsall,WC111-369,31/12/2019,Adult Social Care,ADVANCE HEALTH CARE (UK) LTD,01/12/2019,451.40,73025-PROFESSIONAL SERVICES-PRIV CONTRACTOR & OTHER AGENCIES,INTERMEDIATE CARE SERVICE,Third Party Payments,Revenue
Walsall Council,http://opendatacommunities.org/id/metropolitan-district-council/walsall,WC111-370,31/12/2019,Adult Social Care,ADVANCE HEALTH CARE (UK) LTD,01/12/2019,451.40,73025-PROFESSIONAL SERVICES-PRIV CONTRACTOR & OTHER AGENCIES,INTERMEDIATE CARE SERVICE,Third Party Payments,Revenue
Walsall Council,http://opendatacommunities.org/id/metropolitan-district-council/walsall,WC111-371,31/12/2019,Adult Social Care,ADVANCE HEALTH CARE (UK) LTD,01/12/2019,451.40,73025-PROFESSIONAL SERVICES-PRIV CONTRACTOR & OTHER AGENCIES,INTERMEDIATE CARE SERVICE,Third Party Payments,Revenue
Walsall Council,http://opendatacommunities.org/id/metropolitan-district-council/walsall,WC111-372,31/12/2019,Adult Social Care,ADVANCE HEALTH CARE (UK) LTD,01/12/2019,451.40,73025-PROFESSIONAL SERVICES-PRIV CONTRACTOR & OTHER AGENCIES,INTERMEDIATE CARE SERVICE,Third Party Payments,Revenue
Walsall Council,http://opendatacommunities.org/id/metropolitan-district-council/walsall,WC111-373,31/12/2019,Adult Social Care,ADVANCE HEALTH CARE (UK) LTD,02/12/2019,451.40,73025-PROFESSIONAL SERVICES-PRIV CONTRACTOR & OTHER AGENCIES,INTERMEDIATE CARE SERVICE,Third Party Payments,Revenue
Walsall Council,http://opendatacommunities.org/id/metropolitan-district-council/walsall,WC111-374,31/12/2019,Adult Social Care,ADVANCE HEALTH CARE (UK) LTD,02/12/2019,451.40,73025-PROFESSIONAL SERVICES-PRIV CONTRACTOR & OTHER AGENCIES,INTERMEDIATE CARE SERVICE,Third Party Payments,Revenue
Walsall Council,http://opendatacommunities.org/id/metropolitan-district-council/walsall,WC111-375,31/12/2019,Adult Social Care,ADVANCE HEALTH CARE (UK) LTD,02/12/2019,451.40,73025-PROFESSIONAL SERVICES-PRIV CONTRACTOR & OTHER AGENCIES,INTERMEDIATE CARE SERVICE,Third Party Payments,Revenue
Walsall Council,http://opendatacommunities.org/id/metropolitan-district-council/walsall,WC111-376,31/12/2019,Adult Social Care,ADVANCE HEALTH CARE (UK) LTD,02/12/2019,451.40,73025-PROFESSIONAL SERVICES-PRIV CONTRACTOR & OTHER AGENCIES,INTERMEDIATE CARE SERVICE,Third Party Payments,Revenue
Walsall Council,http://opendatacommunities.org/id/metropolitan-district-council/walsall,WC111-377,31/12/2019,Adult Social Care,ADVANCE HEALTH CARE (UK) LTD,02/12/2019,451.40,73025-PROFESSIONAL SERVICES-PRIV CONTRACTOR & OTHER AGENCIES,INTERMEDIATE CARE SERVICE,Third Party Payments,Revenue
Walsall Council,http://opendatacommunities.org/id/metropolitan-district-council/walsall,WC111-378,31/12/2019,Adult Social Care,ADVANCE HEALTH CARE (UK) LTD,02/12/2019,451.40,73025-PROFESSIONAL SERVICES-PRIV CONTRACTOR & OTHER AGENCIES,INTERMEDIATE CARE SERVICE,Third Party Payments,Revenue
Walsall Council,http://opendatacommunities.org/id/metropolitan-district-council/walsall,WC111-379,31/12/2019,Adult Social Care,ADVANCE HEALTH CARE (UK) LTD,09/12/2019,451.40,73025-PROFESSIONAL SERVICES-PRIV CONTRACTOR & OTHER AGENCIES,INTERMEDIATE CARE SERVICE,Third Party Payments,Revenue
Walsall Council,http://opendatacommunities.org/id/metropolitan-district-council/walsall,WC111-380,31/12/2019,Adult Social Care,ADVANCE HEALTH CARE (UK) LTD,09/12/2019,451.40,73025-PROFESSIONAL SERVICES-PRIV CONTRACTOR & OTHER AGENCIES,INTERMEDIATE CARE SERVICE,Third Party Payments,Revenue
Walsall Council,http://opendatacommunities.org/id/metropolitan-district-council/walsall,WC111-381,31/12/2019,Adult Social Care,ADVANCE HEALTH CARE (UK) LTD,09/12/2019,451.40,73025-PROFESSIONAL SERVICES-PRIV CONTRACTOR & OTHER AGENCIES,INTERMEDIATE CARE SERVICE,Third Party Payments,Revenue
Walsall Council,http://opendatacommunities.org/id/metropolitan-district-council/walsall,WC111-382,31/12/2019,Adult Social Care,ADVANCE HEALTH CARE (UK) LTD,09/12/2019,451.40,73025-PROFESSIONAL SERVICES-PRIV CONTRACTOR & OTHER AGENCIES,INTERMEDIATE CARE SERVICE,Third Party Payments,Revenue
Walsall Council,http://opendatacommunities.org/id/metropolitan-district-council/walsall,WC111-383,31/12/2019,Adult Social Care,ADVANCE HEALTH CARE (UK) LTD,12/12/2019,451.40,73025-PROFESSIONAL SERVICES-PRIV CONTRACTOR & OTHER AGENCIES,INTERMEDIATE CARE SERVICE,Third Party Payments,Revenue
Walsall Council,http://opendatacommunities.org/id/metropolitan-district-council/walsall,WC111-384,31/12/2019,Adult Social Care,ADVANCE HEALTH CARE (UK) LTD,12/12/2019,451.40,73025-PROFESSIONAL SERVICES-PRIV CONTRACTOR & OTHER AGENCIES,INTERMEDIATE CARE SERVICE,Third Party Payments,Revenue
Walsall Council,http://opendatacommunities.org/id/metropolitan-district-council/walsall,WC111-385,31/12/2019,Adult Social Care,ADVANCE HEALTH CARE (UK) LTD,12/12/2019,451.40,73025-PROFESSIONAL SERVICES-PRIV CONTRACTOR & OTHER AGENCIES,INTERMEDIATE CARE SERVICE,Third Party Payments,Revenue
Walsall Council,http://opendatacommunities.org/id/metropolitan-district-council/walsall,WC111-386,31/12/2019,Adult Social Care,ADVANCE HEALTH CARE (UK) LTD,13/12/2019,451.40,73025-PROFESSIONAL SERVICES-PRIV CONTRACTOR & OTHER AGENCIES,INTERMEDIATE CARE SERVICE,Third Party Payments,Revenue
Walsall Council,http://opendatacommunities.org/id/metropolitan-district-council/walsall,WC111-387,31/12/2019,Adult Social Care,ADVANCE HEALTH CARE (UK) LTD,13/12/2019,451.40,73025-PROFESSIONAL SERVICES-PRIV CONTRACTOR & OTHER AGENCIES,INTERMEDIATE CARE SERVICE,Third Party Payments,Revenue
Walsall Council,http://opendatacommunities.org/id/metropolitan-district-council/walsall,WC111-388,31/12/2019,Adult Social Care,ADVANCE HEALTH CARE (UK) LTD,13/12/2019,451.40,73025-PROFESSIONAL SERVICES-PRIV CONTRACTOR & OTHER AGENCIES,INTERMEDIATE CARE SERVICE,Third Party Payments,Revenue
Walsall Council,http://opendatacommunities.org/id/metropolitan-district-council/walsall,WC111-389,31/12/2019,Adult Social Care,ADVANCE HEALTH CARE (UK) LTD,13/12/2019,451.40,73025-PROFESSIONAL SERVICES-PRIV CONTRACTOR & OTHER AGENCIES,INTERMEDIATE CARE SERVICE,Third Party Payments,Revenue
Walsall Council,http://opendatacommunities.org/id/metropolitan-district-council/walsall,WC111-390,31/12/2019,Adult Social Care,ADVANCE HEALTH CARE (UK) LTD,17/12/2019,451.40,73025-PROFESSIONAL SERVICES-PRIV CONTRACTOR & OTHER AGENCIES,INTERMEDIATE CARE SERVICE,Third Party Payments,Revenue
Walsall Council,http://opendatacommunities.org/id/metropolitan-district-council/walsall,WC111-391,31/12/2019,Adult Social Care,ADVANCE HEALTH CARE (UK) LTD,17/12/2019,451.40,73025-PROFESSIONAL SERVICES-PRIV CONTRACTOR & OTHER AGENCIES,INTERMEDIATE CARE SERVICE,Third Party Payments,Revenue
Walsall Council,http://opendatacommunities.org/id/metropolitan-district-council/walsall,WC111-392,31/12/2019,Adult Social Care,ADVANCE HEALTH CARE (UK) LTD,12/12/2019,458.56,73025-PROFESSIONAL SERVICES-PRIV CONTRACTOR & OTHER AGENCIES,INTERMEDIATE CARE SERVICE,Third Party Payments,Revenue
Walsall Council,http://opendatacommunities.org/id/metropolitan-district-council/walsall,WC111-393,31/12/2019,Adult Social Care,ADVANCE HEALTH CARE (UK) LTD,13/12/2019,458.56,73025-PROFESSIONAL SERVICES-PRIV CONTRACTOR & OTHER AGENCIES,INTERMEDIATE CARE SERVICE,Third Party Payments,Revenue
Walsall Council,http://opendatacommunities.org/id/metropolitan-district-council/walsall,WC111-394,31/12/2019,Adult Social Care,ADVANCE HEALTH CARE (UK) LTD,17/12/2019,458.56,73025-PROFESSIONAL SERVICES-PRIV CONTRACTOR & OTHER AGENCIES,INTERMEDIATE CARE SERVICE,Third Party Payments,Revenue
Walsall Council,http://opendatacommunities.org/id/metropolitan-district-council/walsall,WC111-395,31/12/2019,Adult Social Care,ADVANCE HEALTH CARE (UK) LTD,02/12/2019,465.73,73025-PROFESSIONAL SERVICES-PRIV CONTRACTOR & OTHER AGENCIES,INTERMEDIATE CARE SERVICE,Third Party Payments,Revenue
Walsall Council,http://opendatacommunities.org/id/metropolitan-district-council/walsall,WC111-396,31/12/2019,Adult Social Care,ADVANCE HEALTH CARE (UK) LTD,09/12/2019,468.37,73507-DOMICILIARY CARE,PHYSICAL SUPPORT,Third Party Payments,Revenue
Walsall Council,http://opendatacommunities.org/id/metropolitan-district-council/walsall,WC111-397,31/12/2019,Adult Social Care,ADVANCE HEALTH CARE (UK) LTD,09/12/2019,493.75,73507-DOMICILIARY CARE,PHYSICAL SUPPORT,Third Party Payments,Revenue
Walsall Council,http://opendatacommunities.org/id/metropolitan-district-council/walsall,WC111-398,31/12/2019,Adult Social Care,ADVANCE HEALTH CARE (UK) LTD,09/12/2019,500.49,73507-DOMICILIARY CARE,PHYSICAL SUPPORT,Third Party Payments,Revenue
Walsall Council,http://opendatacommunities.org/id/metropolitan-district-council/walsall,WC111-399,31/12/2019,Adult Social Care,ADVANCE HEALTH CARE (UK) LTD,09/12/2019,517.67,73507-DOMICILIARY CARE,PHYSICAL SUPPORT,Third Party Payments,Revenue
Walsall Council,http://opendatacommunities.org/id/metropolitan-district-council/walsall,WC111-400,31/12/2019,Adult Social Care,ADVANCE HEALTH CARE (UK) LTD,12/12/2019,544.54,73025-PROFESSIONAL SERVICES-PRIV CONTRACTOR & OTHER AGENCIES,INTERMEDIATE CARE SERVICE,Third Party Payments,Revenue
Walsall Council,http://opendatacommunities.org/id/metropolitan-district-council/walsall,WC111-401,31/12/2019,Adult Social Care,ADVANCE HEALTH CARE (UK) LTD,09/12/2019,564.89,73507-DOMICILIARY CARE,SOCIAL SUPPORT,Third Party Payments,Revenue
Walsall Council,http://opendatacommunities.org/id/metropolitan-district-council/walsall,WC111-402,31/12/2019,Adult Social Care,ADVANCE HEALTH CARE (UK) LTD,09/12/2019,565.95,73507-DOMICILIARY CARE,PHYSICAL SUPPORT,Third Party Payments,Revenue
Walsall Council,http://opendatacommunities.org/id/metropolitan-district-council/walsall,WC111-403,31/12/2019,Adult Social Care,ADVANCE HEALTH CARE (UK) LTD,01/12/2019,566.04,73025-PROFESSIONAL SERVICES-PRIV CONTRACTOR & OTHER AGENCIES,INTERMEDIATE CARE SERVICE,Third Party Payments,Revenue
Walsall Council,http://opendatacommunities.org/id/metropolitan-district-council/walsall,WC111-404,31/12/2019,Adult Social Care,ADVANCE HEALTH CARE (UK) LTD,02/12/2019,566.04,73025-PROFESSIONAL SERVICES-PRIV CONTRACTOR & OTHER AGENCIES,INTERMEDIATE CARE SERVICE,Third Party Payments,Revenue
Walsall Council,http://opendatacommunities.org/id/metropolitan-district-council/walsall,WC111-405,31/12/2019,Adult Social Care,ADVANCE HEALTH CARE (UK) LTD,17/12/2019,566.04,73025-PROFESSIONAL SERVICES-PRIV CONTRACTOR & OTHER AGENCIES,INTERMEDIATE CARE SERVICE,Third Party Payments,Revenue
Walsall Council,http://opendatacommunities.org/id/metropolitan-district-council/walsall,WC111-406,31/12/2019,Adult Social Care,ADVANCE HEALTH CARE (UK) LTD,09/12/2019,644.70,73507-DOMICILIARY CARE,PHYSICAL SUPPORT,Third Party Payments,Revenue
Walsall Council,http://opendatacommunities.org/id/metropolitan-district-council/walsall,WC111-407,31/12/2019,Adult Social Care,ADVANCE HEALTH CARE (UK) LTD,09/12/2019,669.06,73507-DOMICILIARY CARE,PHYSICAL SUPPORT,Third Party Payments,Revenue
Walsall Council,http://opendatacommunities.org/id/metropolitan-district-council/walsall,WC111-408,31/12/2019,Adult Social Care,ADVANCE HEALTH CARE (UK) LTD,01/12/2019,689.11,73025-PROFESSIONAL SERVICES-PRIV CONTRACTOR & OTHER AGENCIES,INTERMEDIATE CARE SERVICE,Third Party Payments,Revenue
Walsall Council,http://opendatacommunities.org/id/metropolitan-district-council/walsall,WC111-409,31/12/2019,Adult Social Care,ADVANCE HEALTH CARE (UK) LTD,02/12/2019,689.11,73025-PROFESSIONAL SERVICES-PRIV CONTRACTOR & OTHER AGENCIES,INTERMEDIATE CARE SERVICE,Third Party Payments,Revenue
Walsall Council,http://opendatacommunities.org/id/metropolitan-district-council/walsall,WC111-410,31/12/2019,Adult Social Care,ADVANCE HEALTH CARE (UK) LTD,12/12/2019,689.11,73025-PROFESSIONAL SERVICES-PRIV CONTRACTOR & OTHER AGENCIES,INTERMEDIATE CARE SERVICE,Third Party Payments,Revenue
Walsall Council,http://opendatacommunities.org/id/metropolitan-district-council/walsall,WC111-411,31/12/2019,Adult Social Care,ADVANCE HEALTH CARE (UK) LTD,17/12/2019,689.11,73025-PROFESSIONAL SERVICES-PRIV CONTRACTOR & OTHER AGENCIES,INTERMEDIATE CARE SERVICE,Third Party Payments,Revenue
Walsall Council,http://opendatacommunities.org/id/metropolitan-district-council/walsall,WC111-412,31/12/2019,Adult Social Care,ADVANCE HEALTH CARE (UK) LTD,09/12/2019,712.84,73507-DOMICILIARY CARE,PHYSICAL SUPPORT,Third Party Payments,Revenue
Walsall Council,http://opendatacommunities.org/id/metropolitan-district-council/walsall,WC111-413,31/12/2019,Adult Social Care,ADVANCE HEALTH CARE (UK) LTD,09/12/2019,747.70,73507-DOMICILIARY CARE,SUPPORT WITH MEMORY & COGNITION,Third Party Payments,Revenue
Walsall Council,http://opendatacommunities.org/id/metropolitan-district-council/walsall,WC111-414,31/12/2019,Adult Social Care,ADVANCE HEALTH CARE (UK) LTD,09/12/2019,749.31,73507-DOMICILIARY CARE,PHYSICAL SUPPORT,Third Party Payments,Revenue
Walsall Council,http://opendatacommunities.org/id/metropolitan-district-council/walsall,WC111-415,31/12/2019,Adult Social Care,ADVANCE HEALTH CARE (UK) LTD,09/12/2019,752.63,73507-DOMICILIARY CARE,PHYSICAL SUPPORT,Third Party Payments,Revenue
Walsall Council,http://opendatacommunities.org/id/metropolitan-district-council/walsall,WC111-416,31/12/2019,Adult Social Care,ADVANCE HEALTH CARE (UK) LTD,06/12/2019,773.83,73507-DOMICILIARY CARE,PHYSICAL SUPPORT,Third Party Payments,Revenue
Walsall Council,http://opendatacommunities.org/id/metropolitan-district-council/walsall,WC111-417,31/12/2019,Adult Social Care,ADVANCE HEALTH CARE (UK) LTD,09/12/2019,779.83,73507-DOMICILIARY CARE,PHYSICAL SUPPORT,Third Party Payments,Revenue
Walsall Council,http://opendatacommunities.org/id/metropolitan-district-council/walsall,WC111-418,31/12/2019,Adult Social Care,ADVANCE HEALTH CARE (UK) LTD,09/12/2019,828.40,73507-DOMICILIARY CARE,PHYSICAL SUPPORT,Third Party Payments,Revenue
Walsall Council,http://opendatacommunities.org/id/metropolitan-district-council/walsall,WC111-419,31/12/2019,Adult Social Care,ADVANCE HEALTH CARE (UK) LTD,17/12/2019,902.79,73025-PROFESSIONAL SERVICES-PRIV CONTRACTOR & OTHER AGENCIES,INTERMEDIATE CARE SERVICE,Third Party Payments,Revenue
Walsall Council,http://opendatacommunities.org/id/metropolitan-district-council/walsall,WC111-420,31/12/2019,Adult Social Care,ADVANCE HEALTH CARE (UK) LTD,09/12/2019,951.46,73507-DOMICILIARY CARE,PHYSICAL SUPPORT,Third Party Payments,Revenue
Walsall Council,http://opendatacommunities.org/id/metropolitan-district-council/walsall,WC111-421,31/12/2019,Adult Social Care,ADVANCE HEALTH CARE (UK) LTD,09/12/2019,975.34,73507-DOMICILIARY CARE,PHYSICAL SUPPORT,Third Party Payments,Revenue
Walsall Council,http://opendatacommunities.org/id/metropolitan-district-council/walsall,WC111-422,31/12/2019,Adult Social Care,ADVANCE HEALTH CARE (UK) LTD,09/12/2019,984.37,73507-DOMICILIARY CARE,PHYSICAL SUPPORT,Third Party Payments,Revenue
Walsall Council,http://opendatacommunities.org/id/metropolitan-district-council/walsall,WC111-423,31/12/2019,Adult Social Care,ADVANCE HEALTH CARE (UK) LTD,09/12/2019,"1,008.97",73507-DOMICILIARY CARE,PHYSICAL SUPPORT,Third Party Payments,Revenue
Walsall Council,http://opendatacommunities.org/id/metropolitan-district-council/walsall,WC111-424,31/12/2019,Adult Social Care,ADVANCE HEALTH CARE (UK) LTD,09/12/2019,"1,080.72",73507-DOMICILIARY CARE,PHYSICAL SUPPORT,Third Party Payments,Revenue
Walsall Council,http://opendatacommunities.org/id/metropolitan-district-council/walsall,WC111-425,31/12/2019,Adult Social Care,ADVANCE HEALTH CARE (UK) LTD,09/12/2019,"1,118.89",73507-DOMICILIARY CARE,PHYSICAL SUPPORT,Third Party Payments,Revenue
Walsall Council,http://opendatacommunities.org/id/metropolitan-district-council/walsall,WC111-426,31/12/2019,Adult Social Care,ADVANCE HEALTH CARE (UK) LTD,09/12/2019,"1,236.34",73507-DOMICILIARY CARE,SOCIAL SUPPORT,Third Party Payments,Revenue
Walsall Council,http://opendatacommunities.org/id/metropolitan-district-council/walsall,WC111-427,31/12/2019,Adult Social Care,ADVANCE HEALTH CARE (UK) LTD,09/12/2019,"1,289.37",73507-DOMICILIARY CARE,SOCIAL SUPPORT,Third Party Payments,Revenue
Walsall Council,http://opendatacommunities.org/id/metropolitan-district-council/walsall,WC111-428,31/12/2019,Adult Social Care,ADVANCE HEALTH CARE (UK) LTD,09/12/2019,"1,301.47",73507-DOMICILIARY CARE,PHYSICAL SUPPORT,Third Party Payments,Revenue
Walsall Council,http://opendatacommunities.org/id/metropolitan-district-council/walsall,WC111-429,31/12/2019,Adult Social Care,ADVANCE HEALTH CARE (UK) LTD,09/12/2019,"1,308.54",73507-DOMICILIARY CARE,PHYSICAL SUPPORT,Third Party Payments,Revenue
Walsall Council,http://opendatacommunities.org/id/metropolitan-district-council/walsall,WC111-430,31/12/2019,Adult Social Care,ADVANCE HEALTH CARE (UK) LTD,09/12/2019,"1,370.84",73507-DOMICILIARY CARE,PHYSICAL SUPPORT,Third Party Payments,Revenue
Walsall Council,http://opendatacommunities.org/id/metropolitan-district-council/walsall,WC111-431,31/12/2019,Adult Social Care,ADVANCE HEALTH CARE (UK) LTD,09/12/2019,"1,425.37",73507-DOMICILIARY CARE,SOCIAL SUPPORT,Third Party Payments,Revenue
Walsall Council,http://opendatacommunities.org/id/metropolitan-district-council/walsall,WC111-432,31/12/2019,Adult Social Care,ADVANCE HEALTH CARE (UK) LTD,09/12/2019,"1,542.51",73507-DOMICILIARY CARE,PHYSICAL SUPPORT,Third Party Payments,Revenue
Walsall Council,http://opendatacommunities.org/id/metropolitan-district-council/walsall,WC111-433,31/12/2019,Adult Social Care,ADVANCE HEALTH CARE (UK) LTD,09/12/2019,"1,571.13",73507-DOMICILIARY CARE,PHYSICAL SUPPORT,Third Party Payments,Revenue
Walsall Council,http://opendatacommunities.org/id/metropolitan-district-council/walsall,WC111-434,31/12/2019,Adult Social Care,ADVANCE HEALTH CARE (UK) LTD,09/12/2019,"1,587.01",73507-DOMICILIARY CARE,PHYSICAL SUPPORT,Third Party Payments,Revenue
Walsall Council,http://opendatacommunities.org/id/metropolitan-district-council/walsall,WC111-435,31/12/2019,Adult Social Care,ADVANCE HEALTH CARE (UK) LTD,09/12/2019,"1,687.74",73507-DOMICILIARY CARE,PHYSICAL SUPPORT,Third Party Payments,Revenue
Walsall Council,http://opendatacommunities.org/id/metropolitan-district-council/walsall,WC111-436,31/12/2019,Adult Social Care,ADVANCE HEALTH CARE (UK) LTD,09/12/2019,"1,688.24",73507-DOMICILIARY CARE,PHYSICAL SUPPORT,Third Party Payments,Revenue
Walsall Council,http://opendatacommunities.org/id/metropolitan-district-council/walsall,WC111-437,31/12/2019,Adult Social Care,ADVANCE HEALTH CARE (UK) LTD,09/12/2019,"1,716.02",73507-DOMICILIARY CARE,PHYSICAL SUPPORT,Third Party Payments,Revenue
Walsall Council,http://opendatacommunities.org/id/metropolitan-district-council/walsall,WC111-438,31/12/2019,Adult Social Care,ADVANCE HEALTH CARE (UK) LTD,09/12/2019,"1,740.40",73507-DOMICILIARY CARE,PHYSICAL SUPPORT,Third Party Payments,Revenue
Walsall Council,http://opendatacommunities.org/id/metropolitan-district-council/walsall,WC111-439,31/12/2019,Adult Social Care,ADVANCE HEALTH CARE (UK) LTD,09/12/2019,"1,744.08",73507-DOMICILIARY CARE,PHYSICAL SUPPORT,Third Party Payments,Revenue
Walsall Council,http://opendatacommunities.org/id/metropolitan-district-council/walsall,WC111-440,31/12/2019,Adult Social Care,ADVANCE HEALTH CARE (UK) LTD,09/12/2019,"1,753.57",73507-DOMICILIARY CARE,PHYSICAL SUPPORT,Third Party Payments,Revenue
Walsall Council,http://opendatacommunities.org/id/metropolitan-district-council/walsall,WC111-441,31/12/2019,Adult Social Care,ADVANCE HEALTH CARE (UK) LTD,09/12/2019,"1,765.64",73507-DOMICILIARY CARE,PHYSICAL SUPPORT,Third Party Payments,Revenue
Walsall Council,http://opendatacommunities.org/id/metropolitan-district-council/walsall,WC111-442,31/12/2019,Adult Social Care,ADVANCE HEALTH CARE (UK) LTD,09/12/2019,"1,768.80",73507-DOMICILIARY CARE,PHYSICAL SUPPORT,Third Party Payments,Revenue
Walsall Council,http://opendatacommunities.org/id/metropolitan-district-council/walsall,WC111-443,31/12/2019,Adult Social Care,ADVANCE HEALTH CARE (UK) LTD,09/12/2019,"1,782.64",73507-DOMICILIARY CARE,PHYSICAL SUPPORT,Third Party Payments,Revenue
Walsall Council,http://opendatacommunities.org/id/metropolitan-district-council/walsall,WC111-444,31/12/2019,Adult Social Care,ADVANCE HEALTH CARE (UK) LTD,09/12/2019,"1,802.51",73507-DOMICILIARY CARE,PHYSICAL SUPPORT,Third Party Payments,Revenue
Walsall Council,http://opendatacommunities.org/id/metropolitan-district-council/walsall,WC111-445,31/12/2019,Adult Social Care,ADVANCE HEALTH CARE (UK) LTD,09/12/2019,"1,812.54",73507-DOMICILIARY CARE,PHYSICAL SUPPORT,Third Party Payments,Revenue
Walsall Council,http://opendatacommunities.org/id/metropolitan-district-council/walsall,WC111-446,31/12/2019,Adult Social Care,ADVANCE HEALTH CARE (UK) LTD,09/12/2019,"1,899.13",73507-DOMICILIARY CARE,PHYSICAL SUPPORT,Third Party Payments,Revenue
Walsall Council,http://opendatacommunities.org/id/metropolitan-district-council/walsall,WC111-447,31/12/2019,Adult Social Care,ADVANCE HEALTH CARE (UK) LTD,09/12/2019,"1,982.60",73507-DOMICILIARY CARE,PHYSICAL SUPPORT,Third Party Payments,Revenue
Walsall Council,http://opendatacommunities.org/id/metropolitan-district-council/walsall,WC111-448,31/12/2019,Adult Social Care,ADVANCE HEALTH CARE (UK) LTD,09/12/2019,"2,072.67",73507-DOMICILIARY CARE,PHYSICAL SUPPORT,Third Party Payments,Revenue
Walsall Council,http://opendatacommunities.org/id/metropolitan-district-council/walsall,WC111-449,31/12/2019,Adult Social Care,ADVANCE HEALTH CARE (UK) LTD,09/12/2019,"2,102.15",73507-DOMICILIARY CARE,SOCIAL SUPPORT,Third Party Payments,Revenue
Walsall Council,http://opendatacommunities.org/id/metropolitan-district-council/walsall,WC111-450,31/12/2019,Adult Social Care,ADVANCE HEALTH CARE (UK) LTD,09/12/2019,"2,152.83",73507-DOMICILIARY CARE,PHYSICAL SUPPORT,Third Party Payments,Revenue
Walsall Council,http://opendatacommunities.org/id/metropolitan-district-council/walsall,WC111-451,31/12/2019,Adult Social Care,ADVANCE HEALTH CARE (UK) LTD,09/12/2019,"2,248.09",73507-DOMICILIARY CARE,PHYSICAL SUPPORT,Third Party Payments,Revenue
Walsall Council,http://opendatacommunities.org/id/metropolitan-district-council/walsall,WC111-452,31/12/2019,Adult Social Care,ADVANCE HEALTH CARE (UK) LTD,09/12/2019,"2,392.94",73507-DOMICILIARY CARE,PHYSICAL SUPPORT,Third Party Payments,Revenue
Walsall Council,http://opendatacommunities.org/id/metropolitan-district-council/walsall,WC111-453,31/12/2019,Adult Social Care,ADVANCE HEALTH CARE (UK) LTD,09/12/2019,"2,988.30",73507-DOMICILIARY CARE,PHYSICAL SUPPORT,Third Party Payments,Revenue
Walsall Council,http://opendatacommunities.org/id/metropolitan-district-council/walsall,WC111-454,31/12/2019,Adult Social Care,ADVANCE HEALTH CARE (UK) LTD,30/12/2019,"24,087.93",73507-DOMICILIARY CARE,PHYSICAL SUPPORT,Third Party Payments,Revenue
Walsall Council,http://opendatacommunities.org/id/metropolitan-district-council/walsall,WC111-455,31/12/2019,Economy & Environment,ADVANCE PHARMA LTD T/A PLECK PHARMACY,20/12/2019,477.80,63253-PAYMENT TO CONTRACTOR,SMOKING CESSATION,Third Party Payments,Revenue
Walsall Council,http://opendatacommunities.org/id/metropolitan-district-council/walsall,WC111-456,31/12/2019,Economy & Environment,ADVANCE PHARMA LTD T/A PLECK PHARMACY,23/12/2019,744.28,63253-PAYMENT TO CONTRACTOR,SMOKING CESSATION,Third Party Payments,Revenue
Walsall Council,http://opendatacommunities.org/id/metropolitan-district-council/walsall,WC111-457,31/12/2019,Economy & Environment,AEBI SCHMIDT UK LIMITED,11/12/2019,405.48,73025-PROFESSIONAL SERVICES-PRIV CONTRACTOR & OTHER AGENCIES,FLEET,Third Party Payments,Revenue
Walsall Council,http://opendatacommunities.org/id/metropolitan-district-council/walsall,WC111-458,31/12/2019,Economy & Environment,AEBI SCHMIDT UK LIMITED,11/12/2019,467.32,60500-GENERAL MATERIALS,STREET CLEANSING,Supplies & Services,Revenue
Walsall Council,http://opendatacommunities.org/id/metropolitan-district-council/walsall,WC111-459,31/12/2019,Economy & Environment,AECOM LIMITED,13/12/2019,"9,105.75",01001-OTHER CONSULTANTS FEES,CFR 1219 DARLASTON MONITORING AND EVALUATION,Capital,Capital
Walsall Council,http://opendatacommunities.org/id/metropolitan-district-council/walsall,WC111-460,31/12/2019,Adult Social Care,REDACTED,11/12/2019,"2,907.00",73506-DIRECT PAYMENT,LEARNING DISABILITY SUPPORT,Third Party Payments,Revenue
Walsall Council,http://opendatacommunities.org/id/metropolitan-district-council/walsall,WC111-461,31/12/2019,Economy & Environment,ALBERT JAGGER LTD,01/12/2019,403.80,60514-MATERIALS TO STORES,FLEET PARTS STOCK ACCOUNT,Supplies & Services,Revenue
Walsall Council,http://opendatacommunities.org/id/metropolitan-district-council/walsall,WC111-462,31/12/2019,Childrens,ALBRIGHTON CARE LTD,01/12/2019,"9,980.00",74036-EXTERNAL RESIDENTIAL CARE-OTH AGENCY PROVISION,INDEPENDENT RESIDENTIAL HOMES,Third Party Payments,Revenue
Walsall Council,http://opendatacommunities.org/id/metropolitan-district-council/walsall,WC111-463,31/12/2019,Childrens,ALBRIGHTON CARE LTD,19/12/2019,"9,980.00",74036-EXTERNAL RESIDENTIAL CARE-OTH AGENCY PROVISION,INDEPENDENT RESIDENTIAL HOMES,Third Party Payments,Revenue
Walsall Council,http://opendatacommunities.org/id/metropolitan-district-council/walsall,WC111-464,31/12/2019,Economy & Environment,ALDERBROOK HEALTHCARE LTD,11/12/2019,"2,489.80",63000-PROFESSIONAL FEES AND SERVICES,CORONERS SERVICE,Supplies & Services,Revenue
Walsall Council,http://opendatacommunities.org/id/metropolitan-district-council/walsall,WC111-465,31/12/2019,Adult Social Care,ALDERGROVE MANOR LTD,05/12/2019,"1,972.24",73501-RESIDENTIAL EMI,MENTAL HEALTH SUPPORT,Third Party Payments,Revenue
Walsall Council,http://opendatacommunities.org/id/metropolitan-district-council/walsall,WC111-466,31/12/2019,Adult Social Care,ALDERGROVE MANOR LTD,05/12/2019,"1,972.24",73501-RESIDENTIAL EMI,PHYSICAL SUPPORT,Third Party Payments,Revenue
Walsall Council,http://opendatacommunities.org/id/metropolitan-district-council/walsall,WC111-467,31/12/2019,Adult Social Care,ALDERGROVE MANOR LTD,05/12/2019,"2,143.72",73502-NURSING,PHYSICAL SUPPORT,Third Party Payments,Revenue
Walsall Council,http://opendatacommunities.org/id/metropolitan-district-council/walsall,WC111-468,31/12/2019,Childrens,ALDRIDGE & BARONS LIMITED,09/12/2019,"-1,471.24",52000-WITH DRIVER-HIRE OF VEHICLES,HOME TO SCHOOL TRANSPORT,Transport,Revenue
Walsall Council,http://opendatacommunities.org/id/metropolitan-district-council/walsall,WC111-469,31/12/2019,Childrens,ALDRIDGE & BARONS LIMITED,09/12/2019,-624.42,52000-WITH DRIVER-HIRE OF VEHICLES,HOME TO SCHOOL TRANSPORT,Transport,Revenue
Walsall Council,http://opendatacommunities.org/id/metropolitan-district-council/walsall,WC111-470,31/12/2019,Childrens,ALDRIDGE & BARONS LIMITED,09/12/2019,-564.00,52000-WITH DRIVER-HIRE OF VEHICLES,HOME TO SCHOOL TRANSPORT,Transport,Revenue
Walsall Council,http://opendatacommunities.org/id/metropolitan-district-council/walsall,WC111-471,31/12/2019,Childrens,ALDRIDGE & BARONS LIMITED,09/12/2019,-535.00,52000-WITH DRIVER-HIRE OF VEHICLES,HOME TO SCHOOL TRANSPORT,Transport,Revenue
Walsall Council,http://opendatacommunities.org/id/metropolitan-district-council/walsall,WC111-472,31/12/2019,Childrens,ALDRIDGE & BARONS LIMITED,09/12/2019,-528.00,52000-WITH DRIVER-HIRE OF VEHICLES,HOME TO SCHOOL TRANSPORT,Transport,Revenue
Walsall Council,http://opendatacommunities.org/id/metropolitan-district-council/walsall,WC111-473,31/12/2019,Childrens,ALDRIDGE & BARONS LIMITED,09/12/2019,-478.80,52000-WITH DRIVER-HIRE OF VEHICLES,HOME TO SCHOOL TRANSPORT,Transport,Revenue
Walsall Council,http://opendatacommunities.org/id/metropolitan-district-council/walsall,WC111-474,31/12/2019,Childrens,ALDRIDGE & BARONS LIMITED,09/12/2019,-471.40,52000-WITH DRIVER-HIRE OF VEHICLES,HOME TO SCHOOL TRANSPORT,Transport,Revenue
Walsall Council,http://opendatacommunities.org/id/metropolitan-district-council/walsall,WC111-475,31/12/2019,Childrens,ALDRIDGE & BARONS LIMITED,09/12/2019,-446.50,52000-WITH DRIVER-HIRE OF VEHICLES,HOME TO SCHOOL TRANSPORT,Transport,Revenue
Walsall Council,http://opendatacommunities.org/id/metropolitan-district-council/walsall,WC111-476,31/12/2019,Childrens,ALDRIDGE & BARONS LIMITED,09/12/2019,-442.80,52000-WITH DRIVER-HIRE OF VEHICLES,HOME TO SCHOOL TRANSPORT,Transport,Revenue
Walsall Council,http://opendatacommunities.org/id/metropolitan-district-council/walsall,WC111-477,31/12/2019,Childrens,ALDRIDGE & BARONS LIMITED,09/12/2019,-390.80,52000-WITH DRIVER-HIRE OF VEHICLES,HOME TO SCHOOL TRANSPORT,Transport,Revenue
Walsall Council,http://opendatacommunities.org/id/metropolitan-district-council/walsall,WC111-478,31/12/2019,Childrens,ALDRIDGE & BARONS LIMITED,09/12/2019,-309.56,52000-WITH DRIVER-HIRE OF VEHICLES,HOME TO SCHOOL TRANSPORT,Transport,Revenue
Walsall Council,http://opendatacommunities.org/id/metropolitan-district-council/walsall,WC111-479,31/12/2019,Childrens,ALDRIDGE & BARONS LIMITED,09/12/2019,-307.20,52000-WITH DRIVER-HIRE OF VEHICLES,HOME TO SCHOOL TRANSPORT,Transport,Revenue
Walsall Council,http://opendatacommunities.org/id/metropolitan-district-council/walsall,WC111-480,31/12/2019,Childrens,ALDRIDGE & BARONS LIMITED,09/12/2019,291.60,52000-WITH DRIVER-HIRE OF VEHICLES,HOME TO SCHOOL TRANSPORT,Transport,Revenue
Walsall Council,http://opendatacommunities.org/id/metropolitan-district-council/walsall,WC111-481,31/12/2019,Childrens,ALDRIDGE & BARONS LIMITED,09/12/2019,297.20,52000-WITH DRIVER-HIRE OF VEHICLES,HOME TO SCHOOL TRANSPORT,Transport,Revenue
Walsall Council,http://opendatacommunities.org/id/metropolitan-district-council/walsall,WC111-482,31/12/2019,Childrens,ALDRIDGE & BARONS LIMITED,09/12/2019,297.20,52000-WITH DRIVER-HIRE OF VEHICLES,HOME TO SCHOOL TRANSPORT,Transport,Revenue
Walsall Council,http://opendatacommunities.org/id/metropolitan-district-council/walsall,WC111-483,31/12/2019,Childrens,ALDRIDGE & BARONS LIMITED,09/12/2019,297.20,52000-WITH DRIVER-HIRE OF VEHICLES,HOME TO SCHOOL TRANSPORT,Transport,Revenue
Walsall Council,http://opendatacommunities.org/id/metropolitan-district-council/walsall,WC111-484,31/12/2019,Childrens,ALDRIDGE & BARONS LIMITED,09/12/2019,297.20,52000-WITH DRIVER-HIRE OF VEHICLES,HOME TO SCHOOL TRANSPORT,Transport,Revenue
Walsall Council,http://opendatacommunities.org/id/metropolitan-district-council/walsall,WC111-485,31/12/2019,Childrens,ALDRIDGE & BARONS LIMITED,09/12/2019,297.20,52000-WITH DRIVER-HIRE OF VEHICLES,HOME TO SCHOOL TRANSPORT,Transport,Revenue
Walsall Council,http://opendatacommunities.org/id/metropolitan-district-council/walsall,WC111-486,31/12/2019,Childrens,ALDRIDGE & BARONS LIMITED,09/12/2019,297.20,52000-WITH DRIVER-HIRE OF VEHICLES,HOME TO SCHOOL TRANSPORT,Transport,Revenue
Walsall Council,http://opendatacommunities.org/id/metropolitan-district-council/walsall,WC111-487,31/12/2019,Childrens,ALDRIDGE & BARONS LIMITED,09/12/2019,297.20,52000-WITH DRIVER-HIRE OF VEHICLES,HOME TO SCHOOL TRANSPORT,Transport,Revenue
Walsall Council,http://opendatacommunities.org/id/metropolitan-district-council/walsall,WC111-488,31/12/2019,Childrens,ALDRIDGE & BARONS LIMITED,09/12/2019,300.24,52000-WITH DRIVER-HIRE OF VEHICLES,HOME TO SCHOOL TRANSPORT,Transport,Revenue
Walsall Council,http://opendatacommunities.org/id/metropolitan-district-council/walsall,WC111-489,31/12/2019,Childrens,ALDRIDGE & BARONS LIMITED,09/12/2019,320.00,52000-WITH DRIVER-HIRE OF VEHICLES,HOME TO SCHOOL TRANSPORT,Transport,Revenue
Walsall Council,http://opendatacommunities.org/id/metropolitan-district-council/walsall,WC111-490,31/12/2019,Childrens,ALDRIDGE & BARONS LIMITED,09/12/2019,320.00,52000-WITH DRIVER-HIRE OF VEHICLES,HOME TO SCHOOL TRANSPORT,Transport,Revenue
Walsall Council,http://opendatacommunities.org/id/metropolitan-district-council/walsall,WC111-491,31/12/2019,Childrens,ALDRIDGE & BARONS LIMITED,09/12/2019,320.00,52000-WITH DRIVER-HIRE OF VEHICLES,HOME TO SCHOOL TRANSPORT,Transport,Revenue
Walsall Council,http://opendatacommunities.org/id/metropolitan-district-council/walsall,WC111-492,31/12/2019,Childrens,ALDRIDGE & BARONS LIMITED,09/12/2019,320.00,52000-WITH DRIVER-HIRE OF VEHICLES,HOME TO SCHOOL TRANSPORT,Transport,Revenue
Walsall Council,http://opendatacommunities.org/id/metropolitan-district-council/walsall,WC111-493,31/12/2019,Childrens,ALDRIDGE & BARONS LIMITED,09/12/2019,320.00,52000-WITH DRIVER-HIRE OF VEHICLES,HOME TO SCHOOL TRANSPORT,Transport,Revenue
Walsall Council,http://opendatacommunities.org/id/metropolitan-district-council/walsall,WC111-494,31/12/2019,Childrens,ALDRIDGE & BARONS LIMITED,09/12/2019,320.00,52000-WITH DRIVER-HIRE OF VEHICLES,HOME TO SCHOOL TRANSPORT,Transport,Revenue
Walsall Council,http://opendatacommunities.org/id/metropolitan-district-council/walsall,WC111-495,31/12/2019,Childrens,ALDRIDGE & BARONS LIMITED,09/12/2019,320.00,52000-WITH DRIVER-HIRE OF VEHICLES,HOME TO SCHOOL TRANSPORT,Transport,Revenue
Walsall Council,http://opendatacommunities.org/id/metropolitan-district-council/walsall,WC111-496,31/12/2019,Childrens,ALDRIDGE & BARONS LIMITED,09/12/2019,320.00,52000-WITH DRIVER-HIRE OF VEHICLES,HOME TO SCHOOL TRANSPORT,Transport,Revenue
Walsall Council,http://opendatacommunities.org/id/metropolitan-district-council/walsall,WC111-497,31/12/2019,Childrens,ALDRIDGE & BARONS LIMITED,09/12/2019,320.00,52000-WITH DRIVER-HIRE OF VEHICLES,HOME TO SCHOOL TRANSPORT,Transport,Revenue
Walsall Council,http://opendatacommunities.org/id/metropolitan-district-council/walsall,WC111-498,31/12/2019,Childrens,ALDRIDGE & BARONS LIMITED,09/12/2019,331.60,52000-WITH DRIVER-HIRE OF VEHICLES,HOME TO SCHOOL TRANSPORT,Transport,Revenue
Walsall Council,http://opendatacommunities.org/id/metropolitan-district-council/walsall,WC111-499,31/12/2019,Childrens,ALDRIDGE & BARONS LIMITED,09/12/2019,331.60,52000-WITH DRIVER-HIRE OF VEHICLES,HOME TO SCHOOL TRANSPORT,Transport,Revenue
Walsall Council,http://opendatacommunities.org/id/metropolitan-district-council/walsall,WC111-500,31/12/2019,Childrens,ALDRIDGE & BARONS LIMITED,09/12/2019,331.60,52000-WITH DRIVER-HIRE OF VEHICLES,HOME TO SCHOOL TRANSPORT,Transport,Revenue
Walsall Council,http://opendatacommunities.org/id/metropolitan-district-council/walsall,WC111-501,31/12/2019,Childrens,ALDRIDGE & BARONS LIMITED,09/12/2019,331.60,52000-WITH DRIVER-HIRE OF VEHICLES,HOME TO SCHOOL TRANSPORT,Transport,Revenue
Walsall Council,http://opendatacommunities.org/id/metropolitan-district-council/walsall,WC111-502,31/12/2019,Childrens,ALDRIDGE & BARONS LIMITED,09/12/2019,344.00,52000-WITH DRIVER-HIRE OF VEHICLES,HOME TO SCHOOL TRANSPORT,Transport,Revenue
Walsall Council,http://opendatacommunities.org/id/metropolitan-district-council/walsall,WC111-503,31/12/2019,Childrens,ALDRIDGE & BARONS LIMITED,09/12/2019,344.00,52000-WITH DRIVER-HIRE OF VEHICLES,HOME TO SCHOOL TRANSPORT,Transport,Revenue
Walsall Council,http://opendatacommunities.org/id/metropolitan-district-council/walsall,WC111-504,31/12/2019,Childrens,ALDRIDGE & BARONS LIMITED,09/12/2019,344.00,52000-WITH DRIVER-HIRE OF VEHICLES,HOME TO SCHOOL TRANSPORT,Transport,Revenue
Walsall Council,http://opendatacommunities.org/id/metropolitan-district-council/walsall,WC111-505,31/12/2019,Childrens,ALDRIDGE & BARONS LIMITED,09/12/2019,344.00,52000-WITH DRIVER-HIRE OF VEHICLES,HOME TO SCHOOL TRANSPORT,Transport,Revenue
Walsall Council,http://opendatacommunities.org/id/metropolitan-district-council/walsall,WC111-506,31/12/2019,Childrens,ALDRIDGE & BARONS LIMITED,09/12/2019,350.80,52000-WITH DRIVER-HIRE OF VEHICLES,HOME TO SCHOOL TRANSPORT,Transport,Revenue
Walsall Council,http://opendatacommunities.org/id/metropolitan-district-council/walsall,WC111-507,31/12/2019,Childrens,ALDRIDGE & BARONS LIMITED,09/12/2019,350.80,52000-WITH DRIVER-HIRE OF VEHICLES,HOME TO SCHOOL TRANSPORT,Transport,Revenue
Walsall Council,http://opendatacommunities.org/id/metropolitan-district-council/walsall,WC111-508,31/12/2019,Childrens,ALDRIDGE & BARONS LIMITED,09/12/2019,350.80,52000-WITH DRIVER-HIRE OF VEHICLES,HOME TO SCHOOL TRANSPORT,Transport,Revenue
Walsall Council,http://opendatacommunities.org/id/metropolitan-district-council/walsall,WC111-509,31/12/2019,Childrens,ALDRIDGE & BARONS LIMITED,09/12/2019,352.80,52000-WITH DRIVER-HIRE OF VEHICLES,HOME TO SCHOOL TRANSPORT,Transport,Revenue
Walsall Council,http://opendatacommunities.org/id/metropolitan-district-council/walsall,WC111-510,31/12/2019,Childrens,ALDRIDGE & BARONS LIMITED,09/12/2019,356.00,52000-WITH DRIVER-HIRE OF VEHICLES,HOME TO SCHOOL TRANSPORT,Transport,Revenue
Walsall Council,http://opendatacommunities.org/id/metropolitan-district-council/walsall,WC111-511,31/12/2019,Childrens,ALDRIDGE & BARONS LIMITED,09/12/2019,356.00,52000-WITH DRIVER-HIRE OF VEHICLES,HOME TO SCHOOL TRANSPORT,Transport,Revenue
Walsall Council,http://opendatacommunities.org/id/metropolitan-district-council/walsall,WC111-512,31/12/2019,Childrens,ALDRIDGE & BARONS LIMITED,09/12/2019,356.00,52000-WITH DRIVER-HIRE OF VEHICLES,HOME TO SCHOOL TRANSPORT,Transport,Revenue
Walsall Council,http://opendatacommunities.org/id/metropolitan-district-council/walsall,WC111-513,31/12/2019,Childrens,ALDRIDGE & BARONS LIMITED,09/12/2019,356.00,52000-WITH DRIVER-HIRE OF VEHICLES,HOME TO SCHOOL TRANSPORT,Transport,Revenue
Walsall Council,http://opendatacommunities.org/id/metropolitan-district-council/walsall,WC111-514,31/12/2019,Childrens,ALDRIDGE & BARONS LIMITED,09/12/2019,388.80,52000-WITH DRIVER-HIRE OF VEHICLES,HOME TO SCHOOL TRANSPORT,Transport,Revenue
Walsall Council,http://opendatacommunities.org/id/metropolitan-district-council/walsall,WC111-515,31/12/2019,Childrens,ALDRIDGE & BARONS LIMITED,09/12/2019,388.80,52000-WITH DRIVER-HIRE OF VEHICLES,HOME TO SCHOOL TRANSPORT,Transport,Revenue
Walsall Council,http://opendatacommunities.org/id/metropolitan-district-council/walsall,WC111-516,31/12/2019,Childrens,ALDRIDGE & BARONS LIMITED,09/12/2019,388.80,52000-WITH DRIVER-HIRE OF VEHICLES,HOME TO SCHOOL TRANSPORT,Transport,Revenue
Walsall Council,http://opendatacommunities.org/id/metropolitan-district-council/walsall,WC111-517,31/12/2019,Childrens,ALDRIDGE & BARONS LIMITED,09/12/2019,396.00,52000-WITH DRIVER-HIRE OF VEHICLES,HOME TO SCHOOL TRANSPORT,Transport,Revenue
Walsall Council,http://opendatacommunities.org/id/metropolitan-district-council/walsall,WC111-518,31/12/2019,Childrens,ALDRIDGE & BARONS LIMITED,09/12/2019,396.00,52000-WITH DRIVER-HIRE OF VEHICLES,HOME TO SCHOOL TRANSPORT,Transport,Revenue
Walsall Council,http://opendatacommunities.org/id/metropolitan-district-council/walsall,WC111-519,31/12/2019,Childrens,ALDRIDGE & BARONS LIMITED,09/12/2019,396.00,52000-WITH DRIVER-HIRE OF VEHICLES,HOME TO SCHOOL TRANSPORT,Transport,Revenue
Walsall Council,http://opendatacommunities.org/id/metropolitan-district-council/walsall,WC111-520,31/12/2019,Childrens,ALDRIDGE & BARONS LIMITED,09/12/2019,400.00,52000-WITH DRIVER-HIRE OF VEHICLES,HOME TO SCHOOL TRANSPORT,Transport,Revenue
Walsall Council,http://opendatacommunities.org/id/metropolitan-district-council/walsall,WC111-521,31/12/2019,Childrens,ALDRIDGE & BARONS LIMITED,09/12/2019,400.00,52000-WITH DRIVER-HIRE OF VEHICLES,HOME TO SCHOOL TRANSPORT,Transport,Revenue
Walsall Council,http://opendatacommunities.org/id/metropolitan-district-council/walsall,WC111-522,31/12/2019,Childrens,ALDRIDGE & BARONS LIMITED,09/12/2019,430.18,52000-WITH DRIVER-HIRE OF VEHICLES,HOME TO SCHOOL TRANSPORT,Transport,Revenue
Walsall Council,http://opendatacommunities.org/id/metropolitan-district-council/walsall,WC111-523,31/12/2019,Childrens,ALDRIDGE & BARONS LIMITED,09/12/2019,436.40,52000-WITH DRIVER-HIRE OF VEHICLES,HOME TO SCHOOL TRANSPORT,Transport,Revenue
Walsall Council,http://opendatacommunities.org/id/metropolitan-district-council/walsall,WC111-524,31/12/2019,Childrens,ALDRIDGE & BARONS LIMITED,09/12/2019,436.40,52000-WITH DRIVER-HIRE OF VEHICLES,HOME TO SCHOOL TRANSPORT,Transport,Revenue
Walsall Council,http://opendatacommunities.org/id/metropolitan-district-council/walsall,WC111-525,31/12/2019,Childrens,ALDRIDGE & BARONS LIMITED,09/12/2019,436.40,52000-WITH DRIVER-HIRE OF VEHICLES,HOME TO SCHOOL TRANSPORT,Transport,Revenue
Walsall Council,http://opendatacommunities.org/id/metropolitan-district-council/walsall,WC111-526,31/12/2019,Childrens,ALDRIDGE & BARONS LIMITED,09/12/2019,436.40,52000-WITH DRIVER-HIRE OF VEHICLES,HOME TO SCHOOL TRANSPORT,Transport,Revenue
Walsall Council,http://opendatacommunities.org/id/metropolitan-district-council/walsall,WC111-527,31/12/2019,Childrens,ALDRIDGE & BARONS LIMITED,09/12/2019,440.00,52000-WITH DRIVER-HIRE OF VEHICLES,HOME TO SCHOOL TRANSPORT,Transport,Revenue
Walsall Council,http://opendatacommunities.org/id/metropolitan-district-council/walsall,WC111-528,31/12/2019,Childrens,ALDRIDGE & BARONS LIMITED,09/12/2019,440.00,52000-WITH DRIVER-HIRE OF VEHICLES,HOME TO SCHOOL TRANSPORT,Transport,Revenue
Walsall Council,http://opendatacommunities.org/id/metropolitan-district-council/walsall,WC111-529,31/12/2019,Childrens,ALDRIDGE & BARONS LIMITED,09/12/2019,440.00,52000-WITH DRIVER-HIRE OF VEHICLES,HOME TO SCHOOL TRANSPORT,Transport,Revenue
Walsall Council,http://opendatacommunities.org/id/metropolitan-district-council/walsall,WC111-530,31/12/2019,Childrens,ALDRIDGE & BARONS LIMITED,09/12/2019,440.00,52000-WITH DRIVER-HIRE OF VEHICLES,HOME TO SCHOOL TRANSPORT,Transport,Revenue
Walsall Council,http://opendatacommunities.org/id/metropolitan-district-council/walsall,WC111-531,31/12/2019,Childrens,ALDRIDGE & BARONS LIMITED,09/12/2019,442.80,52000-WITH DRIVER-HIRE OF VEHICLES,HOME TO SCHOOL TRANSPORT,Transport,Revenue
Walsall Council,http://opendatacommunities.org/id/metropolitan-district-council/walsall,WC111-532,31/12/2019,Childrens,ALDRIDGE & BARONS LIMITED,09/12/2019,442.80,52000-WITH DRIVER-HIRE OF VEHICLES,HOME TO SCHOOL TRANSPORT,Transport,Revenue
Walsall Council,http://opendatacommunities.org/id/metropolitan-district-council/walsall,WC111-533,31/12/2019,Childrens,ALDRIDGE & BARONS LIMITED,09/12/2019,442.80,52000-WITH DRIVER-HIRE OF VEHICLES,HOME TO SCHOOL TRANSPORT,Transport,Revenue
Walsall Council,http://opendatacommunities.org/id/metropolitan-district-council/walsall,WC111-534,31/12/2019,Childrens,ALDRIDGE & BARONS LIMITED,09/12/2019,442.80,52000-WITH DRIVER-HIRE OF VEHICLES,HOME TO SCHOOL TRANSPORT,Transport,Revenue
Walsall Council,http://opendatacommunities.org/id/metropolitan-district-council/walsall,WC111-535,31/12/2019,Childrens,ALDRIDGE & BARONS LIMITED,09/12/2019,450.00,52000-WITH DRIVER-HIRE OF VEHICLES,HOME TO SCHOOL TRANSPORT,Transport,Revenue
Walsall Council,http://opendatacommunities.org/id/metropolitan-district-council/walsall,WC111-536,31/12/2019,Childrens,ALDRIDGE & BARONS LIMITED,09/12/2019,450.00,52000-WITH DRIVER-HIRE OF VEHICLES,HOME TO SCHOOL TRANSPORT,Transport,Revenue
Walsall Council,http://opendatacommunities.org/id/metropolitan-district-council/walsall,WC111-537,31/12/2019,Childrens,ALDRIDGE & BARONS LIMITED,09/12/2019,450.00,52000-WITH DRIVER-HIRE OF VEHICLES,HOME TO SCHOOL TRANSPORT,Transport,Revenue
Walsall Council,http://opendatacommunities.org/id/metropolitan-district-council/walsall,WC111-538,31/12/2019,Childrens,ALDRIDGE & BARONS LIMITED,09/12/2019,470.00,52000-WITH DRIVER-HIRE OF VEHICLES,HOME TO SCHOOL TRANSPORT,Transport,Revenue
Walsall Council,http://opendatacommunities.org/id/metropolitan-district-council/walsall,WC111-539,31/12/2019,Childrens,ALDRIDGE & BARONS LIMITED,09/12/2019,470.00,52000-WITH DRIVER-HIRE OF VEHICLES,HOME TO SCHOOL TRANSPORT,Transport,Revenue
Walsall Council,http://opendatacommunities.org/id/metropolitan-district-council/walsall,WC111-540,31/12/2019,Childrens,ALDRIDGE & BARONS LIMITED,09/12/2019,470.00,52000-WITH DRIVER-HIRE OF VEHICLES,HOME TO SCHOOL TRANSPORT,Transport,Revenue
Walsall Council,http://opendatacommunities.org/id/metropolitan-district-council/walsall,WC111-541,31/12/2019,Childrens,ALDRIDGE & BARONS LIMITED,09/12/2019,470.00,52000-WITH DRIVER-HIRE OF VEHICLES,HOME TO SCHOOL TRANSPORT,Transport,Revenue
Walsall Council,http://opendatacommunities.org/id/metropolitan-district-council/walsall,WC111-542,31/12/2019,Childrens,ALDRIDGE & BARONS LIMITED,09/12/2019,470.40,52000-WITH DRIVER-HIRE OF VEHICLES,HOME TO SCHOOL TRANSPORT,Transport,Revenue
Walsall Council,http://opendatacommunities.org/id/metropolitan-district-council/walsall,WC111-543,31/12/2019,Childrens,ALDRIDGE & BARONS LIMITED,09/12/2019,470.40,52000-WITH DRIVER-HIRE OF VEHICLES,HOME TO SCHOOL TRANSPORT,Transport,Revenue
Walsall Council,http://opendatacommunities.org/id/metropolitan-district-council/walsall,WC111-544,31/12/2019,Childrens,ALDRIDGE & BARONS LIMITED,09/12/2019,470.40,52000-WITH DRIVER-HIRE OF VEHICLES,HOME TO SCHOOL TRANSPORT,Transport,Revenue
Walsall Council,http://opendatacommunities.org/id/metropolitan-district-council/walsall,WC111-545,31/12/2019,Childrens,ALDRIDGE & BARONS LIMITED,09/12/2019,478.80,52000-WITH DRIVER-HIRE OF VEHICLES,HOME TO SCHOOL TRANSPORT,Transport,Revenue
Walsall Council,http://opendatacommunities.org/id/metropolitan-district-council/walsall,WC111-546,31/12/2019,Childrens,ALDRIDGE & BARONS LIMITED,09/12/2019,478.80,52000-WITH DRIVER-HIRE OF VEHICLES,HOME TO SCHOOL TRANSPORT,Transport,Revenue
Walsall Council,http://opendatacommunities.org/id/metropolitan-district-council/walsall,WC111-547,31/12/2019,Childrens,ALDRIDGE & BARONS LIMITED,09/12/2019,478.80,52000-WITH DRIVER-HIRE OF VEHICLES,HOME TO SCHOOL TRANSPORT,Transport,Revenue
Walsall Council,http://opendatacommunities.org/id/metropolitan-district-council/walsall,WC111-548,31/12/2019,Childrens,ALDRIDGE & BARONS LIMITED,09/12/2019,478.80,52000-WITH DRIVER-HIRE OF VEHICLES,HOME TO SCHOOL TRANSPORT,Transport,Revenue
Walsall Council,http://opendatacommunities.org/id/metropolitan-district-council/walsall,WC111-549,31/12/2019,Childrens,ALDRIDGE & BARONS LIMITED,09/12/2019,533.60,52000-WITH DRIVER-HIRE OF VEHICLES,HOME TO SCHOOL TRANSPORT,Transport,Revenue
Walsall Council,http://opendatacommunities.org/id/metropolitan-district-council/walsall,WC111-550,31/12/2019,Childrens,ALDRIDGE & BARONS LIMITED,09/12/2019,533.60,52000-WITH DRIVER-HIRE OF VEHICLES,HOME TO SCHOOL TRANSPORT,Transport,Revenue
Walsall Council,http://opendatacommunities.org/id/metropolitan-district-council/walsall,WC111-551,31/12/2019,Childrens,ALDRIDGE & BARONS LIMITED,09/12/2019,533.60,52000-WITH DRIVER-HIRE OF VEHICLES,HOME TO SCHOOL TRANSPORT,Transport,Revenue
Walsall Council,http://opendatacommunities.org/id/metropolitan-district-council/walsall,WC111-552,31/12/2019,Childrens,ALDRIDGE & BARONS LIMITED,09/12/2019,533.60,52000-WITH DRIVER-HIRE OF VEHICLES,HOME TO SCHOOL TRANSPORT,Transport,Revenue
Walsall Council,http://opendatacommunities.org/id/metropolitan-district-council/walsall,WC111-553,31/12/2019,Childrens,ALDRIDGE & BARONS LIMITED,09/12/2019,632.00,52000-WITH DRIVER-HIRE OF VEHICLES,HOME TO SCHOOL TRANSPORT,Transport,Revenue
Walsall Council,http://opendatacommunities.org/id/metropolitan-district-council/walsall,WC111-554,31/12/2019,Childrens,ALDRIDGE & BARONS LIMITED,09/12/2019,662.00,52000-WITH DRIVER-HIRE OF VEHICLES,HOME TO SCHOOL TRANSPORT,Transport,Revenue
Walsall Council,http://opendatacommunities.org/id/metropolitan-district-council/walsall,WC111-555,31/12/2019,Childrens,ALDRIDGE & BARONS LIMITED,09/12/2019,728.64,52000-WITH DRIVER-HIRE OF VEHICLES,HOME TO SCHOOL TRANSPORT,Transport,Revenue
Walsall Council,http://opendatacommunities.org/id/metropolitan-district-council/walsall,WC111-556,31/12/2019,Childrens,ALDRIDGE & BARONS LIMITED,09/12/2019,891.20,52000-WITH DRIVER-HIRE OF VEHICLES,HOME TO SCHOOL TRANSPORT,Transport,Revenue
Walsall Council,http://opendatacommunities.org/id/metropolitan-district-council/walsall,WC111-557,31/12/2019,Childrens,ALDRIDGE & BARONS LIMITED,09/12/2019,891.20,52000-WITH DRIVER-HIRE OF VEHICLES,HOME TO SCHOOL TRANSPORT,Transport,Revenue
Walsall Council,http://opendatacommunities.org/id/metropolitan-district-council/walsall,WC111-558,31/12/2019,Childrens,ALDRIDGE & BARONS LIMITED,09/12/2019,917.56,52000-WITH DRIVER-HIRE OF VEHICLES,HOME TO SCHOOL TRANSPORT,Transport,Revenue
Walsall Council,http://opendatacommunities.org/id/metropolitan-district-council/walsall,WC111-559,31/12/2019,Childrens,ALDRIDGE & BARONS LIMITED,09/12/2019,965.20,52000-WITH DRIVER-HIRE OF VEHICLES,HOME TO SCHOOL TRANSPORT,Transport,Revenue
Walsall Council,http://opendatacommunities.org/id/metropolitan-district-council/walsall,WC111-560,31/12/2019,Childrens,ALDRIDGE & BARONS LIMITED,09/12/2019,"1,264.00",52000-WITH DRIVER-HIRE OF VEHICLES,HOME TO SCHOOL TRANSPORT,Transport,Revenue
Walsall Council,http://opendatacommunities.org/id/metropolitan-district-council/walsall,WC111-561,31/12/2019,Childrens,ALDRIDGE & BARONS LIMITED,09/12/2019,"1,770.80",52000-WITH DRIVER-HIRE OF VEHICLES,HOME TO SCHOOL TRANSPORT,Transport,Revenue
Walsall Council,http://opendatacommunities.org/id/metropolitan-district-council/walsall,WC111-562,31/12/2019,Childrens,ALDRIDGE & BARONS LIMITED,09/12/2019,"1,786.00",52000-WITH DRIVER-HIRE OF VEHICLES,HOME TO SCHOOL TRANSPORT,Transport,Revenue
Walsall Council,http://opendatacommunities.org/id/metropolitan-district-council/walsall,WC111-563,31/12/2019,Childrens,ALDRIDGE & BARONS LIMITED,09/12/2019,"1,885.20",52000-WITH DRIVER-HIRE OF VEHICLES,HOME TO SCHOOL TRANSPORT,Transport,Revenue
Walsall Council,http://opendatacommunities.org/id/metropolitan-district-council/walsall,WC111-564,31/12/2019,Resources and Transformation,ALDRIDGE CENTRAL COMM ASSOC,06/12/2019,"3,000.00",66500-GRANTS TO OTHER ORGS,AREA PARTNERSHIPS,Third Party Payments,Revenue
Walsall Council,http://opendatacommunities.org/id/metropolitan-district-council/walsall,WC111-565,31/12/2019,Resources and Transformation,ALDRIDGE METHODIST CHURCH 001,11/12/2019,300.00,63128-HIRE OF ROOM-SERVICES-FEES,ELECTORAL ADMINISTRATION,Supplies & Services,Revenue
Walsall Council,http://opendatacommunities.org/id/metropolitan-district-council/walsall,WC111-566,31/12/2019,Economy & Environment,ALDRIDGE SHED,01/12/2019,"1,333.33",63253-PAYMENT TO CONTRACTOR,MENTAL HEALTH,Third Party Payments,Revenue
Walsall Council,http://opendatacommunities.org/id/metropolitan-district-council/walsall,WC111-567,31/12/2019,Adult Social Care,REDACTED,11/12/2019,"1,686.00",73506-DIRECT PAYMENT,PHYSICAL SUPPORT,Third Party Payments,Revenue
Walsall Council,http://opendatacommunities.org/id/metropolitan-district-council/walsall,WC111-568,31/12/2019,Adult Social Care,ALEXANDRA HOUSE CARE SERVICES LTD T/A STONEBRIDGE NURSING HOME,05/12/2019,"7,188.60",73500-RESIDENTIAL,LEARNING DISABILITY SUPPORT,Third Party Payments,Revenue
Walsall Council,http://opendatacommunities.org/id/metropolitan-district-council/walsall,WC111-569,31/12/2019,Adult Social Care,REDACTED,11/12/2019,"4,064.76",73506-DIRECT PAYMENT,PHYSICAL SUPPORT,Third Party Payments,Revenue
Walsall Council,http://opendatacommunities.org/id/metropolitan-district-council/walsall,WC111-570,31/12/2019,Adult Social Care,REDACTED,11/12/2019,"1,122.00",73506-DIRECT PAYMENT,PHYSICAL SUPPORT,Third Party Payments,Revenue
Walsall Council,http://opendatacommunities.org/id/metropolitan-district-council/walsall,WC111-571,31/12/2019,Adult Social Care,REDACTED,11/12/2019,"5,925.30",73506-DIRECT PAYMENT,LEARNING DISABILITY SUPPORT,Third Party Payments,Revenue
Walsall Council,http://opendatacommunities.org/id/metropolitan-district-council/walsall,WC111-572,31/12/2019,Adult Social Care,REDACTED,06/12/2019,604.33,73510-SHARED LIVES,LEARNING DISABILITY SUPPORT,Third Party Payments,Revenue
Walsall Council,http://opendatacommunities.org/id/metropolitan-district-council/walsall,WC111-573,31/12/2019,Adult Social Care,REDACTED,06/12/2019,"1,022.72",73510-SHARED LIVES,LEARNING DISABILITY SUPPORT,Third Party Payments,Revenue
Walsall Council,http://opendatacommunities.org/id/metropolitan-district-council/walsall,WC111-574,31/12/2019,Childrens,REDACTED,17/12/2019,312.24,74509-SPECIAL GUARDIANSHIP ORDERS,ADOPTION ALLOWANCES,Transfer Payments,Revenue
Walsall Council,http://opendatacommunities.org/id/metropolitan-district-council/walsall,WC111-575,31/12/2019,Adult Social Care,REDACTED,11/12/2019,"2,007.60",73506-DIRECT PAYMENT,SOCIAL SUPPORT,Third Party Payments,Revenue
Walsall Council,http://opendatacommunities.org/id/metropolitan-district-council/walsall,WC111-576,31/12/2019,Adult Social Care,ALMA COURT,05/12/2019,"6,400.00",73500-RESIDENTIAL,MENTAL HEALTH SUPPORT,Third Party Payments,Revenue
Walsall Council,http://opendatacommunities.org/id/metropolitan-district-council/walsall,WC111-577,31/12/2019,Adult Social Care,ALMA COURT,05/12/2019,"28,635.42",73503-NURSING EMI,PHYSICAL SUPPORT,Third Party Payments,Revenue
Walsall Council,http://opendatacommunities.org/id/metropolitan-district-council/walsall,WC111-578,31/12/2019,Adult Social Care,ALPHA HEALTH CARE LTD,05/12/2019,"1,013.48",73503-NURSING EMI,SUPPORT WITH MEMORY & COGNITION,Third Party Payments,Revenue
Walsall Council,http://opendatacommunities.org/id/metropolitan-district-council/walsall,WC111-579,31/12/2019,Adult Social Care,ALPHA HEALTH CARE LTD,16/12/2019,"1,071.43",73025-PROFESSIONAL SERVICES-PRIV CONTRACTOR & OTHER AGENCIES,TRANSITIONAL CARE SUPPORT TEAM,Third Party Payments,Revenue
Walsall Council,http://opendatacommunities.org/id/metropolitan-district-council/walsall,WC111-580,31/12/2019,Adult Social Care,ALPHA HEALTH CARE LTD,05/12/2019,"1,774.96",73500-RESIDENTIAL,MENTAL HEALTH SUPPORT,Third Party Payments,Revenue
Walsall Council,http://opendatacommunities.org/id/metropolitan-district-council/walsall,WC111-581,31/12/2019,Adult Social Care,ALPHA HEALTH CARE LTD,16/12/2019,"1,785.00",73025-PROFESSIONAL SERVICES-PRIV CONTRACTOR & OTHER AGENCIES,TRANSITIONAL CARE SUPPORT TEAM,Third Party Payments,Revenue
Walsall Council,http://opendatacommunities.org/id/metropolitan-district-council/walsall,WC111-582,31/12/2019,Adult Social Care,ALPHA HEALTH CARE LTD,05/12/2019,"1,972.24",73501-RESIDENTIAL EMI,PHYSICAL SUPPORT,Third Party Payments,Revenue
Walsall Council,http://opendatacommunities.org/id/metropolitan-district-council/walsall,WC111-583,31/12/2019,Adult Social Care,ALPHA HEALTH CARE LTD,05/12/2019,"2,143.72",73502-NURSING,PHYSICAL SUPPORT,Third Party Payments,Revenue
Walsall Council,http://opendatacommunities.org/id/metropolitan-district-council/walsall,WC111-584,31/12/2019,Adult Social Care,ALPHA HEALTH CARE LTD,05/12/2019,"2,255.72",73501-RESIDENTIAL EMI,SUPPORT WITH MEMORY & COGNITION,Third Party Payments,Revenue
Walsall Council,http://opendatacommunities.org/id/metropolitan-district-council/walsall,WC111-585,31/12/2019,Adult Social Care,ALPHA HEALTH CARE LTD,16/12/2019,"2,327.40",73025-PROFESSIONAL SERVICES-PRIV CONTRACTOR & OTHER AGENCIES,TRANSITIONAL CARE SUPPORT TEAM,Third Party Payments,Revenue
Walsall Council,http://opendatacommunities.org/id/metropolitan-district-council/walsall,WC111-586,31/12/2019,Adult Social Care,ALPHA HEALTH CARE LTD,05/12/2019,"2,358.08",73503-NURSING EMI,MENTAL HEALTH SUPPORT,Third Party Payments,Revenue
Walsall Council,http://opendatacommunities.org/id/metropolitan-district-council/walsall,WC111-587,31/12/2019,Adult Social Care,ALPHA HEALTH CARE LTD,05/12/2019,"2,358.08",73503-NURSING EMI,PHYSICAL SUPPORT,Third Party Payments,Revenue
Walsall Council,http://opendatacommunities.org/id/metropolitan-district-council/walsall,WC111-588,31/12/2019,Adult Social Care,ALPHA HEALTH CARE LTD,05/12/2019,"2,358.08",73503-NURSING EMI,MENTAL HEALTH SUPPORT,Third Party Payments,Revenue
Walsall Council,http://opendatacommunities.org/id/metropolitan-district-council/walsall,WC111-589,31/12/2019,Adult Social Care,ALPHA HEALTH CARE LTD,05/12/2019,"2,495.72",73501-RESIDENTIAL EMI,MENTAL HEALTH SUPPORT,Third Party Payments,Revenue
Walsall Council,http://opendatacommunities.org/id/metropolitan-district-council/walsall,WC111-590,31/12/2019,Adult Social Care,ALPHA HEALTH CARE LTD,05/12/2019,"2,558.08",73503-NURSING EMI,PHYSICAL SUPPORT,Third Party Payments,Revenue
Walsall Council,http://opendatacommunities.org/id/metropolitan-district-council/walsall,WC111-591,31/12/2019,Adult Social Care,ALPHA HEALTH CARE LTD,05/12/2019,"2,737.76",73503-NURSING EMI,SUPPORT WITH MEMORY & COGNITION,Third Party Payments,Revenue
Walsall Council,http://opendatacommunities.org/id/metropolitan-district-council/walsall,WC111-592,31/12/2019,Adult Social Care,ALPHA HEALTH CARE LTD,05/12/2019,"2,881.80",73503-NURSING EMI,MENTAL HEALTH SUPPORT,Third Party Payments,Revenue
Walsall Council,http://opendatacommunities.org/id/metropolitan-district-council/walsall,WC111-593,31/12/2019,Adult Social Care,ALPHA HEALTH CARE LTD,05/12/2019,"2,881.80",73503-NURSING EMI,PHYSICAL SUPPORT,Third Party Payments,Revenue
Walsall Council,http://opendatacommunities.org/id/metropolitan-district-council/walsall,WC111-594,31/12/2019,Adult Social Care,ALPHA HEALTH CARE LTD,05/12/2019,"2,881.80",73503-NURSING EMI,MENTAL HEALTH SUPPORT,Third Party Payments,Revenue
Walsall Council,http://opendatacommunities.org/id/metropolitan-district-council/walsall,WC111-595,31/12/2019,Adult Social Care,ALPHA HEALTH CARE LTD,05/12/2019,"2,881.80",73503-NURSING EMI,PHYSICAL SUPPORT,Third Party Payments,Revenue
Walsall Council,http://opendatacommunities.org/id/metropolitan-district-council/walsall,WC111-596,31/12/2019,Adult Social Care,ALPHA HEALTH CARE LTD,05/12/2019,"2,881.84",73503-NURSING EMI,PHYSICAL SUPPORT,Third Party Payments,Revenue
Walsall Council,http://opendatacommunities.org/id/metropolitan-district-council/walsall,WC111-597,31/12/2019,Adult Social Care,ALPHA HEALTH CARE LTD,05/12/2019,"2,937.88",73503-NURSING EMI,PHYSICAL SUPPORT,Third Party Payments,Revenue
Walsall Council,http://opendatacommunities.org/id/metropolitan-district-council/walsall,WC111-598,31/12/2019,Adult Social Care,ALPHA HEALTH CARE LTD,05/12/2019,"3,035.72",73501-RESIDENTIAL EMI,PHYSICAL SUPPORT,Third Party Payments,Revenue
Walsall Council,http://opendatacommunities.org/id/metropolitan-district-council/walsall,WC111-599,31/12/2019,Adult Social Care,ALPHA HEALTH CARE LTD,05/12/2019,"3,035.72",73501-RESIDENTIAL EMI,PHYSICAL SUPPORT,Third Party Payments,Revenue
Walsall Council,http://opendatacommunities.org/id/metropolitan-district-council/walsall,WC111-600,31/12/2019,Adult Social Care,ALPHA HEALTH CARE LTD,05/12/2019,"3,290.36",73503-NURSING EMI,PHYSICAL SUPPORT,Third Party Payments,Revenue
Walsall Council,http://opendatacommunities.org/id/metropolitan-district-council/walsall,WC111-601,31/12/2019,Adult Social Care,ALPHA HEALTH CARE LTD,05/12/2019,"3,400.00",73503-NURSING EMI,MENTAL HEALTH SUPPORT,Third Party Payments,Revenue
Walsall Council,http://opendatacommunities.org/id/metropolitan-district-council/walsall,WC111-602,31/12/2019,Adult Social Care,ALPHA HEALTH CARE LTD,16/12/2019,"7,500.00",73025-PROFESSIONAL SERVICES-PRIV CONTRACTOR & OTHER AGENCIES,TRANSITIONAL CARE SUPPORT TEAM,Third Party Payments,Revenue
Walsall Council,http://opendatacommunities.org/id/metropolitan-district-council/walsall,WC111-603,31/12/2019,Childrens,ALPHA TRAINING ACADEMY UK LTD,12/12/2019,"1,000.00",60500-GENERAL MATERIALS,PUPIL REFERAL UNIT EXCLUSIONS,Supplies & Services,Revenue
Walsall Council,http://opendatacommunities.org/id/metropolitan-district-council/walsall,WC111-604,31/12/2019,Childrens,ALPHA TRAINING ACADEMY UK LTD,05/12/2019,"1,150.00",63000-PROFESSIONAL FEES AND SERVICES,VIRTUAL SCHOOL CENTRAL PUPIL PREMIUM,Supplies & Services,Revenue
Walsall Council,http://opendatacommunities.org/id/metropolitan-district-council/walsall,WC111-605,31/12/2019,Childrens,ALPHA TRAINING ACADEMY UK LTD,06/12/2019,"9,656.00",66502-TOP UP FUNDING -GRANTS TO SCHOOLS,INDEPENDENT PROVIDERS - POST SCHOOL,Third Party Payments,Revenue
Walsall Council,http://opendatacommunities.org/id/metropolitan-district-council/walsall,WC111-606,31/12/2019,Childrens,REDACTED,10/12/2019,255.00,73506-DIRECT PAYMENT,FAMILY SUPPORT - DIRECT PAYMENTS,Third Party Payments,Revenue
Walsall Council,http://opendatacommunities.org/id/metropolitan-district-council/walsall,WC111-607,31/12/2019,Childrens,AMAH NURSERIES LIMITED T/A BANANA MOON WALSALL,13/12/2019,333.90,77300-ISB-FORMULA ALLOCATION,EARLY YEARS - PUPIL PREMIUM,Transfer Payments,Revenue
Walsall Council,http://opendatacommunities.org/id/metropolitan-district-council/walsall,WC111-608,31/12/2019,Childrens,REDACTED,17/12/2019,318.08,74510-RESIDENTS ORDERS,ADOPTION ALLOWANCES,Third Party Payments,Revenue
Walsall Council,http://opendatacommunities.org/id/metropolitan-district-council/walsall,WC111-609,31/12/2019,Childrens,REDACTED,17/12/2019,370.28,74510-RESIDENTS ORDERS,ADOPTION ALLOWANCES,Third Party Payments,Revenue
Walsall Council,http://opendatacommunities.org/id/metropolitan-district-council/walsall,WC111-610,31/12/2019,Adult Social Care,REDACTED,11/12/2019,"2,348.43",73506-DIRECT PAYMENT,LEARNING DISABILITY SUPPORT,Third Party Payments,Revenue
Walsall Council,http://opendatacommunities.org/id/metropolitan-district-council/walsall,WC111-611,31/12/2019,Childrens,REDACTED,17/12/2019,808.04,74009-ADOPTION ALLOWANCE,ADOPTION ALLOWANCES,Transfer Payments,Revenue
Walsall Council,http://opendatacommunities.org/id/metropolitan-district-council/walsall,WC111-612,31/12/2019,Childrens,REDACTED,19/12/2019,121.03,74506-TRAVEL-FOSTER CARERS,INTERNAL FOSTER CARE PROVISION,Transfer Payments,Revenue
Walsall Council,http://opendatacommunities.org/id/metropolitan-district-council/walsall,WC111-613,31/12/2019,Childrens,REDACTED,19/12/2019,578.57,74501-MAINTENANCE ALLOWANCE-FOSTER CARERS,INTERNAL FOSTER CARE PROVISION,Transfer Payments,Revenue
Walsall Council,http://opendatacommunities.org/id/metropolitan-district-council/walsall,WC111-614,31/12/2019,Childrens,REDACTED,19/12/2019,"1,000.00",74508-INTERNAL FOSTER CARERS-CARER FEES,INTERNAL FOSTER CARE PROVISION,Transfer Payments,Revenue
Walsall Council,http://opendatacommunities.org/id/metropolitan-district-council/walsall,WC111-615,31/12/2019,Resources and Transformation,AMANS TRAVEL LTD,10/12/2019,400.00,52000-WITH DRIVER-HIRE OF VEHICLES,INTEGRATED COMMUNITIES PROGRAMME,Transport,Revenue
Walsall Council,http://opendatacommunities.org/id/metropolitan-district-council/walsall,WC111-616,31/12/2019,Adult Social Care,REDACTED,11/12/2019,"1,268.10",73506-DIRECT PAYMENT,LEARNING DISABILITY SUPPORT,Third Party Payments,Revenue
Walsall Council,http://opendatacommunities.org/id/metropolitan-district-council/walsall,WC111-617,31/12/2019,Resources and Transformation,AMEY LG LIMITED,12/12/2019,605.00,60008-REPAIR & MAINTENANCE OF FURNITURE & EQUIPMENT,CCTV,Supplies & Services,Revenue
Walsall Council,http://opendatacommunities.org/id/metropolitan-district-council/walsall,WC111-618,31/12/2019,Economy & Environment,AMEY LG LIMITED,11/12/2019,"1,179.04",01006-SITE WORKS MAIN CONTRACTORS,CFR 1275 REPLACEMENT OF SPEED ENFORCEMENT CAMERA,Capital,Capital
Walsall Council,http://opendatacommunities.org/id/metropolitan-district-council/walsall,WC111-619,31/12/2019,Economy & Environment,AMEY LG LIMITED,12/12/2019,"6,109.47",01006-SITE WORKS MAIN CONTRACTORS,CFR 1355 HIGHWAY EFFICIENCY MEASURES PROGRAMME,Capital,Capital
Walsall Council,http://opendatacommunities.org/id/metropolitan-district-council/walsall,WC111-620,31/12/2019,Economy & Environment,AMEY LG LIMITED,04/12/2019,"11,848.26",73025-PROFESSIONAL SERVICES-PRIV CONTRACTOR & OTHER AGENCIES,SECTION 38 OF HIGHWAYS ACT - SUPERVISION,Third Party Payments,Revenue
Walsall Council,http://opendatacommunities.org/id/metropolitan-district-council/walsall,WC111-621,31/12/2019,Childrens,AMG NURSING CARE SERVICES,04/12/2019,"1,110.72",63000-PROFESSIONAL FEES AND SERVICES,DIRECTLY COMMISSIONED NURSING SERVICES,Supplies & Services,Revenue
Walsall Council,http://opendatacommunities.org/id/metropolitan-district-council/walsall,WC111-622,31/12/2019,Adult Social Care,AMG NURSING CARE SERVICES,06/12/2019,"3,367.00",73508-COMMUNITY SUPPORTED LIVING/SUPPORTED ACCOMMODATION,PHYSICAL SUPPORT,Third Party Payments,Revenue
Walsall Council,http://opendatacommunities.org/id/metropolitan-district-council/walsall,WC111-623,31/12/2019,Adult Social Care,AMG NURSING CARE SERVICES,18/12/2019,"10,584.15",73508-COMMUNITY SUPPORTED LIVING/SUPPORTED ACCOMMODATION,PHYSICAL SUPPORT,Third Party Payments,Revenue
Walsall Council,http://opendatacommunities.org/id/metropolitan-district-council/walsall,WC111-624,31/12/2019,Adult Social Care,AMG NURSING CARE SERVICES,06/12/2019,"10,711.68",73508-COMMUNITY SUPPORTED LIVING/SUPPORTED ACCOMMODATION,PHYSICAL SUPPORT,Third Party Payments,Revenue
Walsall Council,http://opendatacommunities.org/id/metropolitan-district-council/walsall,WC111-625,31/12/2019,Childrens,REDACTED,17/12/2019,340.00,74508-INTERNAL FOSTER CARERS-CARER FEES,FAMILY & FRIENDS FOSTER CARE PROVISION,Transfer Payments,Revenue
Walsall Council,http://opendatacommunities.org/id/metropolitan-district-council/walsall,WC111-626,31/12/2019,Childrens,REDACTED,17/12/2019,600.00,74501-MAINTENANCE ALLOWANCE-FOSTER CARERS,FAMILY & FRIENDS FOSTER CARE PROVISION,Transfer Payments,Revenue
Walsall Council,http://opendatacommunities.org/id/metropolitan-district-council/walsall,WC111-627,31/12/2019,Childrens,REDACTED,17/12/2019,425.08,74510-RESIDENTS ORDERS,ADOPTION ALLOWANCES,Third Party Payments,Revenue
Walsall Council,http://opendatacommunities.org/id/metropolitan-district-council/walsall,WC111-628,31/12/2019,Adult Social Care,ANCHOR,05/12/2019,-824.09,73500-RESIDENTIAL,PHYSICAL SUPPORT,Third Party Payments,Revenue
Walsall Council,http://opendatacommunities.org/id/metropolitan-district-council/walsall,WC111-629,31/12/2019,Adult Social Care,ANCHOR,05/12/2019,"1,394.61",73500-RESIDENTIAL,PHYSICAL SUPPORT,Third Party Payments,Revenue
Walsall Council,http://opendatacommunities.org/id/metropolitan-district-council/walsall,WC111-630,31/12/2019,Adult Social Care,ANCHOR,05/12/2019,"1,774.96",73500-RESIDENTIAL,SUPPORT WITH MEMORY & COGNITION,Third Party Payments,Revenue
Walsall Council,http://opendatacommunities.org/id/metropolitan-district-council/walsall,WC111-631,31/12/2019,Adult Social Care,ANCHOR,05/12/2019,"1,774.96",73500-RESIDENTIAL,PHYSICAL SUPPORT,Third Party Payments,Revenue
Walsall Council,http://opendatacommunities.org/id/metropolitan-district-council/walsall,WC111-632,31/12/2019,Adult Social Care,ANCHOR,05/12/2019,"1,774.96",73500-RESIDENTIAL,SUPPORT WITH MEMORY & COGNITION,Third Party Payments,Revenue
Walsall Council,http://opendatacommunities.org/id/metropolitan-district-council/walsall,WC111-633,31/12/2019,Adult Social Care,ANCHOR,05/12/2019,"1,774.96",73500-RESIDENTIAL,PHYSICAL SUPPORT,Third Party Payments,Revenue
Walsall Council,http://opendatacommunities.org/id/metropolitan-district-council/walsall,WC111-634,31/12/2019,Adult Social Care,ANCHOR,05/12/2019,"1,834.96",73500-RESIDENTIAL,PHYSICAL SUPPORT,Third Party Payments,Revenue
Walsall Council,http://opendatacommunities.org/id/metropolitan-district-council/walsall,WC111-635,31/12/2019,Adult Social Care,ANCHOR,05/12/2019,"1,926.12",73500-RESIDENTIAL,PHYSICAL SUPPORT,Third Party Payments,Revenue
Walsall Council,http://opendatacommunities.org/id/metropolitan-district-council/walsall,WC111-636,31/12/2019,Adult Social Care,ANCHOR,05/12/2019,"1,934.96",73500-RESIDENTIAL,PHYSICAL SUPPORT,Third Party Payments,Revenue
Walsall Council,http://opendatacommunities.org/id/metropolitan-district-council/walsall,WC111-637,31/12/2019,Adult Social Care,ANCHOR,05/12/2019,"1,935.72",73501-RESIDENTIAL EMI,PHYSICAL SUPPORT,Third Party Payments,Revenue
Walsall Council,http://opendatacommunities.org/id/metropolitan-district-council/walsall,WC111-638,31/12/2019,Adult Social Care,ANCHOR,05/12/2019,"1,972.24",73501-RESIDENTIAL EMI,MENTAL HEALTH SUPPORT,Third Party Payments,Revenue
Walsall Council,http://opendatacommunities.org/id/metropolitan-district-council/walsall,WC111-639,31/12/2019,Adult Social Care,ANCHOR,05/12/2019,"1,972.24",73501-RESIDENTIAL EMI,PHYSICAL SUPPORT,Third Party Payments,Revenue
Walsall Council,http://opendatacommunities.org/id/metropolitan-district-council/walsall,WC111-640,31/12/2019,Adult Social Care,ANCHOR,05/12/2019,"1,972.24",73501-RESIDENTIAL EMI,SUPPORT WITH MEMORY & COGNITION,Third Party Payments,Revenue
Walsall Council,http://opendatacommunities.org/id/metropolitan-district-council/walsall,WC111-641,31/12/2019,Adult Social Care,ANCHOR,05/12/2019,"1,972.24",73501-RESIDENTIAL EMI,MENTAL HEALTH SUPPORT,Third Party Payments,Revenue
Walsall Council,http://opendatacommunities.org/id/metropolitan-district-council/walsall,WC111-642,31/12/2019,Adult Social Care,ANCHOR,05/12/2019,"1,972.24",73501-RESIDENTIAL EMI,MENTAL HEALTH SUPPORT,Third Party Payments,Revenue
Walsall Council,http://opendatacommunities.org/id/metropolitan-district-council/walsall,WC111-643,31/12/2019,Adult Social Care,ANCHOR,05/12/2019,"1,972.24",73501-RESIDENTIAL EMI,PHYSICAL SUPPORT,Third Party Payments,Revenue
Walsall Council,http://opendatacommunities.org/id/metropolitan-district-council/walsall,WC111-644,31/12/2019,Adult Social Care,ANCHOR,05/12/2019,"1,972.24",73501-RESIDENTIAL EMI,PHYSICAL SUPPORT,Third Party Payments,Revenue
Walsall Council,http://opendatacommunities.org/id/metropolitan-district-council/walsall,WC111-645,31/12/2019,Adult Social Care,ANCHOR,05/12/2019,"1,972.24",73501-RESIDENTIAL EMI,PHYSICAL SUPPORT,Third Party Payments,Revenue
Walsall Council,http://opendatacommunities.org/id/metropolitan-district-council/walsall,WC111-646,31/12/2019,Adult Social Care,ANCHOR,05/12/2019,"1,972.24",73501-RESIDENTIAL EMI,PHYSICAL SUPPORT,Third Party Payments,Revenue
Walsall Council,http://opendatacommunities.org/id/metropolitan-district-council/walsall,WC111-647,31/12/2019,Adult Social Care,ANCHOR,05/12/2019,"1,972.24",73501-RESIDENTIAL EMI,MENTAL HEALTH SUPPORT,Third Party Payments,Revenue
Walsall Council,http://opendatacommunities.org/id/metropolitan-district-council/walsall,WC111-648,31/12/2019,Adult Social Care,ANCHOR,05/12/2019,"1,972.24",73501-RESIDENTIAL EMI,PHYSICAL SUPPORT,Third Party Payments,Revenue
Walsall Council,http://opendatacommunities.org/id/metropolitan-district-council/walsall,WC111-649,31/12/2019,Adult Social Care,ANCHOR,05/12/2019,"1,972.24",73501-RESIDENTIAL EMI,PHYSICAL SUPPORT,Third Party Payments,Revenue
Walsall Council,http://opendatacommunities.org/id/metropolitan-district-council/walsall,WC111-650,31/12/2019,Adult Social Care,ANCHOR,05/12/2019,"2,054.96",73500-RESIDENTIAL,SENSORY SUPPORT,Third Party Payments,Revenue
Walsall Council,http://opendatacommunities.org/id/metropolitan-district-council/walsall,WC111-651,31/12/2019,Adult Social Care,ANCHOR,05/12/2019,"2,094.96",73500-RESIDENTIAL,PHYSICAL SUPPORT,Third Party Payments,Revenue
Walsall Council,http://opendatacommunities.org/id/metropolitan-district-council/walsall,WC111-652,31/12/2019,Adult Social Care,ANCHOR,05/12/2019,"2,094.96",73500-RESIDENTIAL,SOCIAL SUPPORT,Third Party Payments,Revenue
Walsall Council,http://opendatacommunities.org/id/metropolitan-district-council/walsall,WC111-653,31/12/2019,Adult Social Care,ANCHOR,05/12/2019,"2,114.96",73500-RESIDENTIAL,PHYSICAL SUPPORT,Third Party Payments,Revenue
Walsall Council,http://opendatacommunities.org/id/metropolitan-district-council/walsall,WC111-654,31/12/2019,Adult Social Care,ANCHOR,05/12/2019,"2,144.56",73501-RESIDENTIAL EMI,SENSORY SUPPORT,Third Party Payments,Revenue
Walsall Council,http://opendatacommunities.org/id/metropolitan-district-council/walsall,WC111-655,31/12/2019,Adult Social Care,ANCHOR,05/12/2019,"2,175.72",73501-RESIDENTIAL EMI,MENTAL HEALTH SUPPORT,Third Party Payments,Revenue
Walsall Council,http://opendatacommunities.org/id/metropolitan-district-council/walsall,WC111-656,31/12/2019,Adult Social Care,ANCHOR,05/12/2019,"2,266.12",73500-RESIDENTIAL,PHYSICAL SUPPORT,Third Party Payments,Revenue
Walsall Council,http://opendatacommunities.org/id/metropolitan-district-council/walsall,WC111-657,31/12/2019,Adult Social Care,ANCHOR,05/12/2019,"2,292.24",73501-RESIDENTIAL EMI,SUPPORT WITH MEMORY & COGNITION,Third Party Payments,Revenue
Walsall Council,http://opendatacommunities.org/id/metropolitan-district-council/walsall,WC111-658,31/12/2019,Adult Social Care,ANCHOR,05/12/2019,"2,292.24",73501-RESIDENTIAL EMI,SUPPORT WITH MEMORY & COGNITION,Third Party Payments,Revenue
Walsall Council,http://opendatacommunities.org/id/metropolitan-district-council/walsall,WC111-659,31/12/2019,Adult Social Care,ANCHOR,05/12/2019,"2,312.24",73501-RESIDENTIAL EMI,PHYSICAL SUPPORT,Third Party Payments,Revenue
Walsall Council,http://opendatacommunities.org/id/metropolitan-district-council/walsall,WC111-660,31/12/2019,Adult Social Care,ANCHOR,05/12/2019,"2,312.24",73501-RESIDENTIAL EMI,PHYSICAL SUPPORT,Third Party Payments,Revenue
Walsall Council,http://opendatacommunities.org/id/metropolitan-district-council/walsall,WC111-661,31/12/2019,Adult Social Care,ANCHOR,05/12/2019,"2,312.24",73501-RESIDENTIAL EMI,PHYSICAL SUPPORT,Third Party Payments,Revenue
Walsall Council,http://opendatacommunities.org/id/metropolitan-district-council/walsall,WC111-662,31/12/2019,Adult Social Care,ANCHOR,05/12/2019,"2,312.24",73501-RESIDENTIAL EMI,SUPPORT WITH MEMORY & COGNITION,Third Party Payments,Revenue
Walsall Council,http://opendatacommunities.org/id/metropolitan-district-council/walsall,WC111-663,31/12/2019,Adult Social Care,ANCHOR,05/12/2019,"2,332.24",73501-RESIDENTIAL EMI,PHYSICAL SUPPORT,Third Party Payments,Revenue
Walsall Council,http://opendatacommunities.org/id/metropolitan-district-council/walsall,WC111-664,31/12/2019,Adult Social Care,ANCHOR,05/12/2019,"2,332.24",73501-RESIDENTIAL EMI,PHYSICAL SUPPORT,Third Party Payments,Revenue
Walsall Council,http://opendatacommunities.org/id/metropolitan-district-council/walsall,WC111-665,31/12/2019,Adult Social Care,ANCHOR,05/12/2019,"2,332.24",73501-RESIDENTIAL EMI,PHYSICAL SUPPORT,Third Party Payments,Revenue
Walsall Council,http://opendatacommunities.org/id/metropolitan-district-council/walsall,WC111-666,31/12/2019,Adult Social Care,ANCHOR,05/12/2019,"2,332.24",73501-RESIDENTIAL EMI,SOCIAL SUPPORT,Third Party Payments,Revenue
Walsall Council,http://opendatacommunities.org/id/metropolitan-district-council/walsall,WC111-667,31/12/2019,Adult Social Care,ANCHOR,05/12/2019,"37,281.30",73501-RESIDENTIAL EMI,PHYSICAL SUPPORT,Third Party Payments,Revenue
Walsall Council,http://opendatacommunities.org/id/metropolitan-district-council/walsall,WC111-668,31/12/2019,Adult Social Care,ANCHOR CAREHOMES LTD - HARDEN HALL,18/12/2019,"1,168.60",73501-RESIDENTIAL EMI,MENTAL HEALTH SUPPORT,Third Party Payments,Revenue
Walsall Council,http://opendatacommunities.org/id/metropolitan-district-council/walsall,WC111-669,31/12/2019,Adult Social Care,ANCHOR CAREHOMES LTD - HARDEN HALL,18/12/2019,"1,525.94",73501-RESIDENTIAL EMI,SUPPORT WITH MEMORY & COGNITION,Third Party Payments,Revenue
Walsall Council,http://opendatacommunities.org/id/metropolitan-district-council/walsall,WC111-670,31/12/2019,Adult Social Care,ANCHOR CAREHOMES LTD - HARDEN HALL,18/12/2019,"1,529.91",73501-RESIDENTIAL EMI,PHYSICAL SUPPORT,Third Party Payments,Revenue
Walsall Council,http://opendatacommunities.org/id/metropolitan-district-council/walsall,WC111-671,31/12/2019,Adult Social Care,ANCHOR CAREHOMES LTD - HARDEN HALL,18/12/2019,"1,688.84",73500-RESIDENTIAL,PHYSICAL SUPPORT,Third Party Payments,Revenue
Walsall Council,http://opendatacommunities.org/id/metropolitan-district-council/walsall,WC111-672,31/12/2019,Adult Social Care,ANCHOR CAREHOMES LTD - HARDEN HALL,18/12/2019,"1,930.99",73501-RESIDENTIAL EMI,MENTAL HEALTH SUPPORT,Third Party Payments,Revenue
Walsall Council,http://opendatacommunities.org/id/metropolitan-district-council/walsall,WC111-673,31/12/2019,Adult Social Care,ANCHOR CAREHOMES LTD - HARDEN HALL,18/12/2019,"2,472.58",73501-RESIDENTIAL EMI,PHYSICAL SUPPORT,Third Party Payments,Revenue
Walsall Council,http://opendatacommunities.org/id/metropolitan-district-council/walsall,WC111-674,31/12/2019,Adult Social Care,ANCHOR CAREHOMES LTD - HARDEN HALL,18/12/2019,"2,697.76",73500-RESIDENTIAL,PHYSICAL SUPPORT,Third Party Payments,Revenue
Walsall Council,http://opendatacommunities.org/id/metropolitan-district-council/walsall,WC111-675,31/12/2019,Adult Social Care,ANCHOR CAREHOMES LTD - HARDEN HALL,20/12/2019,"10,313.18",73500-RESIDENTIAL,SUPPORT WITH MEMORY & COGNITION,Third Party Payments,Revenue
Walsall Council,http://opendatacommunities.org/id/metropolitan-district-council/walsall,WC111-676,31/12/2019,Childrens,REDACTED,17/12/2019,312.24,74509-SPECIAL GUARDIANSHIP ORDERS,ADOPTION ALLOWANCES,Transfer Payments,Revenue
Walsall Council,http://opendatacommunities.org/id/metropolitan-district-council/walsall,WC111-677,31/12/2019,Childrens,REDACTED,19/12/2019,270.85,74506-TRAVEL-FOSTER CARERS,INTERNAL FOSTER CARE PROVISION,Transfer Payments,Revenue
Walsall Council,http://opendatacommunities.org/id/metropolitan-district-council/walsall,WC111-678,31/12/2019,Childrens,REDACTED,19/12/2019,720.00,74501-MAINTENANCE ALLOWANCE-FOSTER CARERS,INTERNAL FOSTER CARE PROVISION,Transfer Payments,Revenue
Walsall Council,http://opendatacommunities.org/id/metropolitan-district-council/walsall,WC111-679,31/12/2019,Childrens,REDACTED,19/12/2019,"2,400.00",74508-INTERNAL FOSTER CARERS-CARER FEES,INTERNAL FOSTER CARE PROVISION,Transfer Payments,Revenue
Walsall Council,http://opendatacommunities.org/id/metropolitan-district-council/walsall,WC111-680,31/12/2019,Adult Social Care,REDACTED,11/12/2019,774.05,73506-DIRECT PAYMENT,LEARNING DISABILITY SUPPORT,Third Party Payments,Revenue
Walsall Council,http://opendatacommunities.org/id/metropolitan-district-council/walsall,WC111-681,31/12/2019,Adult Social Care,REDACTED,11/12/2019,"3,118.00",73506-DIRECT PAYMENT,PHYSICAL SUPPORT,Third Party Payments,Revenue
Walsall Council,http://opendatacommunities.org/id/metropolitan-district-council/walsall,WC111-682,31/12/2019,Childrens,ANDREWS ELECTRICAL LTD,01/12/2019,"20,268.42",01006-SITE WORKS MAIN CONTRACTORS,CFR 1348 LEAMORE LIGHTING UPGRADE,Capital,Capital
Walsall Council,http://opendatacommunities.org/id/metropolitan-district-council/walsall,WC111-683,31/12/2019,Childrens,REDACTED,17/12/2019,368.76,74509-SPECIAL GUARDIANSHIP ORDERS,ADOPTION ALLOWANCES,Transfer Payments,Revenue
Walsall Council,http://opendatacommunities.org/id/metropolitan-district-council/walsall,WC111-684,31/12/2019,Childrens,REDACTED,17/12/2019,368.76,74509-SPECIAL GUARDIANSHIP ORDERS,ADOPTION ALLOWANCES,Transfer Payments,Revenue
Walsall Council,http://opendatacommunities.org/id/metropolitan-district-council/walsall,WC111-685,31/12/2019,Childrens,REDACTED,17/12/2019,500.16,74509-SPECIAL GUARDIANSHIP ORDERS,ADOPTION ALLOWANCES,Transfer Payments,Revenue
Walsall Council,http://opendatacommunities.org/id/metropolitan-district-council/walsall,WC111-686,31/12/2019,Childrens,REDACTED,17/12/2019,312.04,74509-SPECIAL GUARDIANSHIP ORDERS,ADOPTION ALLOWANCES,Transfer Payments,Revenue
Walsall Council,http://opendatacommunities.org/id/metropolitan-district-council/walsall,WC111-687,31/12/2019,Adult Social Care,REDACTED,11/12/2019,"1,469.00",73506-DIRECT PAYMENT,PHYSICAL SUPPORT,Third Party Payments,Revenue
Walsall Council,http://opendatacommunities.org/id/metropolitan-district-council/walsall,WC111-688,31/12/2019,Adult Social Care,ANSON COURT RESIDENTIAL HOME,05/12/2019,310.32,73501-RESIDENTIAL EMI,PHYSICAL SUPPORT,Third Party Payments,Revenue
Walsall Council,http://opendatacommunities.org/id/metropolitan-district-council/walsall,WC111-689,31/12/2019,Adult Social Care,ANSON COURT RESIDENTIAL HOME,18/12/2019,775.80,73025-PROFESSIONAL SERVICES-PRIV CONTRACTOR & OTHER AGENCIES,TRANSITIONAL CARE SUPPORT TEAM,Third Party Payments,Revenue
Walsall Council,http://opendatacommunities.org/id/metropolitan-district-council/walsall,WC111-690,31/12/2019,Adult Social Care,ANSON COURT RESIDENTIAL HOME,06/12/2019,"1,008.54",73025-PROFESSIONAL SERVICES-PRIV CONTRACTOR & OTHER AGENCIES,TRANSITIONAL CARE SUPPORT TEAM,Third Party Payments,Revenue
Walsall Council,http://opendatacommunities.org/id/metropolitan-district-council/walsall,WC111-691,31/12/2019,Adult Social Care,ANSON COURT RESIDENTIAL HOME,13/12/2019,"1,046.12",73025-PROFESSIONAL SERVICES-PRIV CONTRACTOR & OTHER AGENCIES,TRANSITIONAL CARE SUPPORT TEAM,Third Party Payments,Revenue
Walsall Council,http://opendatacommunities.org/id/metropolitan-district-council/walsall,WC111-692,31/12/2019,Adult Social Care,ANSON COURT RESIDENTIAL HOME,05/12/2019,"1,620.05",73501-RESIDENTIAL EMI,SUPPORT WITH MEMORY & COGNITION,Third Party Payments,Revenue
Walsall Council,http://opendatacommunities.org/id/metropolitan-district-council/walsall,WC111-693,31/12/2019,Adult Social Care,ANSON COURT RESIDENTIAL HOME,05/12/2019,"1,972.24",73501-RESIDENTIAL EMI,SUPPORT WITH MEMORY & COGNITION,Third Party Payments,Revenue
Walsall Council,http://opendatacommunities.org/id/metropolitan-district-council/walsall,WC111-694,31/12/2019,Adult Social Care,ANSON COURT RESIDENTIAL HOME,05/12/2019,"1,972.24",73501-RESIDENTIAL EMI,SOCIAL SUPPORT,Third Party Payments,Revenue
Walsall Council,http://opendatacommunities.org/id/metropolitan-district-council/walsall,WC111-695,31/12/2019,Adult Social Care,ANSON COURT RESIDENTIAL HOME,05/12/2019,"1,972.24",73501-RESIDENTIAL EMI,MENTAL HEALTH SUPPORT,Third Party Payments,Revenue
Walsall Council,http://opendatacommunities.org/id/metropolitan-district-council/walsall,WC111-696,31/12/2019,Adult Social Care,ANSON COURT RESIDENTIAL HOME,05/12/2019,"1,972.24",73501-RESIDENTIAL EMI,SUPPORT WITH MEMORY & COGNITION,Third Party Payments,Revenue
Walsall Council,http://opendatacommunities.org/id/metropolitan-district-council/walsall,WC111-697,31/12/2019,Adult Social Care,ANSON COURT RESIDENTIAL HOME,05/12/2019,"1,972.24",73501-RESIDENTIAL EMI,SOCIAL SUPPORT,Third Party Payments,Revenue
Walsall Council,http://opendatacommunities.org/id/metropolitan-district-council/walsall,WC111-698,31/12/2019,Adult Social Care,ANSON COURT RESIDENTIAL HOME,05/12/2019,"1,972.24",73501-RESIDENTIAL EMI,PHYSICAL SUPPORT,Third Party Payments,Revenue
Walsall Council,http://opendatacommunities.org/id/metropolitan-district-council/walsall,WC111-699,31/12/2019,Adult Social Care,ANSON COURT RESIDENTIAL HOME,05/12/2019,"1,972.24",73501-RESIDENTIAL EMI,MENTAL HEALTH SUPPORT,Third Party Payments,Revenue
Walsall Council,http://opendatacommunities.org/id/metropolitan-district-council/walsall,WC111-700,31/12/2019,Adult Social Care,ANSON COURT RESIDENTIAL HOME,05/12/2019,"1,972.24",73501-RESIDENTIAL EMI,SUPPORT WITH MEMORY & COGNITION,Third Party Payments,Revenue
Walsall Council,http://opendatacommunities.org/id/metropolitan-district-council/walsall,WC111-701,31/12/2019,Adult Social Care,ANSON COURT RESIDENTIAL HOME,05/12/2019,"1,972.24",73501-RESIDENTIAL EMI,PHYSICAL SUPPORT,Third Party Payments,Revenue
Walsall Council,http://opendatacommunities.org/id/metropolitan-district-council/walsall,WC111-702,31/12/2019,Adult Social Care,ANSON COURT RESIDENTIAL HOME,05/12/2019,"1,972.24",73501-RESIDENTIAL EMI,PHYSICAL SUPPORT,Third Party Payments,Revenue
Walsall Council,http://opendatacommunities.org/id/metropolitan-district-council/walsall,WC111-703,31/12/2019,Adult Social Care,ANSON COURT RESIDENTIAL HOME,05/12/2019,"2,052.24",73501-RESIDENTIAL EMI,MENTAL HEALTH SUPPORT,Third Party Payments,Revenue
Walsall Council,http://opendatacommunities.org/id/metropolitan-district-council/walsall,WC111-704,31/12/2019,Adult Social Care,ANSON COURT RESIDENTIAL HOME,05/12/2019,"2,092.24",73501-RESIDENTIAL EMI,MENTAL HEALTH SUPPORT,Third Party Payments,Revenue
Walsall Council,http://opendatacommunities.org/id/metropolitan-district-council/walsall,WC111-705,31/12/2019,Adult Social Care,ANSON COURT RESIDENTIAL HOME,05/12/2019,"2,092.24",73501-RESIDENTIAL EMI,PHYSICAL SUPPORT,Third Party Payments,Revenue
Walsall Council,http://opendatacommunities.org/id/metropolitan-district-council/walsall,WC111-706,31/12/2019,Adult Social Care,ANSON COURT RESIDENTIAL HOME,05/12/2019,"2,092.24",73501-RESIDENTIAL EMI,MENTAL HEALTH SUPPORT,Third Party Payments,Revenue
Walsall Council,http://opendatacommunities.org/id/metropolitan-district-council/walsall,WC111-707,31/12/2019,Adult Social Care,ANSON COURT RESIDENTIAL HOME,05/12/2019,"2,172.24",73501-RESIDENTIAL EMI,PHYSICAL SUPPORT,Third Party Payments,Revenue
Walsall Council,http://opendatacommunities.org/id/metropolitan-district-council/walsall,WC111-708,31/12/2019,Adult Social Care,ANSON COURT RESIDENTIAL HOME,05/12/2019,"2,172.24",73501-RESIDENTIAL EMI,SOCIAL SUPPORT,Third Party Payments,Revenue
Walsall Council,http://opendatacommunities.org/id/metropolitan-district-council/walsall,WC111-709,31/12/2019,Adult Social Care,ANSON COURT RESIDENTIAL HOME,05/12/2019,"2,172.24",73501-RESIDENTIAL EMI,PHYSICAL SUPPORT,Third Party Payments,Revenue
Walsall Council,http://opendatacommunities.org/id/metropolitan-district-council/walsall,WC111-710,31/12/2019,Adult Social Care,ANSON COURT RESIDENTIAL HOME,18/12/2019,"2,172.24",73025-PROFESSIONAL SERVICES-PRIV CONTRACTOR & OTHER AGENCIES,TRANSITIONAL CARE SUPPORT TEAM,Third Party Payments,Revenue
Walsall Council,http://opendatacommunities.org/id/metropolitan-district-council/walsall,WC111-711,31/12/2019,Adult Social Care,ANSON COURT RESIDENTIAL HOME,18/12/2019,"2,172.24",73025-PROFESSIONAL SERVICES-PRIV CONTRACTOR & OTHER AGENCIES,TRANSITIONAL CARE SUPPORT TEAM,Third Party Payments,Revenue
Walsall Council,http://opendatacommunities.org/id/metropolitan-district-council/walsall,WC111-712,31/12/2019,Adult Social Care,ANSON COURT RESIDENTIAL HOME,18/12/2019,"3,258.36",73025-PROFESSIONAL SERVICES-PRIV CONTRACTOR & OTHER AGENCIES,TRANSITIONAL CARE SUPPORT TEAM,Third Party Payments,Revenue
Walsall Council,http://opendatacommunities.org/id/metropolitan-district-council/walsall,WC111-713,31/12/2019,Resources and Transformation,ANTALIS LIMITED,02/12/2019,622.96,60500-GENERAL MATERIALS,PRINTING SERVICES,Supplies & Services,Revenue
Walsall Council,http://opendatacommunities.org/id/metropolitan-district-council/walsall,WC111-714,31/12/2019,Childrens,REDACTED,17/12/2019,604.00,74510-RESIDENTS ORDERS,ADOPTION ALLOWANCES,Third Party Payments,Revenue
Walsall Council,http://opendatacommunities.org/id/metropolitan-district-council/walsall,WC111-715,31/12/2019,Childrens,REDACTED,17/12/2019,333.12,74509-SPECIAL GUARDIANSHIP ORDERS,ADOPTION ALLOWANCES,Transfer Payments,Revenue
Walsall Council,http://opendatacommunities.org/id/metropolitan-district-council/walsall,WC111-716,31/12/2019,Economy & Environment,APCOA PARKING SERVICES (UK) LTD,05/12/2019,"53,541.16",73025-PROFESSIONAL SERVICES-PRIV CONTRACTOR & OTHER AGENCIES,PARKING SERVICES,Third Party Payments,Revenue
Walsall Council,http://opendatacommunities.org/id/metropolitan-district-council/walsall,WC111-717,31/12/2019,Childrens,APP CARZ,09/12/2019,293.60,52000-WITH DRIVER-HIRE OF VEHICLES,HOME TO SCHOOL TRANSPORT,Transport,Revenue
Walsall Council,http://opendatacommunities.org/id/metropolitan-district-council/walsall,WC111-718,31/12/2019,Childrens,APP CARZ,09/12/2019,357.60,52000-WITH DRIVER-HIRE OF VEHICLES,HOME TO SCHOOL TRANSPORT,Transport,Revenue
Walsall Council,http://opendatacommunities.org/id/metropolitan-district-council/walsall,WC111-719,31/12/2019,Childrens,APP CARZ,09/12/2019,357.60,52000-WITH DRIVER-HIRE OF VEHICLES,HOME TO SCHOOL TRANSPORT,Transport,Revenue
Walsall Council,http://opendatacommunities.org/id/metropolitan-district-council/walsall,WC111-720,31/12/2019,Childrens,APP CARZ,09/12/2019,373.60,52000-WITH DRIVER-HIRE OF VEHICLES,HOME TO SCHOOL TRANSPORT,Transport,Revenue
Walsall Council,http://opendatacommunities.org/id/metropolitan-district-council/walsall,WC111-721,31/12/2019,Childrens,APP CARZ,09/12/2019,373.60,52000-WITH DRIVER-HIRE OF VEHICLES,HOME TO SCHOOL TRANSPORT,Transport,Revenue
Walsall Council,http://opendatacommunities.org/id/metropolitan-district-council/walsall,WC111-722,31/12/2019,Childrens,APP CARZ,09/12/2019,374.00,52000-WITH DRIVER-HIRE OF VEHICLES,HOME TO SCHOOL TRANSPORT,Transport,Revenue
Walsall Council,http://opendatacommunities.org/id/metropolitan-district-council/walsall,WC111-723,31/12/2019,Childrens,APP CARZ,09/12/2019,410.44,52000-WITH DRIVER-HIRE OF VEHICLES,HOME TO SCHOOL TRANSPORT,Transport,Revenue
Walsall Council,http://opendatacommunities.org/id/metropolitan-district-council/walsall,WC111-724,31/12/2019,Childrens,APP CARZ,09/12/2019,444.68,52000-WITH DRIVER-HIRE OF VEHICLES,HOME TO SCHOOL TRANSPORT,Transport,Revenue
Walsall Council,http://opendatacommunities.org/id/metropolitan-district-council/walsall,WC111-725,31/12/2019,Resources and Transformation,APP CARZ,19/12/2019,509.00,52000-WITH DRIVER-HIRE OF VEHICLES,ADVICE & GUIDANCE SERVICE,Transport,Revenue
Walsall Council,http://opendatacommunities.org/id/metropolitan-district-council/walsall,WC111-726,31/12/2019,Childrens,APP CARZ,09/12/2019,744.00,52000-WITH DRIVER-HIRE OF VEHICLES,HOME TO SCHOOL TRANSPORT,Transport,Revenue
Walsall Council,http://opendatacommunities.org/id/metropolitan-district-council/walsall,WC111-727,31/12/2019,Childrens,APP CARZ,09/12/2019,"1,400.00",52000-WITH DRIVER-HIRE OF VEHICLES,HOME TO SCHOOL TRANSPORT,Transport,Revenue
Walsall Council,http://opendatacommunities.org/id/metropolitan-district-council/walsall,WC111-728,31/12/2019,Childrens,AQUAID (BIRMINGHAM CENTRAL),30/12/2019,218.00,61009-BEVERAGES-PROVISIONS,PELSALL EDC,Supplies & Services,Revenue
Walsall Council,http://opendatacommunities.org/id/metropolitan-district-council/walsall,WC111-729,31/12/2019,Economy & Environment,AQUILA TRAINING SERVICES LTD,16/12/2019,"1,460.50",30030-EXTERNAL TRAINING,TRADING STANDARDS,Employees,Revenue
Walsall Council,http://opendatacommunities.org/id/metropolitan-district-council/walsall,WC111-730,31/12/2019,Adult Social Care,ARBORETUM NURSING HOME.,05/12/2019,493.66,73502-NURSING,PHYSICAL SUPPORT,Third Party Payments,Revenue
Walsall Council,http://opendatacommunities.org/id/metropolitan-district-council/walsall,WC111-731,31/12/2019,Adult Social Care,ARBORETUM NURSING HOME.,05/12/2019,"1,398.68",73502-NURSING,PHYSICAL SUPPORT,Third Party Payments,Revenue
Walsall Council,http://opendatacommunities.org/id/metropolitan-district-council/walsall,WC111-732,31/12/2019,Adult Social Care,ARBORETUM NURSING HOME.,05/12/2019,"2,143.72",73502-NURSING,PHYSICAL SUPPORT,Third Party Payments,Revenue
Walsall Council,http://opendatacommunities.org/id/metropolitan-district-council/walsall,WC111-733,31/12/2019,Adult Social Care,ARBORETUM NURSING HOME.,05/12/2019,"2,143.72",73502-NURSING,PHYSICAL SUPPORT,Third Party Payments,Revenue
Walsall Council,http://opendatacommunities.org/id/metropolitan-district-council/walsall,WC111-734,31/12/2019,Adult Social Care,ARBORETUM NURSING HOME.,05/12/2019,"2,143.72",73502-NURSING,PHYSICAL SUPPORT,Third Party Payments,Revenue
Walsall Council,http://opendatacommunities.org/id/metropolitan-district-council/walsall,WC111-735,31/12/2019,Adult Social Care,ARBORETUM NURSING HOME.,05/12/2019,"2,223.72",73502-NURSING,PHYSICAL SUPPORT,Third Party Payments,Revenue
Walsall Council,http://opendatacommunities.org/id/metropolitan-district-council/walsall,WC111-736,31/12/2019,Adult Social Care,ARBORETUM NURSING HOME.,05/12/2019,"2,243.72",73502-NURSING,PHYSICAL SUPPORT,Third Party Payments,Revenue
Walsall Council,http://opendatacommunities.org/id/metropolitan-district-council/walsall,WC111-737,31/12/2019,Adult Social Care,ARBORETUM NURSING HOME.,05/12/2019,"2,263.72",73502-NURSING,PHYSICAL SUPPORT,Third Party Payments,Revenue
Walsall Council,http://opendatacommunities.org/id/metropolitan-district-council/walsall,WC111-738,31/12/2019,Adult Social Care,ARBORETUM NURSING HOME.,05/12/2019,"2,263.72",73502-NURSING,PHYSICAL SUPPORT,Third Party Payments,Revenue
Walsall Council,http://opendatacommunities.org/id/metropolitan-district-council/walsall,WC111-739,31/12/2019,Adult Social Care,ARBORETUM NURSING HOME.,05/12/2019,"2,303.72",73502-NURSING,SOCIAL SUPPORT,Third Party Payments,Revenue
Walsall Council,http://opendatacommunities.org/id/metropolitan-district-council/walsall,WC111-740,31/12/2019,Adult Social Care,ARBORETUM NURSING HOME.,05/12/2019,"2,303.72",73502-NURSING,PHYSICAL SUPPORT,Third Party Payments,Revenue
Walsall Council,http://opendatacommunities.org/id/metropolitan-district-council/walsall,WC111-741,31/12/2019,Adult Social Care,ARBORETUM NURSING HOME.,05/12/2019,"2,478.08",73503-NURSING EMI,PHYSICAL SUPPORT,Third Party Payments,Revenue
Walsall Council,http://opendatacommunities.org/id/metropolitan-district-council/walsall,WC111-742,31/12/2019,Adult Social Care,ARBORETUM NURSING HOME.,05/12/2019,"3,880.66",73502-NURSING,PHYSICAL SUPPORT,Third Party Payments,Revenue
Walsall Council,http://opendatacommunities.org/id/metropolitan-district-council/walsall,WC111-743,31/12/2019,Adult Social Care,ARBORETUM NURSING HOME.,02/12/2019,"17,880.00",73025-PROFESSIONAL SERVICES-PRIV CONTRACTOR & OTHER AGENCIES,TRANSITIONAL CARE SUPPORT TEAM,Third Party Payments,Revenue
Walsall Council,http://opendatacommunities.org/id/metropolitan-district-council/walsall,WC111-744,31/12/2019,Economy & Environment,ARBURY WALSALL,01/12/2019,281.09,60500-GENERAL MATERIALS,FLEET,Supplies & Services,Revenue
Walsall Council,http://opendatacommunities.org/id/metropolitan-district-council/walsall,WC111-745,31/12/2019,Economy & Environment,ARCHWAY TCS LTD,30/12/2019,707.50,60537-VEHICLE WASH PLANT-MATERIALS,DEPOT,Supplies & Services,Revenue
Walsall Council,http://opendatacommunities.org/id/metropolitan-district-council/walsall,WC111-746,31/12/2019,Resources and Transformation,ARMSTRONG YORK ASBESTOS ENVIRONMENTAL LIMITED,04/12/2019,600.00,01006-SITE WORKS MAIN CONTRACTORS,CFR 802 SAFE WATER SUPPLIES,Capital,Capital
Walsall Council,http://opendatacommunities.org/id/metropolitan-district-council/walsall,WC111-747,31/12/2019,Holding Accounts,ARTHUR J GALLAGHER T/A HEATH LAMBERT LIMITED,10/12/2019,"2,247.67",89012-TEACHERS SICKNESS SCHEME PREMIUM INSURANCE POLICY,PUBLIC LIABILITY,Supplies & Services,Revenue
Walsall Council,http://opendatacommunities.org/id/metropolitan-district-council/walsall,WC111-748,31/12/2019,Holding Accounts,ARTHUR J GALLAGHER T/A HEATH LAMBERT LIMITED,02/12/2019,"6,000.00",89012-TEACHERS SICKNESS SCHEME PREMIUM INSURANCE POLICY,PUBLIC LIABILITY,Supplies & Services,Revenue
Walsall Council,http://opendatacommunities.org/id/metropolitan-district-council/walsall,WC111-749,31/12/2019,Childrens,ARTHUR M GRIFFITHS & SON LTD,03/12/2019,"68,074.64",01006-SITE WORKS MAIN CONTRACTORS,CFR 929 FIBBERSLEY PRIMARY SIGNIFICANT ENLARGEMENT,Capital,Capital
Walsall Council,http://opendatacommunities.org/id/metropolitan-district-council/walsall,WC111-750,31/12/2019,Resources and Transformation,ASBESTOS ABATEMENT SERVICES,01/12/2019,"6,960.00",40000-OPERATIONAL MAINTENANCE,RECHARGEABLE - SCHOOLS MAINTENANCE,Premises,Revenue
Walsall Council,http://opendatacommunities.org/id/metropolitan-district-council/walsall,WC111-751,31/12/2019,Economy & Environment,ASCEND HEALTH CARE AND CHILDCARD TRAINING LTD,04/12/2019,"2,500.00",30030-EXTERNAL TRAINING,YEI (IMPACT) PROGRAMME,Employees,Revenue
Walsall Council,http://opendatacommunities.org/id/metropolitan-district-council/walsall,WC111-752,31/12/2019,Economy & Environment,ASCEND HEALTH CARE AND CHILDCARD TRAINING LTD,04/12/2019,"2,500.00",30030-EXTERNAL TRAINING,YEI ESF FUNDING,Employees,Revenue
Walsall Council,http://opendatacommunities.org/id/metropolitan-district-council/walsall,WC111-753,31/12/2019,Resources and Transformation,ASCENDANT SOLUTIONS LTD,19/12/2019,"19,800.00",63102-CONSULTANTS FEES - CORPORATE,REVENUES,Supplies & Services,Revenue
Walsall Council,http://opendatacommunities.org/id/metropolitan-district-council/walsall,WC111-754,31/12/2019,Economy & Environment,ASDA PHARMACY,03/12/2019,387.27,71007-CONTRIBUTION TO PCT,PUBLIC HEALTH BUSINESS SUPPORT,Third Party Payments,Revenue
Walsall Council,http://opendatacommunities.org/id/metropolitan-district-council/walsall,WC111-755,31/12/2019,Adult Social Care,ASH GRANGE CARE HOME,05/12/2019,396.43,73502-NURSING,PHYSICAL SUPPORT,Third Party Payments,Revenue
Walsall Council,http://opendatacommunities.org/id/metropolitan-district-council/walsall,WC111-756,31/12/2019,Adult Social Care,ASH GRANGE CARE HOME,05/12/2019,"1,271.86",73502-NURSING,PHYSICAL SUPPORT,Third Party Payments,Revenue
Walsall Council,http://opendatacommunities.org/id/metropolitan-district-council/walsall,WC111-757,31/12/2019,Adult Social Care,ASH GRANGE CARE HOME,05/12/2019,"1,298.42",73502-NURSING,PHYSICAL SUPPORT,Third Party Payments,Revenue
Walsall Council,http://opendatacommunities.org/id/metropolitan-district-council/walsall,WC111-758,31/12/2019,Adult Social Care,ASH GRANGE CARE HOME,05/12/2019,"1,774.96",73500-RESIDENTIAL,MENTAL HEALTH SUPPORT,Third Party Payments,Revenue
Walsall Council,http://opendatacommunities.org/id/metropolitan-district-council/walsall,WC111-759,31/12/2019,Adult Social Care,ASH GRANGE CARE HOME,05/12/2019,"1,774.96",73500-RESIDENTIAL,SUPPORT WITH MEMORY & COGNITION,Third Party Payments,Revenue
Walsall Council,http://opendatacommunities.org/id/metropolitan-district-council/walsall,WC111-760,31/12/2019,Adult Social Care,ASH GRANGE CARE HOME,05/12/2019,"2,143.72",73502-NURSING,MENTAL HEALTH SUPPORT,Third Party Payments,Revenue
Walsall Council,http://opendatacommunities.org/id/metropolitan-district-council/walsall,WC111-761,31/12/2019,Adult Social Care,ASH GRANGE CARE HOME,05/12/2019,"2,143.72",73502-NURSING,PHYSICAL SUPPORT,Third Party Payments,Revenue
Walsall Council,http://opendatacommunities.org/id/metropolitan-district-council/walsall,WC111-762,31/12/2019,Adult Social Care,ASH GRANGE CARE HOME,05/12/2019,"2,143.72",73502-NURSING,PHYSICAL SUPPORT,Third Party Payments,Revenue
Walsall Council,http://opendatacommunities.org/id/metropolitan-district-council/walsall,WC111-763,31/12/2019,Adult Social Care,ASH GRANGE CARE HOME,05/12/2019,"2,143.72",73502-NURSING,MENTAL HEALTH SUPPORT,Third Party Payments,Revenue
Walsall Council,http://opendatacommunities.org/id/metropolitan-district-council/walsall,WC111-764,31/12/2019,Adult Social Care,ASH GRANGE CARE HOME,05/12/2019,"2,143.72",73502-NURSING,PHYSICAL SUPPORT,Third Party Payments,Revenue
Walsall Council,http://opendatacommunities.org/id/metropolitan-district-council/walsall,WC111-765,31/12/2019,Adult Social Care,ASH GRANGE CARE HOME,05/12/2019,"2,143.72",73502-NURSING,SUPPORT WITH MEMORY & COGNITION,Third Party Payments,Revenue
Walsall Council,http://opendatacommunities.org/id/metropolitan-district-council/walsall,WC111-766,31/12/2019,Adult Social Care,ASH GRANGE CARE HOME,05/12/2019,"2,143.72",73502-NURSING,PHYSICAL SUPPORT,Third Party Payments,Revenue
Walsall Council,http://opendatacommunities.org/id/metropolitan-district-council/walsall,WC111-767,31/12/2019,Adult Social Care,ASH GRANGE CARE HOME,05/12/2019,"2,143.72",73502-NURSING,PHYSICAL SUPPORT,Third Party Payments,Revenue
Walsall Council,http://opendatacommunities.org/id/metropolitan-district-council/walsall,WC111-768,31/12/2019,Adult Social Care,ASH GRANGE CARE HOME,05/12/2019,"2,143.72",73502-NURSING,PHYSICAL SUPPORT,Third Party Payments,Revenue
Walsall Council,http://opendatacommunities.org/id/metropolitan-district-council/walsall,WC111-769,31/12/2019,Adult Social Care,ASH GRANGE CARE HOME,05/12/2019,"2,143.72",73502-NURSING,PHYSICAL SUPPORT,Third Party Payments,Revenue
Walsall Council,http://opendatacommunities.org/id/metropolitan-district-council/walsall,WC111-770,31/12/2019,Adult Social Care,ASH GRANGE CARE HOME,05/12/2019,"2,143.72",73502-NURSING,PHYSICAL SUPPORT,Third Party Payments,Revenue
Walsall Council,http://opendatacommunities.org/id/metropolitan-district-council/walsall,WC111-771,31/12/2019,Adult Social Care,ASH GRANGE CARE HOME,05/12/2019,"2,143.72",73502-NURSING,MENTAL HEALTH SUPPORT,Third Party Payments,Revenue
Walsall Council,http://opendatacommunities.org/id/metropolitan-district-council/walsall,WC111-772,31/12/2019,Adult Social Care,ASH GRANGE CARE HOME,05/12/2019,"2,143.72",73502-NURSING,PHYSICAL SUPPORT,Third Party Payments,Revenue
Walsall Council,http://opendatacommunities.org/id/metropolitan-district-council/walsall,WC111-773,31/12/2019,Adult Social Care,ASH GRANGE CARE HOME,05/12/2019,"2,143.72",73502-NURSING,PHYSICAL SUPPORT,Third Party Payments,Revenue
Walsall Council,http://opendatacommunities.org/id/metropolitan-district-council/walsall,WC111-774,31/12/2019,Adult Social Care,ASH GRANGE CARE HOME,05/12/2019,"2,263.72",73502-NURSING,PHYSICAL SUPPORT,Third Party Payments,Revenue
Walsall Council,http://opendatacommunities.org/id/metropolitan-district-council/walsall,WC111-775,31/12/2019,Adult Social Care,ASH GRANGE CARE HOME,05/12/2019,"2,303.72",73502-NURSING,PHYSICAL SUPPORT,Third Party Payments,Revenue
Walsall Council,http://opendatacommunities.org/id/metropolitan-district-council/walsall,WC111-776,31/12/2019,Adult Social Care,ASH GRANGE CARE HOME,05/12/2019,"2,343.72",73502-NURSING,PHYSICAL SUPPORT,Third Party Payments,Revenue
Walsall Council,http://opendatacommunities.org/id/metropolitan-district-council/walsall,WC111-777,31/12/2019,Adult Social Care,ASH GRANGE CARE HOME,05/12/2019,"2,343.72",73502-NURSING,PHYSICAL SUPPORT,Third Party Payments,Revenue
Walsall Council,http://opendatacommunities.org/id/metropolitan-district-council/walsall,WC111-778,31/12/2019,Adult Social Care,ASH GRANGE CARE HOME,05/12/2019,"2,358.08",73503-NURSING EMI,PHYSICAL SUPPORT,Third Party Payments,Revenue
Walsall Council,http://opendatacommunities.org/id/metropolitan-district-council/walsall,WC111-779,31/12/2019,Adult Social Care,ASH GRANGE CARE HOME,05/12/2019,"2,358.08",73503-NURSING EMI,PHYSICAL SUPPORT,Third Party Payments,Revenue
Walsall Council,http://opendatacommunities.org/id/metropolitan-district-council/walsall,WC111-780,31/12/2019,Adult Social Care,ASH GRANGE CARE HOME,05/12/2019,"2,358.89",73502-NURSING,SOCIAL SUPPORT,Third Party Payments,Revenue
Walsall Council,http://opendatacommunities.org/id/metropolitan-district-council/walsall,WC111-781,31/12/2019,Adult Social Care,ASH GRANGE CARE HOME,05/12/2019,"2,423.72",73502-NURSING,SOCIAL SUPPORT,Third Party Payments,Revenue
Walsall Council,http://opendatacommunities.org/id/metropolitan-district-council/walsall,WC111-782,31/12/2019,Adult Social Care,ASH GRANGE CARE HOME,05/12/2019,"2,463.72",73502-NURSING,PHYSICAL SUPPORT,Third Party Payments,Revenue
Walsall Council,http://opendatacommunities.org/id/metropolitan-district-council/walsall,WC111-783,31/12/2019,Adult Social Care,ASH GRANGE CARE HOME,05/12/2019,"2,520.68",73500-RESIDENTIAL,LEARNING DISABILITY SUPPORT,Third Party Payments,Revenue
Walsall Council,http://opendatacommunities.org/id/metropolitan-district-council/walsall,WC111-784,31/12/2019,Adult Social Care,ASH GRANGE CARE HOME,05/12/2019,"2,638.08",73503-NURSING EMI,PHYSICAL SUPPORT,Third Party Payments,Revenue
Walsall Council,http://opendatacommunities.org/id/metropolitan-district-council/walsall,WC111-785,31/12/2019,Adult Social Care,ASH GRANGE CARE HOME,05/12/2019,"2,979.40",73500-RESIDENTIAL,PHYSICAL SUPPORT,Third Party Payments,Revenue
Walsall Council,http://opendatacommunities.org/id/metropolitan-district-council/walsall,WC111-786,31/12/2019,Adult Social Care,REDACTED,11/12/2019,"1,527.00",73506-DIRECT PAYMENT,LEARNING DISABILITY SUPPORT,Third Party Payments,Revenue
Walsall Council,http://opendatacommunities.org/id/metropolitan-district-council/walsall,WC111-787,31/12/2019,Economy & Environment,ASHTON ENGINEERING CO LTD,03/12/2019,421.80,60000-FURNITURE & EQUIPMENT,FLEET,Supplies & Services,Revenue
Walsall Council,http://opendatacommunities.org/id/metropolitan-district-council/walsall,WC111-788,31/12/2019,Economy & Environment,ASKEWS AND HOLTS LIBRARY SERVICES LTD,12/12/2019,747.26,60501-LIBRARY BOOKS,LIBRARY MANAGEMENT,Supplies & Services,Revenue
Walsall Council,http://opendatacommunities.org/id/metropolitan-district-council/walsall,WC111-789,31/12/2019,Economy & Environment,ASKEWS AND HOLTS LIBRARY SERVICES LTD,05/12/2019,"1,630.29",60501-LIBRARY BOOKS,LIBRARY MANAGEMENT,Supplies & Services,Revenue
Walsall Council,http://opendatacommunities.org/id/metropolitan-district-council/walsall,WC111-790,31/12/2019,Adult Social Care,REDACTED,11/12/2019,969.00,73506-DIRECT PAYMENT,PHYSICAL SUPPORT,Third Party Payments,Revenue
Walsall Council,http://opendatacommunities.org/id/metropolitan-district-council/walsall,WC111-791,31/12/2019,Adult Social Care,ASSURED HEALTHCARE SOLUTIONS (PARK FARM LODGE),05/12/2019,"2,034.44",73500-RESIDENTIAL,PHYSICAL SUPPORT,Third Party Payments,Revenue
Walsall Council,http://opendatacommunities.org/id/metropolitan-district-council/walsall,WC111-792,31/12/2019,Economy & Environment,ATKINS LIMITED,16/12/2019,"1,765.41",01002-PROJECT FEES,CFR 1280 JUNCTION AND CYCLING IMPROVEMENTS - RING ROAD IMPROVEMENTS Dft FUNDED,Capital,Capital
Walsall Council,http://opendatacommunities.org/id/metropolitan-district-council/walsall,WC111-793,31/12/2019,Childrens,ATKINS LIMITED,11/12/2019,"1,955.81",01006-SITE WORKS MAIN CONTRACTORS,CFR 929 FIBBERSLEY PRIMARY SIGNIFICANT ENLARGEMENT,Capital,Capital
Walsall Council,http://opendatacommunities.org/id/metropolitan-district-council/walsall,WC111-794,31/12/2019,Economy & Environment,ATKINS LIMITED,02/12/2019,"2,700.00",01002-PROJECT FEES,CFR 1281 RING ROAD IMPROVEMENTS (CONTRIBUTION TO NPIF),Capital,Capital
Walsall Council,http://opendatacommunities.org/id/metropolitan-district-council/walsall,WC111-795,31/12/2019,Economy & Environment,ATKINS LIMITED,02/12/2019,"3,483.34",01002-PROJECT FEES,CFR 1280 JUNCTION AND CYCLING IMPROVEMENTS - RING ROAD IMPROVEMENTS Dft FUNDED,Capital,Capital
Walsall Council,http://opendatacommunities.org/id/metropolitan-district-council/walsall,WC111-796,31/12/2019,Economy & Environment,ATKINS LIMITED,04/12/2019,"7,603.70",01001-OTHER CONSULTANTS FEES,CFR 819 LTP-YORKS BRIDGE,Capital,Capital
Walsall Council,http://opendatacommunities.org/id/metropolitan-district-council/walsall,WC111-797,31/12/2019,Adult Social Care,AUTISM WEST MIDLANDS,05/12/2019,"7,172.48",73500-RESIDENTIAL,LEARNING DISABILITY SUPPORT,Third Party Payments,Revenue
Walsall Council,http://opendatacommunities.org/id/metropolitan-district-council/walsall,WC111-798,31/12/2019,Adult Social Care,AUTISM WEST MIDLANDS 001,05/12/2019,"5,542.84",73500-RESIDENTIAL,LEARNING DISABILITY SUPPORT,Third Party Payments,Revenue
Walsall Council,http://opendatacommunities.org/id/metropolitan-district-council/walsall,WC111-799,31/12/2019,Economy & Environment,AUTOBITS,02/12/2019,465.00,73005-LANDFILL PTYS-PRIV CONTRACTOR FEES,WASTE DISPOSAL - RESIDUAL,Third Party Payments,Revenue
Walsall Council,http://opendatacommunities.org/id/metropolitan-district-council/walsall,WC111-800,31/12/2019,Adult Social Care,REDACTED,11/12/2019,"3,978.00",73506-DIRECT PAYMENT,LEARNING DISABILITY SUPPORT,Third Party Payments,Revenue
Walsall Council,http://opendatacommunities.org/id/metropolitan-district-council/walsall,WC111-801,31/12/2019,Resources and Transformation,AZTEC CONSTRUCTION (MIDLANDS) LTD,13/12/2019,"5,666.66",01045-PRIVATE GRANTS,CFR 1359 DISABLED FACILITIES GRANT,Capital,Capital
Walsall Council,http://opendatacommunities.org/id/metropolitan-district-council/walsall,WC111-802,31/12/2019,Resources and Transformation,AZTEC CONSTRUCTION (MIDLANDS) LTD,13/12/2019,"6,274.00",01045-PRIVATE GRANTS,CFR 1359 DISABLED FACILITIES GRANT,Capital,Capital
Walsall Council,http://opendatacommunities.org/id/metropolitan-district-council/walsall,WC111-803,31/12/2019,Resources and Transformation,B E FURNITURE LTD T/A B E EVENTHIRE,03/12/2019,530.00,60009-LEASING/HIRE/RENTAL-EQUIPMENT,ELECTORAL ADMINISTRATION,Supplies & Services,Revenue
Walsall Council,http://opendatacommunities.org/id/metropolitan-district-council/walsall,WC111-804,31/12/2019,Economy & Environment,BAART HARRIES NEWALL,02/12/2019,"1,851.83",63000-PROFESSIONAL FEES AND SERVICES,SHOPS AND COMMERCIAL PREMISES,Supplies & Services,Revenue
Walsall Council,http://opendatacommunities.org/id/metropolitan-district-council/walsall,WC111-805,31/12/2019,Economy & Environment,BAKER HALL PARTNERSHIP,16/12/2019,843.75,63000-PROFESSIONAL FEES AND SERVICES,BUILDING CONTROL REVENUE FUNDED,Supplies & Services,Revenue
